{"text_format":"1","workbook":"xlsx","n_sheets":1,"sheets":["Januar"],"not_rendered":{"charts":0,"images":0,"macros":1,"external_links":1,"defined_names":1,"comments":1,"pivot_tables":0},"unopened":[],"bounds":{"document_bytes":16777216,"sheet_cells":100000,"rows_first":2000,"rows_last":500,"rows_between":2000,"halvings":0,"cell_chars":16384,"cell_head_chars":4096},"cells_cut":0,"cells_raw":0,"read":"whole","date_system":"1900"}

{"sheet":"Januar","index":0,"n_rows":1947,"n_cols":28,"rows_kept":1947,"cut":false,"hidden":false,"merged":[[0,13,0,14],[1,13,1,14],[2,3,2,5],[2,6,2,9],[3,4,3,5],[3,7,3,9],[0,1,1,3],[0,4,1,11],[0,12,1,12]]}
[null,null,null,null,"Schichtbuch für den Monat ",null,null,null,null,null,null,null,"  Januar   2025","gesammt Arbeitszeit",null,null,null,null,{"$f":"[1]Datenblatt!R1","v":"Hom2025"},null,null,null,null,{"$f":"SUM(X6:X1947)","v":2},null,null,"Fz","Stunden"]
["Ausblenden",null,null,null,null,null,null,null,null,null,null,null,null,{"$f":"IF(SUMIF(X6:X1947,1,O6:O1947)=0,\"\",CONCATENATE(SUMIF(X6:X1947,1,O6:O1947),\" Stunden\"))","v":"49,5 Stunden"},null,null,null,null,null,null,null,null,null,null,null,null,{"$f":"COUNTA(C6:C1947)","v":317},{"$f":"N2","v":"49,5 Stunden"}]
["x","Schicht",null,"Fz-Eingang",null,null,"Fz-Fertigmeldung",null,null,null,"Zuführungsgrund","Störung","durchgeführte Arbeiten","Arbeitsstand","Stunden","Bemerkungen"]
[null,null,"Fahrzeug","Datum","Uhrzeit",null,"Datum",null,null,null,null,null,null,null,{"$f":"IF(N2=\"\",SUM(O6:O1947),\"\")","v":""},null,null,null,null,null,null,null,"siehe ges. Az."]
[null,null,null,null,"SOLL","IST",null,"MA Leitstelle","MA Werkstatt","Uhrzeit",null,null,null,null,null,null,null,null,null,null,null,null,"………."]
[{"$f":"IF($A$3=\"x\",IF(AND(B6=\"\",O6=\"\",AND(L6=\"\",M6=\"\",P6=\"\")),\"\",IF(B6=\"\",A5,B6)),IF($A$4=\"x\",IF(AND(D6=\"\",O6=\"\",AND(L6=\"\",M6=\"\",P6=\"\")),\"\",IF(D6=\"\",A5,D6)),\"\"))","v":"Tag"},"Tag",null,"2025-01-01",null,null,null,null,null,null,null,null,null,null,0,null,null,null,null,null,null,null,{"$f":"IFERROR(VALUE(IF(A6=\"\",\"\",IF(O6=\"\",0,O6))),\"\")","v":0}]
[{"$f":"IF($A$3=\"x\",IF(AND(B7=\"\",O7=\"\",AND(L7=\"\",M7=\"\",P7=\"\")),\"\",IF(B7=\"\",A6,B7)),IF($A$4=\"x\",IF(AND(D7=\"\",O7=\"\",AND(L7=\"\",M7=\"\",P7=\"\")),\"\",IF(D7=\"\",A6,D7)),\"\"))","v":"Tag"},null,125,null,null,null,null,null,null,null,"außerplan Arbeit/Störung","Signalbeleuchtung ","durchgeführte Arbeiten","Arbeiten erledigt",0.5,null,null,null,null,null,null,null,{"$f":"IFERROR(VALUE(IF(A7=\"\",\"\",IF(O7=\"\",0,O7))),\"\")","v":0.5}]
["Tag",null,114,null,null,null,null,null,null,null,"außerplan Arbeit/Störung","WC-Störung","durchgeführte Arbeiten","Arbeiten erledigt",1,null,null,null,null,null,null,null,1]
["Tag",null,118,null,null,null,null,null,null,null,"I3",null,"durchgeführte Arbeiten","Übergeben",18,null,null,null,null,null,null,null,18]
["Tag",null,null,null,null,null,null,null,null,null,"außerplan Arbeit/Störung",null,"durchgeführte Arbeiten","Arbeiten erledigt",1,null,null,null,null,null,null,null,1]
["Tag",null,null,null,null,null,null,null,null,null,"außerplan Arbeit/Störung",null,"durchgeführte Arbeiten","Arbeiten erledigt",1,null,null,null,null,null,null,null,1]
["Tag",null,null,null,null,null,null,null,null,null,"außerplan Arbeit/Störung",null,"durchgeführte Arbeiten","Arbeiten erledigt",1,null,null,null,null,null,null,null,1]
["Tag",null,null,null,null,null,null,null,null,null,"außerplan Arbeit/Störung",null,"durchgeführte Arbeiten","Arbeiten erledigt",0.5,null,null,null,null,null,null,null,0.5]
["Tag",null,null,null,null,null,null,null,null,null,"außerplan Arbeit/Störung",null,"durchgeführte Arbeiten","Arbeiten erledigt",0.5,null,null,null,null,null,null,null,0.5]
["Tag",null,103,null,null,null,null,null,null,null,"außerplan Arbeit/Störung",null,"durchgeführte Arbeiten","Arbeiten erledigt",1,null,null,null,null,null,null,null,1]
["Tag",null,null,null,null,null,null,null,null,null,null,"Lagerarbeiten",null,"Arbeiten erledigt",1,null,null,null,null,null,null,null,1]
[null,null,null,null,null,null,null,null,null,null,null,null,null,null,{"$f":"SUM(O7:O16)","v":25.5},null,null,null,null,null,null,null,null,1]
[{"$f":"IF($A$3=\"x\",IF(AND(B18=\"\",O18=\"\",AND(L18=\"\",M18=\"\",P18=\"\")),\"\",IF(B18=\"\",A16,B18)),IF($A$4=\"x\",IF(AND(D18=\"\",O18=\"\",AND(L18=\"\",M18=\"\",P18=\"\")),\"\",IF(D18=\"\",A16,D18)),\"\"))","v":"Nacht"},"Nacht",null,"2025-01-01",null,null,null,null,null,null,null,null,null,null,0,null,null,null,null,null,null,null,0]
["Nacht",null,21,null,null,null,null,null,null,null,"außerplan Arbeit/Störung",null,"durchgeführte Arbeiten","Arbeiten erledigt",0.5,null,null,null,null,null,null,null,0.5]
["Nacht",null,null,null,null,null,null,null,null,null,"außerplan Arbeit/Störung","Funk Störung","durchgeführte Arbeiten","Arbeiten erledigt",0.5,null,null,null,null,null,null,null,0.5]
["Nacht",null,130,null,null,null,null,null,null,null,"außerplan Arbeit/Störung","Sandfüllen","durchgeführte Arbeiten","Arbeiten erledigt",0.5,null,null,null,null,null,null,null,0.5]
["Nacht",null,115,null,null,null,null,null,null,null,"außerplan Arbeit/Störung",null,"durchgeführte Arbeiten","Arbeiten erledigt",0.5,null,null,null,null,null,null,null,0.5]
["Nacht",null,null,null,null,null,null,null,null,null,"außerplan Arbeit/Störung",null,"durchgeführte Arbeiten","Arbeiten erledigt",0.5,null,null,null,null,null,null,null,0.5]
["Nacht",null,18,null,null,null,null,null,null,null,"außerplan Arbeit/Störung","Anlagen Störung WE1","durchgeführte Arbeiten","Arbeiten erledigt",2,null,null,null,null,null,null,null,2]
["Nacht",null,111,null,null,null,null,null,null,null,"außerplan Arbeit/Störung","WC Entsorgen und Brauchwasser füllen",null,"Arbeiten erledigt",1,null,null,null,null,null,null,null,1]
["Nacht",null,118,null,null,null,null,null,null,null,"I3",null,"durchgeführte Arbeiten","Übergeben",15.5,null,null,null,null,null,null,null,15.5]
["Nacht",null,null,null,null,null,null,null,null,null,null,null,"durchgeführte Arbeiten","Arbeiten erledigt",2,null,null,null,null,null,null,null,2]
["Nacht",null,null,null,null,null,null,null,null,null,null,null,"durchgeführte Arbeiten","Arbeiten erledigt",1,null,null,null,null,null,null,null,1]
[null,null,null,null,null,null,null,null,null,null,null,null,null,null,{"$f":"SUM(O18:O28)","v":24},null,null,null,null,null,null,null,null,1]
[{"$f":"IF($A$3=\"x\",IF(AND(B30=\"\",O30=\"\",AND(L30=\"\",M30=\"\",P30=\"\")),\"\",IF(B30=\"\",A28,B30)),IF($A$4=\"x\",IF(AND(D30=\"\",O30=\"\",AND(L30=\"\",M30=\"\",P30=\"\")),\"\",IF(D30=\"\",A28,D30)),\"\"))","v":"Tag"},"Tag",null,"2025-01-02",null,null,null,null,null,null,null,null,null,null,null,null,null,null,null,null,null,null,0]
["Tag",null,118,null,null,null,null,null,null,null,"I3",null,null,"Arbeiten erledigt",1,null,null,null,null,null,null,null,1]
["Tag",null,14,null,null,null,null,null,null,null,"außerplan Arbeit/Störung","WC Entsorgen und Brauchwasser füllen",null,"Arbeiten erledigt",1,null,null,null,null,null,null,null,1]
["Tag",null,101,null,null,null,null,null,null,null,"außerplan Arbeit/Störung",null,"durchgeführte Arbeiten","Arbeiten erledigt",0.5,null,null,null,null,null,null,null,0.5]
["Tag",null,110,null,null,null,null,null,null,null,"außerplan Arbeit/Störung",null,"durchgeführte Arbeiten","Arbeiten erledigt",1,null,null,null,null,null,null,null,1]
["Tag",null,null,null,null,null,null,null,null,null,"außerplan Arbeit/Störung",null,"durchgeführte Arbeiten","Arbeiten erledigt",0.5,null,null,null,null,null,null,null,0.5]
["Tag",null,112,null,null,null,null,null,null,null,"I2",null,"durchgeführte Arbeiten","Arbeiten erledigt",20,null,null,null,null,null,null,null,20]
["Tag",null,null,null,null,null,null,null,null,null,"außerplan Arbeit/Störung",null,"durchgeführte Arbeiten","Arbeiten erledigt",1.5,null,null,null,null,null,null,null,1.5]
["Tag",null,null,null,null,null,null,null,null,null,"außerplan Arbeit/Störung",null,"durchgeführte Arbeiten","Arbeiten erledigt",1.5,null,null,null,null,null,null,null,1.5]
["Tag",null,null,null,null,null,null,null,null,null,"außerplan Arbeit/Störung",null,"durchgeführte Arbeiten","Arbeiten erledigt",1,null,null,null,null,null,null,null,1]
["Tag",null,null,null,null,null,null,null,null,null,"Indusi Frist groß",null,null,"Arbeiten erledigt",3.5,null,null,null,null,null,null,null,3.5]
["Tag",null,null,null,null,null,null,null,null,null,null,null,"durchgeführte Arbeiten","Arbeiten erledigt",1,null,null,null,null,null,null,null,1]
["Tag",null,null,null,null,null,null,null,null,null,null,null,"durchgeführte Arbeiten","Arbeiten erledigt",0.5,null,null,null,null,null,null,null,0.5]
["Tag",null,null,null,null,null,null,null,null,null,null,null,"durchgeführte Arbeiten","Arbeiten erledigt",2,null,null,null,null,null,null,null,2]
["Tag",null,null,null,null,null,null,null,null,null,null,null,"durchgeführte Arbeiten","Arbeiten erledigt",1,null,null,null,null,null,null,null,1]
["Tag",null,22,null,null,null,null,null,null,null,"I1",null,"durchgeführte Arbeiten","Übergeben",3.5,null,null,null,null,null,null,null,3.5]
["Tag",null,null,null,null,null,null,null,null,null,"außerplan Arbeit/Störung",null,"durchgeführte Arbeiten","Arbeiten erledigt",1,null,null,null,null,null,null,null,1]
["Tag",null,null,null,null,null,null,null,null,null,"außerplan Arbeit/Störung",null,"durchgeführte Arbeiten","Arbeiten erledigt",1,null,null,null,null,null,null,null,1]
["Tag",null,null,null,null,null,null,null,null,null,"außerplan Arbeit/Störung",null,"durchgeführte Arbeiten","Arbeiten erledigt",0.5,null,null,null,null,null,null,null,0.5]
["Tag",null,null,null,null,null,null,null,null,null,null,null,"durchgeführte Arbeiten","Arbeiten erledigt",0.5,null,null,null,null,null,null,null,0.5]
["Tag",null,null,null,null,null,null,null,null,null,"Indusi Frist groß",null,null,"Arbeiten erledigt",3.5,null,null,null,null,null,null,null,3.5]
["Tag",null,null,null,null,null,null,null,null,null,null,null,"durchgeführte Arbeiten","Arbeiten erledigt",1,null,null,null,null,null,null,null,1]
["Tag",null,null,null,null,null,null,null,null,null,"außerplan Arbeit/Störung",null,"durchgeführte Arbeiten","Arbeiten erledigt",2,null,null,null,null,null,null,null,2]
["Tag",null,null,null,null,null,null,null,null,null,null,null,"durchgeführte Arbeiten","Arbeiten erledigt",0.5,null,null,null,null,null,null,null,0.5]
["Tag",null,118,null,null,null,null,null,null,null,"außerplan Arbeit/Störung",null,"durchgeführte Arbeiten","Arbeiten erledigt",49.5,null,null,null,null,null,null,null,49.5]
["Tag",null,109,null,null,null,null,null,null,null,"außerplan Arbeit/Störung","Diwa Störung WE1","durchgeführte Arbeiten","Übergeben",null,null,null,null,null,null,null,null,0]
["Tag",null,107,null,null,null,null,null,null,null,"außerplan Arbeit/Störung",null,"durchgeführte Arbeiten","Arbeiten erledigt",null,null,null,null,null,null,null,null,0]
["Nacht","Nacht",null,"2025-01-02",null,null,null,null,null,null,null,null,null,null,null,null,null,null,null,null,null,null,0]
["Nacht",null,113,null,null,null,null,null,null,null,"außerplan Arbeit/Störung","WC Entsorgen und Brauchwasser füllen",null,"Arbeiten erledigt",1,null,null,null,null,null,null,null,1]
["Nacht",null,null,null,null,null,null,null,null,null,"außerplan Arbeit/Störung",null,"durchgeführte Arbeiten","Arbeiten erledigt",0.5,null,null,null,null,null,null,null,0.5]
["Nacht",null,null,null,null,null,null,null,null,null,"außerplan Arbeit/Störung",null,"durchgeführte Arbeiten","Arbeiten erledigt",0.5,null,null,null,null,null,null,null,0.5]
["Nacht",null,null,null,null,null,null,null,null,null,"außerplan Arbeit/Störung",null,"durchgeführte Arbeiten","Arbeiten erledigt",0.5,null,null,null,null,null,null,null,0.5]
["Nacht",null,142,null,null,null,null,null,null,null,"außerplan Arbeit/Störung","WC-Störung","durchgeführte Arbeiten","Arbeiten erledigt",0.5,null,null,null,null,null,null,null,0.5]
["Nacht",null,127,null,null,null,null,null,null,null,"außerplan Arbeit/Störung","Diwa Störung WE2","durchgeführte Arbeiten","Arbeiten erledigt",0.5,null,null,null,null,null,null,null,0.5]
["Nacht",null,121,null,null,null,null,null,null,null,"außerplan Arbeit/Störung","Klima Störung WE1","durchgeführte Arbeiten","Arbeiten erledigt",1,null,null,null,null,null,null,null,1]
["Nacht",null,null,null,null,null,null,null,null,null,null,"Klima Störung WE2","durchgeführte Arbeiten","Arbeiten erledigt",1,null,null,null,null,null,null,null,1]
["Nacht",null,null,null,null,null,null,null,null,null,null,null,"durchgeführte Arbeiten","Arbeiten erledigt",1,null,null,null,null,null,null,null,1]
["Nacht",null,22,null,null,null,null,null,null,null,"I1",null,"durchgeführte Arbeiten","Arbeiten erledigt",9.5,null,null,null,null,null,null,null,9.5]
["Nacht",null,null,null,null,null,null,null,null,null,"Br 1.2",null,"durchgeführte Arbeiten","Arbeiten erledigt",8,null,null,null,null,null,null,null,8]
["Nacht",null,null,null,null,null,null,null,null,null,"außerplan Arbeit/Störung",null,"durchgeführte Arbeiten","Arbeiten erledigt",24,null,null,null,null,null,null,null,24]
["Nacht",null,null,null,null,null,null,null,null,null,"außerplan Arbeit/Störung","Klima Störung WE1","durchgeführte Arbeiten","Arbeiten erledigt",null,null,null,null,null,null,null,null,0]
["Tag","Tag",null,"2025-01-03",null,null,null,null,null,null,null,null,null,null,null,null,null,null,null,null,null,null,0]
["Tag",null,122,null,null,null,null,null,null,null,"außerplan Arbeit/Störung",null,"durchgeführte Arbeiten","Arbeiten erledigt",0.5,null,null,null,null,null,null,null,0.5]
[{"$f":"IF($A$3=\"x\",IF(AND(B73=\"\",O73=\"\",AND(L73=\"\",M73=\"\",P73=\"\")),\"\",IF(B73=\"\",A72,B73)),IF($A$4=\"x\",IF(AND(D73=\"\",O73=\"\",AND(L73=\"\",M73=\"\",P73=\"\")),\"\",IF(D73=\"\",A72,D73)),\"\"))","v":"Tag"},null,null,null,null,null,null,null,null,null,null,"Lagerarbeiten","durchgeführte Arbeiten","Arbeiten erledigt",0.5,null,null,null,null,null,null,null,{"$f":"IFERROR(VALUE(IF(A73=\"\",\"\",IF(O73=\"\",0,O73))),\"\")","v":0.5}]
["Tag",null,132,null,null,null,null,null,null,null,"I1",null,"durchgeführte Arbeiten","Arbeiten erledigt",19.5,null,null,null,null,null,null,null,19.5]
["Tag",null,null,null,null,null,null,null,null,null,null,null,"durchgeführte Arbeiten","Arbeiten erledigt",2,null,null,null,null,null,null,null,2]
["Tag",null,null,null,null,null,null,null,null,null,null,null,"durchgeführte Arbeiten","Arbeiten erledigt",1,null,null,null,null,null,null,null,1]
["Tag",null,null,null,null,null,null,null,null,null,"außerplan Arbeit/Störung","Klima Störung WE1","durchgeführte Arbeiten","Arbeiten erledigt",0.5,null,null,null,null,null,null,null,0.5]
["Tag",null,null,null,null,null,null,null,null,null,"außerplan Arbeit/Störung","Klima Störung WE2","durchgeführte Arbeiten","Arbeiten erledigt",1,null,null,null,null,null,null,null,1]
["Nacht","Nacht",null,"2025-01-03",null,null,null,null,null,null,null,null,null,null,25,null,null,null,null,null,null,null,25]
["Nacht",null,19,null,null,null,null,null,null,null,"außerplan Arbeit/Störung","Störung Heizung WE1","durchgeführte Arbeiten","Arbeiten erledigt",1,null,null,null,null,null,null,null,1]
["Nacht",null,127,null,null,null,null,null,null,null,"außerplan Arbeit/Störung",null,"durchgeführte Arbeiten","Arbeiten erledigt",1,null,null,null,null,null,null,null,1]
["Nacht",null,102,null,null,null,null,null,null,null,"außerplan Arbeit/Störung","Signalbeleuchtung ","durchgeführte Arbeiten","Arbeiten erledigt",0.5,null,null,null,null,null,null,null,0.5]
["Nacht",null,null,null,null,null,null,null,null,null,"außerplan Arbeit/Störung","WC Entsorgen und Brauchwasser füllen",null,"Arbeiten erledigt",1,null,null,null,null,null,null,null,1]
["Nacht",null,145,null,null,null,null,null,null,null,"außerplan Arbeit/Störung","WC Entsorgen und Brauchwasser füllen",null,"Arbeiten erledigt",1,null,null,null,null,null,null,null,1]
["Nacht",null,null,null,null,null,null,null,null,null,"außerplan Arbeit/Störung","Störung Heizung WE2","durchgeführte Arbeiten","Arbeiten erledigt",1,null,null,null,null,null,null,null,1]
["Nacht",null,21,null,null,null,null,null,null,null,"außerplan Arbeit/Störung","WC Entsorgen und Brauchwasser füllen",null,"Arbeiten erledigt",1,null,null,null,null,null,null,null,1]
["Nacht",null,114,null,null,null,null,null,null,null,"außerplan Arbeit/Störung","Störung Indusi","durchgeführte Arbeiten","Arbeiten erledigt",1.5,null,null,null,null,null,null,null,1.5]
["Nacht",null,144,null,null,null,null,null,null,null,"außerplan Arbeit/Störung","WC Entsorgen und Brauchwasser füllen",null,"Arbeiten erledigt",1,null,null,null,null,null,null,null,1]
["Nacht",null,125,null,null,null,null,null,null,null,"außerplan Arbeit/Störung","WC Entsorgen und Brauchwasser füllen",null,"Arbeiten erledigt",1,null,null,null,null,null,null,null,1]
["Nacht",null,118,null,null,null,null,null,null,null,"außerplan Arbeit/Störung","WC Entsorgen und Brauchwasser füllen",null,"Arbeiten erledigt",1,null,null,null,null,null,null,null,1]
["Nacht",null,109,null,null,null,null,null,null,null,"Planarbeit","Diwa Störung WE1","durchgeführte Arbeiten","Übergeben",14.5,null,null,null,null,null,null,null,14.5]
["Tag","Tag",null,"2025-01-04",null,null,null,null,null,null,null,null,null,null,null,null,null,null,null,null,null,null,0]
["Tag",null,143,null,null,null,null,null,null,null,"I5",null,"durchgeführte Arbeiten","Übergeben",13,null,null,null,null,null,null,null,13]
["Tag",null,null,null,null,null,null,null,null,null,null,null,"durchgeführte Arbeiten","Arbeiten erledigt",2,null,null,null,null,null,null,null,2]
["Tag",null,null,null,null,null,null,null,null,null,null,null,"durchgeführte Arbeiten","Arbeiten erledigt",1,null,null,null,null,null,null,null,1]
["Tag",null,null,null,null,null,null,null,null,null,null,null,"durchgeführte Arbeiten","Arbeiten erledigt",2,null,null,null,null,null,null,null,2]
["Tag",null,null,null,null,null,null,null,null,null,null,null,"durchgeführte Arbeiten","Arbeiten erledigt",1,null,null,null,null,null,null,null,1]
["Tag",null,null,null,null,null,null,null,null,null,null,null,"durchgeführte Arbeiten","Arbeiten erledigt",2,null,null,null,null,null,null,null,2]
["Tag",null,109,null,null,null,null,null,null,null,null,null,"durchgeführte Arbeiten","Übergeben",3,null,null,null,null,null,null,null,3]
["Nacht","Nacht",null,"2025-01-04",null,null,null,null,null,null,null,null,null,null,24,null,null,null,null,null,null,null,24]
["Nacht",null,109,null,null,null,null,null,null,null,"außerplan Arbeit/Störung",null,"durchgeführte Arbeiten","Arbeiten erledigt",1,null,null,null,null,null,null,null,1]
["Nacht",null,130,null,null,null,null,null,null,null,"außerplan Arbeit/Störung","Schiebetritt 2Links","durchgeführte Arbeiten","Arbeiten erledigt",0.5,null,null,null,null,null,null,null,0.5]
["Nacht",null,null,null,null,null,null,null,null,null,null,null,"durchgeführte Arbeiten","Arbeiten erledigt",0.5,null,null,null,null,null,null,null,0.5]
["Nacht",null,143,null,null,null,null,null,null,null,"I5",null,"durchgeführte Arbeiten","Übergeben",22,null,null,null,null,null,null,null,22]
["Tag","Tag",null,"2025-01-05",null,null,null,null,null,null,null,null,null,null,null,null,null,null,null,null,null,null,0]
["Tag",null,143,null,null,null,null,null,null,null,"I5",null,"durchgeführte Arbeiten","Arbeiten erledigt",10,null,null,null,null,null,null,null,10]
["Tag",null,103,null,null,null,null,null,null,null,"außerplan Arbeit/Störung","WC Entsorgen und Brauchwasser füllen",null,"Arbeiten erledigt",1,null,null,null,null,null,null,null,1]
["Tag",null,14,null,null,null,null,null,null,null,"I2",null,"durchgeführte Arbeiten","Übergeben",4.5,null,null,null,null,null,null,null,4.5]
["Tag",null,null,null,null,null,null,null,null,null,null,null,"durchgeführte Arbeiten","Arbeiten erledigt",1,null,null,null,null,null,null,null,1]
["Tag",null,null,null,null,null,null,null,null,null,null,null,"durchgeführte Arbeiten","Arbeiten erledigt",4,null,null,null,null,null,null,null,4]
["Tag",null,null,null,null,null,null,null,null,null,null,null,"durchgeführte Arbeiten","Arbeiten erledigt",1,null,null,null,null,null,null,null,1]
["Tag",null,null,null,null,null,null,null,null,null,null,null,"durchgeführte Arbeiten","Arbeiten erledigt",1,null,null,null,null,null,null,null,1]
["Tag",null,121,null,null,null,null,null,null,null,"außerplan Arbeit/Störung","Störung Indusi","durchgeführte Arbeiten","Arbeiten erledigt",2.5,null,null,null,null,null,null,null,2.5]
["Nacht","Nacht",null,"2025-01-05",null,null,null,null,null,null,null,null,null,null,25,null,null,null,null,null,null,null,25]
["Nacht",null,123,null,null,null,null,null,null,null,"außerplan Arbeit/Störung",null,"durchgeführte Arbeiten","Arbeiten erledigt",0.5,null,null,null,null,null,null,null,0.5]
["Nacht",null,null,null,null,null,null,null,null,null,"außerplan Arbeit/Störung","Motoröl füllen WE1","durchgeführte Arbeiten","Arbeiten erledigt",0.5,null,null,null,null,null,null,null,0.5]
["Nacht",null,null,null,null,null,null,null,null,null,"außerplan Arbeit/Störung","Motoröl füllen WE2","durchgeführte Arbeiten","Arbeiten erledigt",1,null,null,null,null,null,null,null,1]
["Nacht",null,127,null,null,null,null,null,null,null,"außerplan Arbeit/Störung",null,"durchgeführte Arbeiten","Arbeiten erledigt",0.5,null,null,null,null,null,null,null,0.5]
["Nacht",null,null,null,null,null,null,null,null,null,null,null,"durchgeführte Arbeiten","Arbeiten erledigt",1,null,null,null,null,null,null,null,1]
["Nacht",null,109,null,null,null,null,null,null,null,"außerplan Arbeit/Störung",null,"durchgeführte Arbeiten","Arbeiten erledigt",0.5,null,null,null,null,null,null,null,0.5]
["Nacht",null,103,null,null,null,null,null,null,null,"außerplan Arbeit/Störung","Motoröl füllen WE1","durchgeführte Arbeiten","Arbeiten erledigt",0.5,null,null,null,null,null,null,null,0.5]
["Nacht",null,null,null,null,null,null,null,null,null,null,"Motoröl füllen WE2","durchgeführte Arbeiten","Arbeiten erledigt",2.5,null,null,null,null,null,null,null,2.5]
["Nacht",null,114,null,null,null,null,null,null,null,"außerplan Arbeit/Störung","Motoröl füllen WE1","durchgeführte Arbeiten","Arbeiten erledigt",0.5,null,null,null,null,null,null,null,0.5]
["Nacht",null,null,null,null,null,null,null,null,null,null,"Motoröl füllen WE2","durchgeführte Arbeiten","Arbeiten erledigt",0.5,null,null,null,null,null,null,null,0.5]
["Nacht",null,null,null,null,null,null,null,null,null,null,"WC Entsorgen und Brauchwasser füllen",null,"Arbeiten erledigt",1,null,null,null,null,null,null,null,1]
["Nacht",null,111,null,null,null,null,null,null,null,"außerplan Arbeit/Störung","WC Entsorgen und Brauchwasser füllen",null,"Arbeiten erledigt",1,null,null,null,null,null,null,null,1]
["Nacht",null,145,null,null,null,null,null,null,null,"außerplan Arbeit/Störung","Motoröl füllen WE1","durchgeführte Arbeiten","Arbeiten erledigt",0.5,null,null,null,null,null,null,null,0.5]
["Nacht",null,null,null,null,null,null,null,null,null,null,"Motoröl füllen WE2","durchgeführte Arbeiten","Arbeiten erledigt",2.5,null,null,null,null,null,null,null,2.5]
["Nacht",null,142,null,null,null,null,null,null,null,"außerplan Arbeit/Störung","Motoröl füllen WE1","durchgeführte Arbeiten","Arbeiten erledigt",0.5,null,null,null,null,null,null,null,0.5]
["Nacht",null,null,null,null,null,null,null,null,null,null,"Motoröl füllen WE2","durchgeführte Arbeiten","Arbeiten erledigt",0.5,null,null,null,null,null,null,null,0.5]
["Nacht",null,113,null,null,null,null,null,null,null,"außerplan Arbeit/Störung","Störung Bremse WE1","durchgeführte Arbeiten","Arbeiten erledigt",2,null,null,null,null,null,null,null,2]
["Nacht",null,14,null,null,null,null,null,null,null,"I2",null,"durchgeführte Arbeiten","Arbeiten erledigt",14.5,null,null,null,null,null,null,null,14.5]
["Nacht",null,null,null,null,null,null,null,null,null,null,null,"durchgeführte Arbeiten","Arbeiten erledigt",0.5,null,null,null,null,null,null,null,0.5]
["Nacht",null,null,null,null,null,null,null,null,null,null,null,"durchgeführte Arbeiten","Arbeiten erledigt",17,null,null,null,null,null,null,null,17]
["Tag","Tag",null,"2025-01-06",null,null,null,null,null,null,null,null,null,null,null,null,null,null,null,null,null,null,0]
["Tag",null,14,null,null,null,null,null,null,null,"außerplan Arbeit/Störung","Türe 2Rechts gestört","durchgeführte Arbeiten","Arbeiten erledigt",1,null,null,null,null,null,null,null,1]
[{"$f":"IF($A$3=\"x\",IF(AND(B137=\"\",O137=\"\",AND(L137=\"\",M137=\"\",P137=\"\")),\"\",IF(B137=\"\",A136,B137)),IF($A$4=\"x\",IF(AND(D137=\"\",O137=\"\",AND(L137=\"\",M137=\"\",P137=\"\")),\"\",IF(D137=\"\",A136,D137)),\"\"))","v":"Tag"},null,102,null,null,null,null,null,null,null,"I2",null,"durchgeführte Arbeiten","Arbeiten erledigt",28,null,null,null,null,null,null,null,{"$f":"IFERROR(VALUE(IF(A137=\"\",\"\",IF(O137=\"\",0,O137))),\"\")","v":28}]
["Tag",null,null,null,null,null,null,null,null,null,null,null,"durchgeführte Arbeiten","Arbeiten erledigt",3,null,null,null,null,null,null,null,3]
["Tag",null,null,null,null,null,null,null,null,null,null,null,"durchgeführte Arbeiten","Arbeiten erledigt",2,null,null,null,null,null,null,null,2]
["Tag",null,null,null,null,null,null,null,null,null,"außerplan Arbeit/Störung",null,"durchgeführte Arbeiten","Arbeiten erledigt",1,null,null,null,null,null,null,null,1]
["Tag",null,null,null,null,null,null,null,null,null,null,null,"durchgeführte Arbeiten","Arbeiten erledigt",2,null,null,null,null,null,null,null,2]
["Tag",null,null,null,null,null,null,null,null,null,null,null,"durchgeführte Arbeiten","Arbeiten erledigt",1,null,null,null,null,null,null,null,1]
["Tag",null,null,null,null,null,null,null,null,null,null,null,"durchgeführte Arbeiten","Arbeiten erledigt",1,null,null,null,null,null,null,null,1]
["Tag",null,null,null,null,null,null,null,null,null,"außerplan Arbeit/Störung",null,"durchgeführte Arbeiten","Arbeiten erledigt",1,null,null,null,null,null,null,null,1]
["Tag",null,110,null,null,null,null,null,null,null,"I2",null,"durchgeführte Arbeiten","Arbeiten erledigt",28,null,null,null,null,null,null,null,28]
["Tag",null,null,null,null,null,null,null,null,null,null,null,"durchgeführte Arbeiten","Arbeiten erledigt",2,null,null,null,null,null,null,null,2]
["Tag",null,null,null,null,null,null,null,null,null,null,null,"durchgeführte Arbeiten","Arbeiten erledigt",1,null,null,null,null,null,null,null,1]
["Tag",null,null,null,null,null,null,null,null,null,null,"Türe 1Links gestört","durchgeführte Arbeiten","Arbeiten erledigt",0.5,null,null,null,null,null,null,null,0.5]
["Tag",null,null,null,null,null,null,null,null,null,null,null,"durchgeführte Arbeiten","Arbeiten erledigt",1,null,null,null,null,null,null,null,1]
["Tag",null,null,null,null,null,null,null,null,null,null,null,"durchgeführte Arbeiten","Arbeiten erledigt",0.5,null,null,null,null,null,null,null,0.5]
["Tag",null,null,null,null,null,null,null,null,null,null,null,"durchgeführte Arbeiten","Arbeiten erledigt",1,null,null,null,null,null,null,null,1]
["Tag",null,null,null,null,null,null,null,null,null,null,null,"durchgeführte Arbeiten","Arbeiten erledigt",2,null,null,null,null,null,null,null,2]
["Tag",null,"Betreibsstoffe",null,null,null,null,null,null,null,null,null,"durchgeführte Arbeiten","Arbeiten erledigt",5,null,null,null,null,null,null,null,5]
["Nacht","Nacht",null,"2025-01-06",null,null,null,null,null,null,null,null,null,null,81,null,null,null,null,null,null,null,81]
["Nacht",null,101,null,null,null,null,null,null,null,"außerplan Arbeit/Störung",null,"durchgeführte Arbeiten","Arbeiten erledigt",0.5,null,null,null,null,null,null,null,0.5]
["Nacht",null,127,null,null,null,null,null,null,null,"außerplan Arbeit/Störung","Diwa Störung WE2","durchgeführte Arbeiten","Arbeiten erledigt",1.5,null,null,null,null,null,null,null,1.5]
["Nacht",null,108,null,null,null,null,null,null,null,"außerplan Arbeit/Störung",null,"durchgeführte Arbeiten","Arbeiten erledigt",0.5,null,null,null,null,null,null,null,0.5]
["Nacht",null,104,null,null,null,null,null,null,null,"außerplan Arbeit/Störung","WC Entsorgen und Brauchwasser füllen","durchgeführte Arbeiten","Arbeiten erledigt",1,null,null,null,null,null,null,null,1]
["Nacht",null,107,null,null,null,null,null,null,null,"außerplan Arbeit/Störung",null,"durchgeführte Arbeiten","Arbeiten erledigt",0.5,null,null,null,null,null,null,null,0.5]
["Nacht",null,null,null,null,null,null,null,null,null,"außerplan Arbeit/Störung",null,"durchgeführte Arbeiten","Arbeiten erledigt",1,null,null,null,null,null,null,null,1]
["Nacht",null,112,null,null,null,null,null,null,null,"außerplan Arbeit/Störung",null,"durchgeführte Arbeiten","Arbeiten erledigt",1,null,null,null,null,null,null,null,1]
["Nacht",null,null,null,null,null,null,null,null,null,"außerplan Arbeit/Störung",null,"durchgeführte Arbeiten","Arbeiten erledigt",1,null,null,null,null,null,null,null,1]
["Nacht",null,142,null,null,null,null,null,null,null,"außerplan Arbeit/Störung",null,"durchgeführte Arbeiten","Arbeiten erledigt",1,null,null,null,null,null,null,null,1]
["Nacht",null,null,null,null,null,null,null,null,null,null,null,"durchgeführte Arbeiten","Arbeiten erledigt",1,null,null,null,null,null,null,null,1]
["Nacht",null,123,null,null,null,null,null,null,null,"I1",null,"durchgeführte Arbeiten","Übergeben",15,null,null,null,null,null,null,null,15]
["Tag","Tag",null,"2025-01-07",null,null,null,null,null,null,null,null,null,null,null,null,null,null,null,null,null,null,0]
["Tag",null,123,null,null,null,null,null,null,null,"I1",null,"durchgeführte Arbeiten","Arbeiten erledigt",4.5,null,null,null,null,null,null,null,4.5]
["Tag",null,null,null,null,null,null,null,null,null,null,null,"durchgeführte Arbeiten","Arbeiten erledigt",2,null,null,null,null,null,null,null,2]
["Tag",null,null,null,null,null,null,null,null,null,null,null,"durchgeführte Arbeiten","Arbeiten erledigt",2,null,null,null,null,null,null,null,2]
["Tag",null,null,null,null,null,null,null,null,null,null,null,"durchgeführte Arbeiten","Arbeiten erledigt",2,null,null,null,null,null,null,null,2]
["Tag",null,null,null,null,null,null,null,null,null,null,null,"durchgeführte Arbeiten","Arbeiten erledigt",1,null,null,null,null,null,null,null,1]
["Tag",null,129,null,null,null,null,null,null,null,"außerplan Arbeit/Störung",null,"durchgeführte Arbeiten","Arbeiten erledigt",1,null,null,null,null,null,null,null,1]
["Tag",null,3,null,null,null,null,null,null,null,"außerplan Arbeit/Störung",null,"durchgeführte Arbeiten","Arbeiten erledigt",1,null,null,null,null,null,null,null,1]
["Tag",null,null,null,null,null,null,null,null,null,null,null,"durchgeführte Arbeiten","Arbeiten erledigt",1,null,null,null,null,null,null,null,1]
["Tag",null,null,null,null,null,null,null,null,null,null,null,"durchgeführte Arbeiten","Arbeiten erledigt",0.5,null,null,null,null,null,null,null,0.5]
["Nacht","Nacht",null,"2025-01-07",null,null,null,null,null,null,null,null,null,null,15,null,null,null,null,null,null,null,15]
["Nacht",null,132,null,null,null,null,null,null,null,"außerplan Arbeit/Störung",null,"durchgeführte Arbeiten","Arbeiten erledigt",1,null,null,null,null,null,null,null,1]
["Nacht",null,16,null,null,null,null,null,null,null,"außerplan Arbeit/Störung","Störung Heizung WE1","durchgeführte Arbeiten","Arbeiten erledigt",1,null,null,null,null,null,null,null,1]
["Nacht",null,127,null,null,null,null,null,null,null,"außerplan Arbeit/Störung",null,"durchgeführte Arbeiten","Arbeiten erledigt",1,null,null,null,null,null,null,null,1]
["Nacht",null,3,null,null,null,null,null,null,null,"I1",null,"durchgeführte Arbeiten","Übergeben",16.5,null,null,null,null,null,null,null,16.5]
["Nacht",null,null,null,null,null,null,null,null,null,"außerplan Arbeit/Störung",null,"durchgeführte Arbeiten","Arbeiten erledigt",0.5,null,null,null,null,null,null,null,0.5]
["Nacht",null,null,null,null,null,null,null,null,null,null,null,"durchgeführte Arbeiten","Arbeiten erledigt",2,null,null,null,null,null,null,null,2]
["Nacht",null,null,null,null,null,null,null,null,null,null,null,"durchgeführte Arbeiten","Arbeiten erledigt",1,null,null,null,null,null,null,null,1]
["Nacht",null,"Aufarbeitung",null,null,null,null,null,null,null,null,null,"durchgeführte Arbeiten","Arbeiten erledigt",1,null,null,null,null,null,null,null,1]
["Tag","Tag",null,"2025-01-08",null,null,null,null,null,null,null,null,null,null,null,null,null,null,null,null,null,null,0]
["Tag",null,3,null,null,null,null,null,null,null,"I1",null,"durchgeführte Arbeiten","Arbeiten erledigt",8,null,null,null,null,null,null,null,8]
["Tag",null,121,null,null,null,null,null,null,null,"I4",null,"durchgeführte Arbeiten","Übergeben",52,null,null,null,null,null,null,null,52]
["Tag",null,null,null,null,null,null,null,null,null,null,null,"durchgeführte Arbeiten","Arbeiten erledigt",1,null,null,null,null,null,null,null,1]
["Tag",null,null,null,null,null,null,null,null,null,"außerplan Arbeit/Störung",null,"durchgeführte Arbeiten","Arbeiten erledigt",0.5,null,null,null,null,null,null,null,0.5]
["Tag",null,null,null,null,null,null,null,null,null,"außerplan Arbeit/Störung",null,"durchgeführte Arbeiten","Arbeiten erledigt",1,null,null,null,null,null,null,null,1]
["Tag",null,null,null,null,null,null,null,null,null,"außerplan Arbeit/Störung",null,"durchgeführte Arbeiten","Arbeiten erledigt",0.5,null,null,null,null,null,null,null,0.5]
["Tag",null,null,null,null,null,null,null,null,null,"außerplan Arbeit/Störung",null,"durchgeführte Arbeiten","Arbeiten erledigt",0.5,null,null,null,null,null,null,null,0.5]
["Tag",null,null,null,null,null,null,null,null,null,null,null,"durchgeführte Arbeiten","Arbeiten erledigt",1,null,null,null,null,null,null,null,1]
["Tag",null,null,null,null,null,null,null,null,null,null,null,"durchgeführte Arbeiten","Arbeiten erledigt",2,null,null,null,null,null,null,null,2]
["Tag",null,null,null,null,null,null,null,null,null,"GSMR Frist",null,null,"Arbeiten erledigt",2,null,null,null,null,null,null,null,2]
["Tag",null,null,null,null,null,null,null,null,null,"außerplan Arbeit/Störung",null,"durchgeführte Arbeiten","Arbeiten erledigt",0.5,null,null,null,null,null,null,null,0.5]
["Tag",null,null,null,null,null,null,null,null,null,"UT-Prüfung",null,"durchgeführte Arbeiten","Arbeiten erledigt",8,null,null,null,null,null,null,null,8]
["Tag",null,null,null,null,null,null,null,null,null,null,null,"durchgeführte Arbeiten","Arbeiten erledigt",2,null,null,null,null,null,null,null,2]
["Tag",null,129,null,null,null,null,null,null,null,"Unfall",null,"durchgeführte Arbeiten","Übergeben",19.5,null,null,null,null,null,null,null,19.5]
["Tag",null,null,null,null,null,null,null,null,null,null,null,"durchgeführte Arbeiten","Arbeiten erledigt",2.5,null,null,null,null,null,null,null,2.5]
[{"$f":"IF($A$3=\"x\",IF(AND(B201=\"\",O201=\"\",AND(L201=\"\",M201=\"\",P201=\"\")),\"\",IF(B201=\"\",A200,B201)),IF($A$4=\"x\",IF(AND(D201=\"\",O201=\"\",AND(L201=\"\",M201=\"\",P201=\"\")),\"\",IF(D201=\"\",A200,D201)),\"\"))","v":"Tag"},null,null,null,null,null,null,null,null,null,null,null,"durchgeführte Arbeiten","Arbeiten erledigt",1.5,null,null,null,null,null,null,null,{"$f":"IFERROR(VALUE(IF(A201=\"\",\"\",IF(O201=\"\",0,O201))),\"\")","v":1.5}]
["Tag",null,"Aufarbeitung",null,null,null,null,null,null,null,null,"WC Hauptmodul instandgesetzt","durchgeführte Arbeiten","Arbeiten erledigt",2.5,null,null,null,null,null,null,null,2.5]
["Tag",null,"Aufarbeitung",null,null,null,null,null,null,null,null,null,"durchgeführte Arbeiten","Arbeiten erledigt",1,null,null,null,null,null,null,null,1]
["Tag",null,"Aufarbeitung",null,null,null,null,null,null,null,null,null,"durchgeführte Arbeiten","Arbeiten erledigt",0.5,null,null,null,null,null,null,null,0.5]
["Tag",null,null,null,null,null,null,null,null,null,null,"Werkstatt aufgeräumt","durchgeführte Arbeiten","Arbeiten erledigt",2.5,null,null,null,null,null,null,null,2.5]
["Tag",null,"Aufarbeitung",null,null,null,null,null,null,null,null,null,"durchgeführte Arbeiten","Arbeiten erledigt",3,null,null,null,null,null,null,null,3]
["Tag",null,117,null,null,null,null,null,null,null,"I2",null,"durchgeführte Arbeiten","Übergeben",112,null,null,null,null,null,null,null,112]
["Nacht","Nacht",null,"2025-01-08",null,null,null,null,null,null,null,null,null,null,null,null,null,null,null,null,null,null,{"$f":"IFERROR(VALUE(IF(A208=\"\",\"\",IF(O208=\"\",0,O208))),\"\")","v":0}]
["Nacht",null,128,null,null,null,null,null,null,null,"außerplan Arbeit/Störung","AWG WE2 defekt","durchgeführte Arbeiten","Arbeiten erledigt",1,null,null,null,null,null,null,null,1]
["Nacht",null,null,null,null,null,null,null,null,null,"außerplan Arbeit/Störung",null,"durchgeführte Arbeiten","Arbeiten erledigt",1,null,null,null,null,null,null,null,1]
["Nacht",null,121,null,null,null,null,null,null,null,"I4",null,"durchgeführte Arbeiten","Arbeiten erledigt",null,null,null,null,null,null,null,null,0]
["Nacht",null,102,null,null,null,null,null,null,null,"außerplan Arbeit/Störung","WC Entsorgen und Brauchwasser füllen",null,"Arbeiten erledigt",1,null,null,null,null,null,null,null,1]
["Nacht",null,122,null,null,null,null,null,null,null,"außerplan Arbeit/Störung",null,"durchgeführte Arbeiten","Arbeiten erledigt",1,null,null,null,null,null,null,null,1]
["Nacht",null,115,null,null,null,null,null,null,null,"außerplan Arbeit/Störung",null,"durchgeführte Arbeiten","Arbeiten erledigt",null,null,null,null,null,null,null,null,0]
["Nacht",null,130,null,null,null,null,null,null,null,"außerplan Arbeit/Störung",null,"durchgeführte Arbeiten","Arbeiten erledigt",0.5,null,null,null,null,null,null,null,0.5]
["Nacht",null,117,null,null,null,null,null,null,null,"I2",null,"durchgeführte Arbeiten","Arbeiten erledigt",17,null,null,null,null,null,null,null,17]
["Nacht",null,null,null,null,null,null,null,null,null,null,null,"durchgeführte Arbeiten","Arbeiten erledigt",2,null,null,null,null,null,null,null,2]
["Nacht",null,null,null,null,null,null,null,null,null,null,null,"durchgeführte Arbeiten","Arbeiten erledigt",1,null,null,null,null,null,null,null,1]
["Nacht",null,null,null,null,null,null,null,null,null,"außerplan Arbeit/Störung",null,"durchgeführte Arbeiten","Arbeiten erledigt",1.5,null,null,null,null,null,null,null,1.5]
["Tag","Tag",null,"2025-01-09",null,null,null,null,null,null,null,null,null,null,null,null,null,null,null,null,null,null,0]
["Tag",null,142,null,null,null,null,null,null,null,"außerplan Arbeit/Störung","Störung Bremse WE1","durchgeführte Arbeiten","Arbeiten erledigt",5,null,null,null,null,null,null,null,5]
["Tag",null,103,null,null,null,null,null,null,null,"I1",null,"durchgeführte Arbeiten","Arbeiten erledigt",23,null,null,null,null,null,null,null,23]
["Tag",null,null,null,null,null,null,null,null,null,"außerplan Arbeit/Störung","Störung Heizung WE2","durchgeführte Arbeiten","Arbeiten erledigt",1,null,null,null,null,null,null,null,1]
["Tag",null,null,null,null,null,null,null,null,null,"ZBF Frist",null,"durchgeführte Arbeiten","Arbeiten erledigt",2.5,null,null,null,null,null,null,null,2.5]
["Tag",null,null,null,null,null,null,null,null,null,"Indusi Frist groß",null,"durchgeführte Arbeiten","Arbeiten erledigt",3.5,null,null,null,null,null,null,null,3.5]
["Tag",null,null,null,null,null,null,null,null,null,null,null,"durchgeführte Arbeiten","Arbeiten erledigt",2,null,null,null,null,null,null,null,2]
["Tag",null,null,null,null,null,null,null,null,null,null,null,"durchgeführte Arbeiten","Arbeiten erledigt",0.5,null,null,null,null,null,null,null,0.5]
["Tag",null,null,null,null,null,null,null,null,null,"außerplan Arbeit/Störung","WC-Störung","durchgeführte Arbeiten","Arbeiten erledigt",1,null,null,null,null,null,null,null,1]
["Tag",null,null,null,null,null,null,null,null,null,null,null,"durchgeführte Arbeiten","Arbeiten erledigt",1,null,null,null,null,null,null,null,1]
["Tag",null,null,null,null,null,null,null,null,null,null,null,"durchgeführte Arbeiten","Arbeiten erledigt",0.5,null,null,null,null,null,null,null,0.5]
["Tag",null,null,null,null,null,null,null,null,null,null,"WC Entsorgen und Brauchwasser füllen","durchgeführte Arbeiten","Arbeiten erledigt",1,null,null,null,null,null,null,null,1]
["Tag",null,null,null,null,null,null,null,null,null,null,null,"durchgeführte Arbeiten","Arbeiten erledigt",1,null,null,null,null,null,null,null,1]
["Tag",null,"Aufarbeitung",null,null,null,null,null,null,null,"Planarbeit",null,"durchgeführte Arbeiten","Übergeben",8,null,null,null,null,null,null,null,8]
["Tag",null,null,null,null,null,null,null,null,null,null,"Reinigungsarbeiten Werkstatt","durchgeführte Arbeiten","Arbeiten erledigt",23,null,null,null,null,null,null,null,23]
["Tag",null,null,null,null,null,null,null,null,null,null,"Consense","durchgeführte Arbeiten","Arbeiten erledigt",5,null,null,null,null,null,null,null,5]
["Tag",null,null,null,null,null,null,null,null,null,null,null,null,"Arbeiten erledigt",2.5,null,null,null,null,null,null,null,2.5]
["Nacht","Nacht",null,"2025-01-09",null,null,null,null,null,null,null,null,null,null,80.5,null,null,null,null,null,null,null,80.5]
["Nacht",null,109,null,null,null,null,null,null,null,"außerplan Arbeit/Störung","WC-Störung","durchgeführte Arbeiten","Arbeiten erledigt",1,null,null,null,null,null,null,null,1]
["Nacht",null,111,null,null,null,null,null,null,null,"außerplan Arbeit/Störung",null,"durchgeführte Arbeiten","Arbeiten erledigt",1.5,null,null,null,null,null,null,null,1.5]
["Nacht",null,14,null,null,null,null,null,null,null,"außerplan Arbeit/Störung",null,"durchgeführte Arbeiten","Arbeiten erledigt",0.5,null,null,null,null,null,null,null,0.5]
["Nacht",null,null,null,null,null,null,null,null,null,null,null,"durchgeführte Arbeiten","Arbeiten erledigt",0.5,null,null,null,null,null,null,null,0.5]
["Nacht",null,null,null,null,null,null,null,null,null,null,null,"durchgeführte Arbeiten","Arbeiten erledigt",0.5,null,null,null,null,null,null,null,0.5]
["Nacht",null,127,null,null,null,null,null,null,null,"außerplan Arbeit/Störung",null,"durchgeführte Arbeiten","Arbeiten erledigt",0.5,null,null,null,null,null,null,null,0.5]
["Nacht",null,"Aufarbeitung",null,null,null,null,null,null,null,null,null,"durchgeführte Arbeiten","Arbeiten erledigt",4,null,null,null,null,null,null,null,4]
["Nacht",null,104,null,null,null,null,null,null,null,"außerplan Arbeit/Störung",null,"durchgeführte Arbeiten","Arbeiten erledigt",0.5,null,null,null,null,null,null,null,0.5]
["Nacht",null,118,null,null,null,null,null,null,null,"außerplan Arbeit/Störung","AWG WE1 defekt","durchgeführte Arbeiten","Arbeiten erledigt",1.5,null,null,null,null,null,null,null,1.5]
["Nacht",null,144,null,null,null,null,null,null,null,"I2",null,"durchgeführte Arbeiten","Übergeben",8.5,null,null,null,null,null,null,null,8.5]
["Nacht",null,null,null,null,null,null,null,null,null,null,"WC Entsorgen und Brauchwasser füllen","durchgeführte Arbeiten","Arbeiten erledigt",1,null,null,null,null,null,null,null,1]
["Nacht",null,null,null,null,null,null,null,null,null,null,null,"durchgeführte Arbeiten","Arbeiten erledigt",4,null,null,null,null,null,null,null,4]
["Tag","Tag",null,"2025-01-10",null,null,null,null,null,null,null,null,null,null,null,null,null,null,null,null,null,null,0]
["Tag",null,null,null,null,null,null,null,null,null,"I2",null,"durchgeführte Arbeiten",null,19.5,null,null,null,null,null,null,null,19.5]
["Tag",null,null,null,null,null,null,null,null,null,null,null,"durchgeführte Arbeiten","Arbeiten erledigt",2,null,null,null,null,null,null,null,2]
["Tag",null,null,null,null,null,null,null,null,null,null,null,"durchgeführte Arbeiten","Arbeiten erledigt",1,null,null,null,null,null,null,null,1]
["Tag",null,null,null,null,null,null,null,null,null,null,null,"durchgeführte Arbeiten","Arbeiten erledigt",0.5,null,null,null,null,null,null,null,0.5]
["Tag",null,null,null,null,null,null,null,null,null,null,null,"durchgeführte Arbeiten","Arbeiten erledigt",1,null,null,null,null,null,null,null,1]
["Tag",null,115,null,null,null,null,null,null,null,"UT-Prüfung",null,"durchgeführte Arbeiten","Arbeiten erledigt",6,null,null,null,null,null,null,null,6]
["Tag",null,null,null,null,null,null,null,null,null,null,"WC Entsorgen und Brauchwasser füllen","durchgeführte Arbeiten","Arbeiten erledigt",1,null,null,null,null,null,null,null,1]
["Tag",null,"Aufarbeitung",null,null,null,null,null,null,null,"Planarbeit",null,"durchgeführte Arbeiten","Übergeben",10,null,null,null,null,null,null,null,10]
["Nacht","Nacht",null,"2025-01-10",null,null,null,null,null,null,null,null,null,null,41,null,null,null,null,null,null,null,41]
["Nacht",null,145,null,null,null,null,null,null,null,"außerplan Arbeit/Störung","WC Entsorgen und Brauchwasser füllen",null,"Arbeiten erledigt",1,null,null,null,null,null,null,null,1]
["Nacht",null,130,null,null,null,null,null,null,null,"außerplan Arbeit/Störung","WC Entsorgen und Brauchwasser füllen",null,"Arbeiten erledigt",1,null,null,null,null,null,null,null,1]
["Nacht",null,126,null,null,null,null,null,null,null,"außerplan Arbeit/Störung","WC Entsorgen und Brauchwasser füllen",null,"Arbeiten erledigt",1,null,null,null,null,null,null,null,1]
["Nacht",null,106,null,null,null,null,null,null,null,"außerplan Arbeit/Störung","WC Entsorgen und Brauchwasser füllen",null,"Arbeiten erledigt",1,null,null,null,null,null,null,null,1]
["Nacht",null,114,null,null,null,null,null,null,null,"außerplan Arbeit/Störung","WC Entsorgen und Brauchwasser füllen",null,"Arbeiten erledigt",1,null,null,null,null,null,null,null,1]
[{"$f":"IF($A$3=\"x\",IF(AND(B265=\"\",O265=\"\",AND(L265=\"\",M265=\"\",P265=\"\")),\"\",IF(B265=\"\",A264,B265)),IF($A$4=\"x\",IF(AND(D265=\"\",O265=\"\",AND(L265=\"\",M265=\"\",P265=\"\")),\"\",IF(D265=\"\",A264,D265)),\"\"))","v":"Nacht"},null,126,null,null,null,null,null,null,null,"außerplan Arbeit/Störung","WC Entsorgen und Brauchwasser füllen",null,"Arbeiten erledigt",1,null,null,null,null,null,null,null,{"$f":"IFERROR(VALUE(IF(A265=\"\",\"\",IF(O265=\"\",0,O265))),\"\")","v":1}]
["Nacht",null,null,null,null,null,null,null,null,null,"außerplan Arbeit/Störung","Motoröl füllen WE1",null,"Arbeiten erledigt",null,null,null,null,null,null,null,null,0]
["Nacht",null,null,null,null,null,null,null,null,null,"außerplan Arbeit/Störung","Motoröl füllen WE2",null,"Arbeiten erledigt",0.5,null,null,null,null,null,null,null,0.5]
["Nacht",null,"Aufarbeitung",null,null,null,null,null,null,null,null,"WC Hauptmodul instandgesetzt","durchgeführte Arbeiten","Arbeiten erledigt",2.5,null,null,null,null,null,null,null,2.5]
["Nacht",null,128,null,null,null,null,null,null,null,"außerplan Arbeit/Störung","WC Entsorgen und Brauchwasser füllen",null,"Arbeiten erledigt",1,null,null,null,null,null,null,null,1]
["Nacht",null,5,null,null,null,null,null,null,null,"außerplan Arbeit/Störung","Funk Störung","durchgeführte Arbeiten","Arbeiten erledigt",0.5,null,null,null,null,null,null,null,0.5]
["Nacht",null,null,null,null,null,null,null,null,null,"außerplan Arbeit/Störung",null,"durchgeführte Arbeiten","Arbeiten erledigt",0.5,null,null,null,null,null,null,null,0.5]
["Nacht",null,113,null,null,null,null,null,null,null,"I1",null,null,"Übergeben",4.5,null,null,null,null,null,null,null,4.5]
["Nacht",null,null,null,null,null,null,null,null,null,"ZBF Frist",null,null,"Arbeiten erledigt",3,null,null,null,null,null,null,null,3]
["Nacht",null,null,null,null,null,null,null,null,null,null,null,"durchgeführte Arbeiten","Arbeiten erledigt",1,null,null,null,null,null,null,null,1]
["Nacht",null,null,null,null,null,null,null,null,null,null,null,"durchgeführte Arbeiten","Arbeiten erledigt",1,null,null,null,null,null,null,null,1]
["Nacht",null,null,null,null,null,null,null,null,null,null,null,"durchgeführte Arbeiten","Arbeiten erledigt",2,null,null,null,null,null,null,null,2]
["Nacht",null,null,null,null,null,null,null,null,null,null,null,"durchgeführte Arbeiten","Arbeiten erledigt",1,null,null,null,null,null,null,null,1]
["Nacht",null,null,null,null,null,null,null,null,null,null,null,"durchgeführte Arbeiten","Arbeiten erledigt",0.5,null,null,null,null,null,null,null,0.5]
["Tag","Tag",null,"2025-01-11",null,null,null,null,null,null,null,null,null,null,null,null,null,null,null,null,null,null,0]
["Tag",null,106,null,null,null,null,null,null,null,"UT-Prüfung",null,"durchgeführte Arbeiten","Arbeiten erledigt",5,null,null,null,null,null,null,null,5]
["",null,null,null,null,null,null,null,null,null,null,null,null,null,null,null,null,null,null,null,null,null,""]
["",null,113,null,null,null,null,null,null,null,"I1",null,"durchgeführte Arbeiten","Arbeiten erledigt",15,null,null,null,null,null,null,null,""]
["",null,null,null,null,null,null,null,null,null,null,null,"durchgeführte Arbeiten",null,15,null,null,null,null,null,null,null,""]
["",null,null,null,null,null,null,null,null,null,null,null,"durchgeführte Arbeiten",null,null,null,null,null,null,null,null,null,""]
["",null,null,null,null,null,null,null,null,null,null,null,"durchgeführte Arbeiten",null,null,null,null,null,null,null,null,null,""]
["",null,127,null,null,null,null,null,null,null,"außerplan Arbeit/Störung","Klima Störung WE2","durchgeführte Arbeiten","Arbeiten erledigt",1,null,null,null,null,null,null,null,""]
["Nacht","Nacht",null,"2025-01-11",null,null,null,null,null,null,null,null,null,null,null,null,null,null,null,null,null,null,0]
["Nacht",null,131,null,null,null,null,null,null,null,"außerplan Arbeit/Störung",null,"durchgeführte Arbeiten",null,0.5,null,null,null,null,null,null,null,0.5]
["Nacht",null,110,null,null,null,null,null,null,null,"außerplan Arbeit/Störung",null,"durchgeführte Arbeiten","Arbeiten erledigt",0.5,null,null,null,null,null,null,null,0.5]
["Nacht",null,115,null,null,null,null,null,null,null,"außerplan Arbeit/Störung",null,"durchgeführte Arbeiten","Arbeiten erledigt",0.5,null,null,null,null,null,null,null,0.5]
["Nacht",null,null,null,null,null,null,null,null,null,"außerplan Arbeit/Störung",null,"durchgeführte Arbeiten","Arbeiten erledigt",1,null,null,null,null,null,null,null,1]
["Nacht",null,105,null,null,null,null,null,null,null,null,"WC Entsorgen und Brauchwasser füllen",null,"Arbeiten erledigt",1,null,null,null,null,null,null,null,1]
["Nacht",null,19,null,null,null,null,null,null,null,"außerplan Arbeit/Störung","Störung Heizung WE2","durchgeführte Arbeiten","Arbeiten erledigt",2,null,null,null,null,null,null,null,2]
["Nacht",null,null,null,null,null,null,null,null,null,null,null,"durchgeführte Arbeiten","Arbeiten erledigt",0.5,null,null,null,null,null,null,null,0.5]
["Nacht",null,128,null,null,null,null,null,null,null,"I1",null,null,null,12.5,null,null,null,null,null,null,null,12.5]
["Nacht",null,null,null,null,null,null,null,null,null,null,null,"durchgeführte Arbeiten","Arbeiten erledigt",2,null,null,null,null,null,null,null,2]
["Nacht",null,null,null,null,null,null,null,null,null,null,null,"durchgeführte Arbeiten","Arbeiten erledigt",2,null,null,null,null,null,null,null,2]
["Nacht",null,null,null,null,null,null,null,null,null,null,null,"durchgeführte Arbeiten","Arbeiten erledigt",1,null,null,null,null,null,null,null,1]
["Nacht",null,null,null,null,null,null,null,null,null,null,null,"durchgeführte Arbeiten","Arbeiten erledigt",0.5,null,null,null,null,null,null,null,0.5]
["Nacht",null,null,null,null,null,null,null,null,null,null,null,"durchgeführte Arbeiten","Arbeiten erledigt",24,null,null,null,null,null,null,null,24]
["Nacht",null,null,null,null,null,null,null,null,null,null,null,"durchgeführte Arbeiten","Arbeiten erledigt",null,null,null,null,null,null,null,null,0]
["Tag","Tag",null,"2025-01-12",null,null,null,null,null,null,null,null,null,null,null,null,null,null,null,null,null,null,0]
["Tag",null,122,null,null,null,null,null,null,null,"UT-Prüfung",null,"durchgeführte Arbeiten","Arbeiten erledigt",6,null,null,null,null,null,null,null,6]
["Tag",null,128,null,null,null,null,null,null,null,"I1",null,null,null,11.5,null,null,null,null,null,null,null,11.5]
["Tag",null,null,null,null,null,null,null,null,null,null,null,"Wc entsorgt, BW gefüllt",null,1,null,null,null,null,null,null,null,1]
["Tag",null,null,null,null,null,null,null,null,null,"Planarbeit","Känäle gereinigt","durchgeführte Arbeiten",null,5.5,null,null,null,null,null,null,null,5.5]
["Nacht","Nacht",null,"2025-01-12",null,null,null,null,null,null,null,null,null,null,24,null,null,null,null,null,null,null,24]
["Nacht",null,144,null,null,null,null,null,null,null,"außerplan Arbeit/Störung",null,"durchgeführte Arbeiten","Arbeiten erledigt",4,null,null,null,null,null,null,null,4]
["Nacht",null,7,null,null,null,null,null,null,null,"außerplan Arbeit/Störung",null,"durchgeführte Arbeiten","Arbeiten erledigt",0.5,null,null,null,null,null,null,null,0.5]
["Nacht",null,131,null,null,null,null,null,null,null,"außerplan Arbeit/Störung","Störung Heizung WE2","durchgeführte Arbeiten","Arbeiten erledigt",2,null,null,null,null,null,null,null,2]
["Nacht",null,108,null,null,null,null,null,null,null,"außerplan Arbeit/Störung","Funk Störung","durchgeführte Arbeiten","Arbeiten erledigt",3,null,null,null,null,null,null,null,3]
["Nacht",null,null,null,null,null,null,null,null,null,null,"Türe 1Rechts gestört","durchgeführte Arbeiten","Arbeiten erledigt",0.5,null,null,null,null,null,null,null,0.5]
["Nacht",null,null,null,null,null,null,null,null,null,null,null,"durchgeführte Arbeiten","Arbeiten erledigt",0.5,null,null,null,null,null,null,null,0.5]
["Nacht",null,115,null,null,null,null,null,null,null,"I3",null,null,"Übergeben",8.5,null,null,null,null,null,null,null,8.5]
["Nacht",null,null,null,null,null,null,null,null,null,"GSMR Frist",null,"durchgeführte Arbeiten","Arbeiten erledigt",2,null,null,null,null,null,null,null,2]
["Nacht",null,null,null,null,null,null,null,null,null,null,null,"durchgeführte Arbeiten","Arbeiten erledigt",2,null,null,null,null,null,null,null,2]
["Nacht",null,null,null,null,null,null,null,null,null,null,null,"durchgeführte Arbeiten","Arbeiten erledigt",1,null,null,null,null,null,null,null,1]
["Tag","Tag",null,"2025-01-13",null,null,null,null,null,null,null,null,null,null,null,null,null,null,null,null,null,null,0]
["Tag",null,130,null,null,null,null,null,null,null,"außerplan Arbeit/Störung",null,"durchgeführte Arbeiten","Arbeiten erledigt",1,null,null,null,null,null,null,null,1]
["Tag",null,null,null,null,null,null,null,null,null,null,null,"durchgeführte Arbeiten","Arbeiten erledigt",1.5,null,null,null,null,null,null,null,1.5]
["Tag",null,129,null,null,null,null,null,null,null,null,null,"durchgeführte Arbeiten",null,1,null,null,null,null,null,null,null,1]
["Tag",null,141,null,null,null,null,null,null,null,"I1",null,"durchgeführte Arbeiten","Übergeben",1.5,null,null,null,null,null,null,null,1.5]
["Tag",null,null,null,null,null,null,null,null,null,"außerplan Arbeit/Störung",null,"durchgeführte Arbeiten","Arbeiten erledigt",4,null,null,null,null,null,null,null,4]
["Tag",null,115,null,null,null,null,null,null,null,"I3",null,"durchgeführte Arbeiten","Arbeiten erledigt",30,null,null,null,null,null,null,null,30]
["Tag",null,null,null,null,null,null,null,null,null,null,null,"durchgeführte Arbeiten","Arbeiten erledigt",1,null,null,null,null,null,null,null,1]
["Tag",null,null,null,null,null,null,null,null,null,null,null,"durchgeführte Arbeiten","Arbeiten erledigt",0.5,null,null,null,null,null,null,null,0.5]
["Nacht","Nacht",null,"2025-01-13",null,null,null,null,null,null,null,null,null,null,40.5,null,null,null,null,null,null,null,40.5]
["Nacht",null,4,null,null,null,null,null,null,null,"außerplan Arbeit/Störung",null,"durchgeführte Arbeiten","Arbeiten erledigt",0.5,null,null,null,null,null,null,null,0.5]
[{"$f":"IF($A$3=\"x\",IF(AND(B329=\"\",O329=\"\",AND(L329=\"\",M329=\"\",P329=\"\")),\"\",IF(B329=\"\",A328,B329)),IF($A$4=\"x\",IF(AND(D329=\"\",O329=\"\",AND(L329=\"\",M329=\"\",P329=\"\")),\"\",IF(D329=\"\",A328,D329)),\"\"))","v":"Nacht"},null,15,null,null,null,null,null,null,null,"außerplan Arbeit/Störung","WC-Störung","durchgeführte Arbeiten","Arbeiten erledigt",1,null,null,null,null,null,null,null,{"$f":"IFERROR(VALUE(IF(A329=\"\",\"\",IF(O329=\"\",0,O329))),\"\")","v":1}]
["Nacht",null,109,null,null,null,null,null,null,null,"außerplan Arbeit/Störung","WC-Störung","durchgeführte Arbeiten","Arbeiten erledigt",2,null,null,null,null,null,null,null,2]
["Nacht",null,105,null,null,null,null,null,null,null,"UT-Prüfung",null,"durchgeführte Arbeiten","Arbeiten erledigt",5,null,null,null,null,null,null,null,5]
["Nacht",null,null,null,null,null,null,null,null,null,"außerplan Arbeit/Störung",null,"durchgeführte Arbeiten","Arbeiten erledigt",0.5,null,null,null,null,null,null,null,0.5]
["Nacht",null,128,null,null,null,null,null,null,null,"Unfall",null,"durchgeführte Arbeiten","Arbeiten erledigt",0.5,null,null,null,null,null,null,null,0.5]
["Nacht",null,141,null,null,null,null,null,null,null,"I1",null,"durchgeführte Arbeiten","Arbeiten erledigt",14,null,null,null,null,null,null,null,14]
["Nacht",null,null,null,null,null,null,null,null,null,"Planarbeit",null,"durchgeführte Arbeiten","Arbeiten erledigt",2,null,null,null,null,null,null,null,2]
["Nacht",null,null,null,null,null,null,null,null,null,"Planarbeit",null,"durchgeführte Arbeiten","Arbeiten erledigt",1,null,null,null,null,null,null,null,1]
["Nacht",null,null,null,null,null,null,null,null,null,"Planarbeit",null,"durchgeführte Arbeiten","Arbeiten erledigt",2,null,null,null,null,null,null,null,2]
["Nacht",null,null,null,null,null,null,null,null,null,"außerplan Arbeit/Störung",null,"durchgeführte Arbeiten","Arbeiten erledigt",1,null,null,null,null,null,null,null,1]
["Nacht",null,null,null,null,null,null,null,null,null,"außerplan Arbeit/Störung","WC-Störung","durchgeführte Arbeiten","Arbeiten erledigt",1.5,null,null,null,null,null,null,null,1.5]
["Nacht",null,124,null,null,null,null,null,null,null,"außerplan Arbeit/Störung","Türe 1Links gestört","durchgeführte Arbeiten","Arbeiten erledigt",0.5,null,null,null,null,null,null,null,0.5]
["Nacht",null,106,null,null,null,null,null,null,null,"Unfall",null,"durchgeführte Arbeiten","Arbeiten erledigt",0.5,null,null,null,null,null,null,null,0.5]
["Tag","Tag",null,"2025-01-14",null,null,null,null,null,null,null,null,null,null,null,null,null,null,null,null,null,null,0]
["Tag",null,142,null,null,null,null,null,null,null,"I1",null,"durchgeführte Arbeiten","Arbeiten erledigt",24,null,null,null,null,null,null,null,24]
["Tag",null,null,null,null,null,null,null,null,null,null,null,"durchgeführte Arbeiten","Arbeiten erledigt",2,null,null,null,null,null,null,null,2]
["Tag",null,null,null,null,null,null,null,null,null,null,null,"durchgeführte Arbeiten","Arbeiten erledigt",1,null,null,null,null,null,null,null,1]
["Tag",null,null,null,null,null,null,null,null,null,null,null,"durchgeführte Arbeiten","Arbeiten erledigt",1,null,null,null,null,null,null,null,1]
["Tag",null,null,null,null,null,null,null,null,null,null,null,"durchgeführte Arbeiten","Arbeiten erledigt",0.5,null,null,null,null,null,null,null,0.5]
["Tag",null,null,null,null,null,null,null,null,null,null,null,"durchgeführte Arbeiten","Arbeiten erledigt",0.5,null,null,null,null,null,null,null,0.5]
["Tag",null,null,null,null,null,null,null,null,null,null,null,"durchgeführte Arbeiten","Arbeiten erledigt",1,null,null,null,null,null,null,null,1]
["Tag",null,null,null,null,null,null,null,null,null,null,null,"durchgeführte Arbeiten","Arbeiten erledigt",1.5,null,null,null,null,null,null,null,1.5]
["Tag",null,null,null,null,null,null,null,null,null,null,null,"durchgeführte Arbeiten","Arbeiten erledigt",0.5,null,null,null,null,null,null,null,0.5]
["Tag",null,null,null,null,null,null,null,null,null,null,null,"durchgeführte Arbeiten","Arbeiten erledigt",0.5,null,null,null,null,null,null,null,0.5]
["Tag",null,4,null,null,null,null,null,null,null,"außerplan Arbeit/Störung",null,"durchgeführte Arbeiten","Arbeiten erledigt",6,null,null,null,null,null,null,null,6]
["Tag",null,null,null,null,null,null,null,null,null,null,null,"durchgeführte Arbeiten",null,38.5,null,null,null,null,null,null,null,38.5]
["Tag",null,127,null,null,null,null,null,null,null,"Unfall",null,"durchgeführte Arbeiten","Übergeben",20,null,null,null,null,null,null,null,20]
["Nacht","Nacht",null,"2025-01-14",null,null,null,null,null,null,null,null,null,null,20,null,null,null,null,null,null,null,20]
["Nacht",null,102,null,null,null,null,null,null,null,"außerplan Arbeit/Störung","Signalbeleuchtung ","durchgeführte Arbeiten","Arbeiten erledigt",1,null,null,null,null,null,null,null,1]
["Nacht",null,17,null,null,null,null,null,null,null,"außerplan Arbeit/Störung","WC Entsorgen und Brauchwasser füllen","durchgeführte Arbeiten","Arbeiten erledigt",1,null,null,null,null,null,null,null,1]
["Nacht",null,null,null,null,null,null,null,null,null,"außerplan Arbeit/Störung",null,"durchgeführte Arbeiten","Arbeiten erledigt",0.5,null,null,null,null,null,null,null,0.5]
["Nacht",null,128,null,null,null,null,null,null,null,"außerplan Arbeit/Störung","WC Entsorgen und Brauchwasser füllen","durchgeführte Arbeiten","Arbeiten erledigt",1,null,null,null,null,null,null,null,1]
["Nacht",null,4,null,null,null,null,null,null,null,"außerplan Arbeit/Störung","Klima Störung WE2","durchgeführte Arbeiten","Arbeiten erledigt",4,null,null,null,null,null,null,null,4]
["Nacht",null,23,null,null,null,null,null,null,null,"außerplan Arbeit/Störung","Störung Indusi","durchgeführte Arbeiten","Arbeiten erledigt",0.5,null,null,null,null,null,null,null,0.5]
["Nacht",null,null,null,null,null,null,null,null,null,"außerplan Arbeit/Störung","Signalbeleuchtung ","durchgeführte Arbeiten","Arbeiten erledigt",0.5,null,null,null,null,null,null,null,0.5]
["Nacht",null,123,null,null,null,null,null,null,null,"außerplan Arbeit/Störung","Störung Bremse WE1","durchgeführte Arbeiten","Arbeiten erledigt",4,null,null,null,null,null,null,null,4]
["Nacht",null,106,null,null,null,null,null,null,null,"außerplan Arbeit/Störung","Motorenöl","durchgeführte Arbeiten","Arbeiten erledigt",0.5,null,null,null,null,null,null,null,0.5]
["Nacht",null,144,null,null,null,null,null,null,null,"außerplan Arbeit/Störung","Klima Störung WE1","durchgeführte Arbeiten","Arbeiten erledigt",1,null,null,null,null,null,null,null,1]
["Nacht",null,124,null,null,null,null,null,null,null,"Unfall","Wildschaden","durchgeführte Arbeiten","Arbeiten erledigt",0.5,null,null,null,null,null,null,null,0.5]
["Nacht",null,17,null,null,null,null,null,null,null,"I3",null,"durchgeführte Arbeiten","Übergeben",13.5,null,null,null,null,null,null,null,13.5]
["Nacht",null,null,null,null,null,null,null,null,null,"außerplan Arbeit/Störung","Klima Störung WE2","durchgeführte Arbeiten","Arbeiten erledigt",0.5,null,null,null,null,null,null,null,0.5]
["Nacht",null,null,null,null,null,null,null,null,null,"außerplan Arbeit/Störung","Klima Störung WE1","durchgeführte Arbeiten","Arbeiten erledigt",2.5,null,null,null,null,null,null,null,2.5]
["Nacht",null,null,null,null,null,null,null,null,null,null,null,"durchgeführte Arbeiten","Arbeiten erledigt",1,null,null,null,null,null,null,null,1]
["Tag","Tag",null,"2025-01-15",null,null,null,null,null,null,null,null,null,null,null,null,null,null,null,null,null,null,0]
["Tag",null,17,null,null,null,null,null,null,null,"I3",null,"durchgeführte Arbeiten",null,22.5,null,null,null,null,null,null,null,22.5]
["Tag",null,null,null,null,null,null,null,null,null,"Indusi Frist groß",null,"durchgeführte Arbeiten",null,3.5,null,null,null,null,null,null,null,3.5]
["Tag",null,null,null,null,null,null,null,null,null,null,null,"durchgeführte Arbeiten",null,0.5,null,null,null,null,null,null,null,0.5]
["Tag",null,null,null,null,null,null,null,null,null,null,null,"durchgeführte Arbeiten",null,0.5,null,null,null,null,null,null,null,0.5]
["Tag",null,null,null,null,null,null,null,null,null,"Br 1.2",null,"durchgeführte Arbeiten",null,8,null,null,null,null,null,null,null,8]
["Tag",null,130,null,null,null,null,null,null,null,"außerplan Arbeit/Störung","WC Entsorgen und Brauchwasser füllen","durchgeführte Arbeiten","Arbeiten erledigt",1,null,null,null,null,null,null,null,1]
["Tag",null,108,null,null,null,null,null,null,null,"außerplan Arbeit/Störung","WC Entsorgen und Brauchwasser füllen","durchgeführte Arbeiten","Arbeiten erledigt",1,null,null,null,null,null,null,null,1]
["Tag",null,null,null,null,null,null,null,null,null,"UT-Prüfung",null,"durchgeführte Arbeiten","Arbeiten erledigt",6,null,null,null,null,null,null,null,6]
["Tag",null,null,null,null,null,null,null,null,null,"außerplan Arbeit/Störung","Diwa Störung WE2","durchgeführte Arbeiten","Arbeiten erledigt",3,null,null,null,null,null,null,null,3]
["Tag",null,127,null,null,null,null,null,null,null,"Unfall",null,"durchgeführte Arbeiten","Übergeben",21,null,null,null,null,null,null,null,21]
["Tag",null,null,null,null,null,null,null,null,null,null,null,"durchgeführte Arbeiten","Arbeiten erledigt",1.5,null,null,null,null,null,null,null,1.5]
["Tag",null,null,null,null,null,null,null,null,null,null,null,"durchgeführte Arbeiten","Arbeiten erledigt",0.5,null,null,null,null,null,null,null,0.5]
["Tag",null,null,null,null,null,null,null,null,null,null,null,"durchgeführte Arbeiten","Arbeiten erledigt",0.5,null,null,null,null,null,null,null,0.5]
["Tag",null,null,null,null,null,null,null,null,null,null,null,"durchgeführte Arbeiten","Arbeiten erledigt",1,null,null,null,null,null,null,null,1]
["Tag",null,129,null,null,null,null,null,null,null,"außerplan Arbeit/Störung",null,"durchgeführte Arbeiten","Arbeiten erledigt",2.5,null,null,null,null,null,null,null,2.5]
["Tag",null,null,null,null,null,null,null,null,null,null,null,"durchgeführte Arbeiten","Arbeiten erledigt",1,null,null,null,null,null,null,null,1]
["Nacht","Nacht",null,"2025-01-15",null,null,null,null,null,null,null,null,null,null,74,null,null,null,null,null,null,null,74]
["Nacht",null,125,null,null,null,null,null,null,null,"außerplan Arbeit/Störung","Klima Störung WE2","durchgeführte Arbeiten","Arbeiten erledigt",1,null,null,null,null,null,null,null,1]
["Nacht",null,null,null,null,null,null,null,null,null,"außerplan Arbeit/Störung","Klima Störung WE1","durchgeführte Arbeiten","Arbeiten erledigt",1,null,null,null,null,null,null,null,1]
["Nacht",null,126,null,null,null,null,null,null,null,"außerplan Arbeit/Störung","WC Entsorgen und Brauchwasser füllen","durchgeführte Arbeiten","Arbeiten erledigt",1,null,null,null,null,null,null,null,1]
[{"$f":"IF($A$3=\"x\",IF(AND(B393=\"\",O393=\"\",AND(L393=\"\",M393=\"\",P393=\"\")),\"\",IF(B393=\"\",A392,B393)),IF($A$4=\"x\",IF(AND(D393=\"\",O393=\"\",AND(L393=\"\",M393=\"\",P393=\"\")),\"\",IF(D393=\"\",A392,D393)),\"\"))","v":"Nacht"},null,132,null,null,null,null,null,null,null,"außerplan Arbeit/Störung",null,"durchgeführte Arbeiten","Arbeiten erledigt",0.5,null,null,null,null,null,null,null,{"$f":"IFERROR(VALUE(IF(A393=\"\",\"\",IF(O393=\"\",0,O393))),\"\")","v":0.5}]
["Nacht",null,141,null,null,null,null,null,null,null,"außerplan Arbeit/Störung","WC Entsorgen und Brauchwasser füllen","durchgeführte Arbeiten","Arbeiten erledigt",1,null,null,null,null,null,null,null,1]
["Nacht",null,142,null,null,null,null,null,null,null,"außerplan Arbeit/Störung",null,"durchgeführte Arbeiten","Arbeiten erledigt",0.5,null,null,null,null,null,null,null,0.5]
["Nacht",null,124,null,null,null,null,null,null,null,"I1",null,"durchgeführte Arbeiten","Übergeben",10,null,null,null,null,null,null,null,10]
["Nacht",null,null,null,null,null,null,null,null,null,"außerplan Arbeit/Störung",null,"durchgeführte Arbeiten","Arbeiten erledigt",0.5,null,null,null,null,null,null,null,0.5]
["Nacht",null,null,null,null,null,null,null,null,null,"außerplan Arbeit/Störung",null,"durchgeführte Arbeiten","Arbeiten erledigt",1,null,null,null,null,null,null,null,1]
["Nacht",null,null,null,null,null,null,null,null,null,"außerplan Arbeit/Störung","Klima Störung WE1","durchgeführte Arbeiten","Arbeiten erledigt",0.5,null,null,null,null,null,null,null,0.5]
["Nacht",null,127,null,null,null,null,null,null,null,"außerplan Arbeit/Störung",null,"durchgeführte Arbeiten","Arbeiten erledigt",15,null,null,null,null,null,null,null,15]
["Tag","Tag",null,"2025-01-16",null,null,null,null,null,null,null,null,null,null,null,null,null,null,null,null,null,null,0]
["Tag",null,128,null,null,null,null,null,null,null,"außerplan Arbeit/Störung","Diwa Störung WE2","durchgeführte Arbeiten","Arbeiten erledigt",1,null,null,null,null,null,null,null,1]
["Tag",null,102,null,null,null,null,null,null,null,"außerplan Arbeit/Störung",null,"durchgeführte Arbeiten","Arbeiten erledigt",0.5,null,null,null,null,null,null,null,0.5]
["Tag",null,124,null,null,null,null,null,null,null,"I1",null,"durchgeführte Arbeiten","Arbeiten erledigt",15,null,null,null,null,null,null,null,15]
["Tag",null,null,null,null,null,null,null,null,null,null,null,"durchgeführte Arbeiten","Arbeiten erledigt",0.5,null,null,null,null,null,null,null,0.5]
["Tag",null,null,null,null,null,null,null,null,null,null,null,"durchgeführte Arbeiten","Arbeiten erledigt",1,null,null,null,null,null,null,null,1]
["Tag",null,null,null,null,null,null,null,null,null,null,null,"durchgeführte Arbeiten","Arbeiten erledigt",0.5,null,null,null,null,null,null,null,0.5]
["Tag",null,null,null,null,null,null,null,null,null,null,null,"durchgeführte Arbeiten","Arbeiten erledigt",2,null,null,null,null,null,null,null,2]
["Tag",null,null,null,null,null,null,null,null,null,null,null,"durchgeführte Arbeiten","Arbeiten erledigt",1,null,null,null,null,null,null,null,1]
["Tag",null,null,null,null,null,null,null,null,null,null,null,"durchgeführte Arbeiten","Arbeiten erledigt",1.5,null,null,null,null,null,null,null,1.5]
["Tag",null,null,null,null,null,null,null,null,null,null,null,"durchgeführte Arbeiten","Arbeiten erledigt",6,null,null,null,null,null,null,null,6]
["Tag",null,null,null,null,null,null,null,null,null,null,null,"durchgeführte Arbeiten","Arbeiten erledigt",1,null,null,null,null,null,null,null,1]
["Tag",null,null,null,null,null,null,null,null,null,null,null,"durchgeführte Arbeiten","Arbeiten erledigt",0.5,null,null,null,null,null,null,null,0.5]
["Tag",null,null,null,null,null,null,null,null,null,null,null,"durchgeführte Arbeiten","Arbeiten erledigt",0.5,null,null,null,null,null,null,null,0.5]
["Tag",null,null,null,null,null,null,null,null,null,null,null,"durchgeführte Arbeiten","Arbeiten erledigt",0.5,null,null,null,null,null,null,null,0.5]
["Tag",null,144,null,null,null,null,null,null,null,"Unfall",null,"durchgeführte Arbeiten","Arbeiten erledigt",2,null,null,null,null,null,null,null,2]
["Tag",null,108,null,null,null,null,null,null,null,"außerplan Arbeit/Störung",null,"durchgeführte Arbeiten","Arbeiten erledigt",1,null,null,null,null,null,null,null,1]
["Tag",null,15,null,null,null,null,null,null,null,"I1",null,"durchgeführte Arbeiten","Übergeben",13.5,null,null,null,null,null,null,null,13.5]
["Tag",null,null,null,null,null,null,null,null,null,null,null,"durchgeführte Arbeiten","Arbeiten erledigt",1,null,null,null,null,null,null,null,1]
["Tag",null,null,null,null,null,null,null,null,null,"außerplan Arbeit/Störung",null,"durchgeführte Arbeiten","Arbeiten erledigt",1,null,null,null,null,null,null,null,1]
["Tag",null,null,null,null,null,null,null,null,null,null,null,"durchgeführte Arbeiten","Arbeiten erledigt",1,null,null,null,null,null,null,null,1]
["Nacht","Nacht",null,"2025-01-16",null,null,null,null,null,null,null,null,null,null,51,null,null,null,null,null,null,null,51]
["Nacht",null,113,null,null,null,null,null,null,null,"außerplan Arbeit/Störung",null,"durchgeführte Arbeiten","Arbeiten erledigt",0.5,null,null,null,null,null,null,null,0.5]
["Nacht",null,22,null,null,null,null,null,null,null,"außerplan Arbeit/Störung",null,"durchgeführte Arbeiten","Arbeiten erledigt",1,null,null,null,null,null,null,null,1]
["Nacht",null,null,null,null,null,null,null,null,null,"außerplan Arbeit/Störung",null,"durchgeführte Arbeiten","Arbeiten erledigt",1,null,null,null,null,null,null,null,1]
["Nacht",null,141,null,null,null,null,null,null,null,"außerplan Arbeit/Störung","Störung Bremse","durchgeführte Arbeiten","Arbeiten erledigt",10,null,null,null,null,null,null,null,10]
["Nacht",null,15,null,null,null,null,null,null,null,"I1",null,"durchgeführte Arbeiten","Arbeiten erledigt",3.5,null,null,null,null,null,null,null,3.5]
["Nacht",null,121,null,null,null,null,null,null,null,"außerplan Arbeit/Störung","Störung Leittechnik","durchgeführte Arbeiten","Arbeiten erledigt",1,null,null,null,null,null,null,null,1]
["Nacht",null,130,null,null,null,null,null,null,null,"außerplan Arbeit/Störung",null,"durchgeführte Arbeiten","Arbeiten erledigt",0.5,null,null,null,null,null,null,null,0.5]
["Nacht",null,null,null,null,null,null,null,null,null,"außerplan Arbeit/Störung","Flachstellen","durchgeführte Arbeiten","Arbeiten erledigt",0.5,null,null,null,null,null,null,null,0.5]
["Nacht",null,null,null,null,null,null,null,null,null,"außerplan Arbeit/Störung",null,"durchgeführte Arbeiten","Arbeiten erledigt",0.5,null,null,null,null,null,null,null,0.5]
["Nacht",null,null,null,null,null,null,null,null,null,"außerplan Arbeit/Störung",null,"durchgeführte Arbeiten","Arbeiten erledigt",0.5,null,null,null,null,null,null,null,0.5]
["Nacht",null,114,null,null,null,null,null,null,null,"I1",null,"durchgeführte Arbeiten","Übergeben",2,null,null,null,null,null,null,null,2]
["Nacht",null,null,null,null,null,null,null,null,null,"Planarbeit",null,"durchgeführte Arbeiten","Arbeiten erledigt",6,null,null,null,null,null,null,null,6]
["Nacht",null,null,null,null,null,null,null,null,null,"Planarbeit",null,"durchgeführte Arbeiten","Arbeiten erledigt",2,null,null,null,null,null,null,null,2]
["Nacht",null,null,null,null,null,null,null,null,null,"Planarbeit",null,"durchgeführte Arbeiten","Arbeiten erledigt",3,null,null,null,null,null,null,null,3]
["Tag","Tag",null,"2025-01-17",null,null,null,null,null,null,null,null,null,null,null,null,null,null,null,null,null,null,0]
["Tag",null,114,null,null,null,null,null,null,null,"I1",null,"durchgeführte Arbeiten","Arbeiten erledigt",18,null,null,null,null,null,null,null,18]
["Tag",null,null,null,null,null,null,null,null,null,"außerplan Arbeit/Störung","Störung Heizung WE1","durchgeführte Arbeiten","Arbeiten erledigt",1,null,null,null,null,null,null,null,1]
["Tag",null,null,null,null,null,null,null,null,null,null,null,"durchgeführte Arbeiten","Arbeiten erledigt",2,null,null,null,null,null,null,null,2]
["Tag",null,null,null,null,null,null,null,null,null,null,null,"durchgeführte Arbeiten","Arbeiten erledigt",1,null,null,null,null,null,null,null,1]
["Tag",null,null,null,null,null,null,null,null,null,"Br 1.2",null,"durchgeführte Arbeiten","Arbeiten erledigt",8,null,null,null,null,null,null,null,8]
["Tag",null,null,null,null,null,null,null,null,null,"außerplan Arbeit/Störung",null,"durchgeführte Arbeiten","Arbeiten erledigt",1.5,null,null,null,null,null,null,null,1.5]
["Tag",null,null,null,null,null,null,null,null,null,"außerplan Arbeit/Störung",null,"durchgeführte Arbeiten","Arbeiten erledigt",1,null,null,null,null,null,null,null,1]
["Tag",null,null,null,null,null,null,null,null,null,null,null,"durchgeführte Arbeiten","Arbeiten erledigt",2,null,null,null,null,null,null,null,2]
["Tag",null,null,null,null,null,null,null,null,null,null,null,"durchgeführte Arbeiten","Arbeiten erledigt",1,null,null,null,null,null,null,null,1]
["Tag",null,null,null,null,null,null,null,null,null,null,null,"durchgeführte Arbeiten","Arbeiten erledigt",35.5,null,null,null,null,null,null,null,35.5]
["Tag",null,125,null,null,null,null,null,null,null,"I1",null,"durchgeführte Arbeiten","Übergeben",3,null,null,null,null,null,null,null,3]
["Tag",null,null,null,null,null,null,null,null,null,"außerplan Arbeit/Störung","Störung Heizung WE2","durchgeführte Arbeiten","Arbeiten erledigt",0.5,null,null,null,null,null,null,null,0.5]
["Tag",null,null,null,null,null,null,null,null,null,null,null,"durchgeführte Arbeiten","Arbeiten erledigt",1.5,null,null,null,null,null,null,null,1.5]
["Tag",null,null,null,null,null,null,null,null,null,null,null,"durchgeführte Arbeiten","Arbeiten erledigt",0.5,null,null,null,null,null,null,null,0.5]
["Nacht","Nacht",null,"2025-01-17",null,null,null,null,null,null,null,null,null,null,5.5,null,null,null,null,null,null,null,5.5]
["Nacht",null,109,null,null,null,null,null,null,null,"außerplan Arbeit/Störung",null,"durchgeführte Arbeiten","Arbeiten erledigt",null,null,null,null,null,null,null,null,0]
["Nacht",null,143,null,null,null,null,null,null,null,"Unfall",null,"durchgeführte Arbeiten","Arbeiten erledigt",0.5,null,null,null,null,null,null,null,0.5]
["Nacht",null,122,null,null,null,null,null,null,null,"Unfall",null,"durchgeführte Arbeiten","Arbeiten erledigt",0.5,null,null,null,null,null,null,null,0.5]
["Nacht",null,105,null,null,null,null,null,null,null,"außerplan Arbeit/Störung",null,"durchgeführte Arbeiten","Arbeiten erledigt",1,null,null,null,null,null,null,null,1]
[{"$f":"IF($A$3=\"x\",IF(AND(B457=\"\",O457=\"\",AND(L457=\"\",M457=\"\",P457=\"\")),\"\",IF(B457=\"\",A456,B457)),IF($A$4=\"x\",IF(AND(D457=\"\",O457=\"\",AND(L457=\"\",M457=\"\",P457=\"\")),\"\",IF(D457=\"\",A456,D457)),\"\"))","v":"Nacht"},null,145,null,null,null,null,null,null,null,"außerplan Arbeit/Störung","WC-Störung","durchgeführte Arbeiten","Arbeiten erledigt",0.5,null,null,null,null,null,null,null,{"$f":"IFERROR(VALUE(IF(A457=\"\",\"\",IF(O457=\"\",0,O457))),\"\")","v":0.5}]
["Nacht",null,17,null,null,null,null,null,null,null,"außerplan Arbeit/Störung",null,"durchgeführte Arbeiten","Arbeiten erledigt",1,null,null,null,null,null,null,null,1]
["Nacht",null,128,null,null,null,null,null,null,null,"außerplan Arbeit/Störung","WC-Störung","durchgeführte Arbeiten","Arbeiten erledigt",1,null,null,null,null,null,null,null,1]
["Nacht",null,3,null,null,null,null,null,null,null,"außerplan Arbeit/Störung",null,"durchgeführte Arbeiten","Arbeiten erledigt",0.5,null,null,null,null,null,null,null,0.5]
["Nacht",null,null,null,null,null,null,null,null,null,null,null,"durchgeführte Arbeiten","Arbeiten erledigt",0.5,null,null,null,null,null,null,null,0.5]
["Nacht",null,null,null,null,null,null,null,null,null,null,null,"durchgeführte Arbeiten","Arbeiten erledigt",0.5,null,null,null,null,null,null,null,0.5]
["Nacht",null,null,null,null,null,null,null,null,null,null,null,"durchgeführte Arbeiten","Arbeiten erledigt",0.5,null,null,null,null,null,null,null,0.5]
["Nacht",null,125,null,null,null,null,null,null,null,"I1",null,"durchgeführte Arbeiten","Arbeiten erledigt",11.5,null,null,null,null,null,null,null,11.5]
["Nacht",null,null,null,null,null,null,null,null,null,null,null,"durchgeführte Arbeiten","Arbeiten erledigt",1,null,null,null,null,null,null,null,1]
["Nacht",null,null,null,null,null,null,null,null,null,null,null,"durchgeführte Arbeiten","Arbeiten erledigt",2,null,null,null,null,null,null,null,2]
["Nacht",null,null,null,null,null,null,null,null,null,null,null,"durchgeführte Arbeiten","Arbeiten erledigt",1,null,null,null,null,null,null,null,1]
["Nacht",null,101,null,null,null,null,null,null,null,"außerplan Arbeit/Störung",null,"durchgeführte Arbeiten","Arbeiten erledigt",1,null,null,null,null,null,null,null,1]
["Nacht",null,null,null,null,null,null,null,null,null,null,null,"durchgeführte Arbeiten","Arbeiten erledigt",1,null,null,null,null,null,null,null,1]
["Tag","Tag",null,"2025-01-18",null,null,null,null,null,null,null,null,null,null,null,null,null,null,null,null,null,null,0]
["Tag",null,23,null,null,null,null,null,null,null,"I4","Fristarbeiten zur I4",null,"Übergeben",18.5,null,null,null,null,null,null,null,18.5]
["Tag",null,null,null,null,null,null,null,null,null,"außerplan Arbeit/Störung",null,"durchgeführte Arbeiten","Arbeiten erledigt",0.5,null,null,null,null,null,null,null,0.5]
["Tag",null,null,null,null,null,null,null,null,null,null,null,"durchgeführte Arbeiten","Arbeiten erledigt",1,null,null,null,null,null,null,null,1]
["Tag",null,null,null,null,null,null,null,null,null,"außerplan Arbeit/Störung","Klima Störung WE1","durchgeführte Arbeiten","Arbeiten erledigt",1,null,null,null,null,null,null,null,1]
["Tag",null,null,null,null,null,null,null,null,null,"außerplan Arbeit/Störung","Klima Störung WE2","durchgeführte Arbeiten","Arbeiten erledigt",3,null,null,null,null,null,null,null,3]
["Nacht","Nacht",null,"2025-01-18",null,null,null,null,null,null,null,null,null,null,24,null,null,null,null,null,null,null,24]
["Nacht",null,107,null,null,null,null,null,null,null,"außerplan Arbeit/Störung",null,"durchgeführte Arbeiten","Arbeiten erledigt",1,null,null,null,null,null,null,null,1]
["Nacht",null,123,null,null,null,null,null,null,null,"außerplan Arbeit/Störung",null,"durchgeführte Arbeiten","Arbeiten erledigt",1,null,null,null,null,null,null,null,1]
["Nacht",null,109,null,null,null,null,null,null,null,"außerplan Arbeit/Störung",null,"durchgeführte Arbeiten","Arbeiten erledigt",1,null,null,null,null,null,null,null,1]
["Nacht",null,118,null,null,null,null,null,null,null,"UT-Prüfung",null,"durchgeführte Arbeiten","Arbeiten erledigt",7,null,null,null,null,null,null,null,7]
["Nacht",null,null,null,null,null,null,null,null,null,"außerplan Arbeit/Störung",null,"durchgeführte Arbeiten","Arbeiten erledigt",0.5,null,null,null,null,null,null,null,0.5]
["Nacht",null,108,null,null,null,null,null,null,null,"außerplan Arbeit/Störung",null,"durchgeführte Arbeiten","Arbeiten erledigt",1,null,null,null,null,null,null,null,1]
["Nacht",null,null,null,null,null,null,null,null,null,null,null,"durchgeführte Arbeiten","Arbeiten erledigt",0.5,null,null,null,null,null,null,null,0.5]
["Nacht",null,23,null,null,null,null,null,null,null,"I4",null,"durchgeführte Arbeiten","Übergeben",11,null,null,null,null,null,null,null,11]
["Nacht",null,null,null,null,null,null,null,null,null,null,null,"durchgeführte Arbeiten","Arbeiten erledigt",1,null,null,null,null,null,null,null,1]
["Tag","Tag",null,"2025-01-19",null,null,null,null,null,null,null,null,null,null,null,null,null,null,null,null,null,null,0]
["Tag",null,18,null,null,null,null,null,null,null,"außerplan Arbeit/Störung",null,"durchgeführte Arbeiten","Arbeiten erledigt",1,null,null,null,null,null,null,null,1]
["Tag",null,null,null,null,null,null,null,null,null,null,null,"durchgeführte Arbeiten","Arbeiten erledigt",1,null,null,null,null,null,null,null,1]
["Tag",null,null,null,null,null,null,null,null,null,null,null,"durchgeführte Arbeiten","Arbeiten erledigt",0.5,null,null,null,null,null,null,null,0.5]
["Tag",null,null,null,null,null,null,null,null,null,null,"Lagerarbeiten","durchgeführte Arbeiten","Arbeiten erledigt",1.5,null,null,null,null,null,null,null,1.5]
["Tag",null,5,null,null,null,null,null,null,null,"I1","Fristarbeiten zur I1",null,"Übergeben",2,null,null,null,null,null,null,null,2]
["Tag",null,null,null,null,null,null,null,null,null,"außerplan Arbeit/Störung",null,"durchgeführte Arbeiten","Arbeiten erledigt",0.5,null,null,null,null,null,null,null,0.5]
["Tag",null,null,null,null,null,null,null,null,null,"außerplan Arbeit/Störung",null,"durchgeführte Arbeiten","Arbeiten erledigt",1,null,null,null,null,null,null,null,1]
["Tag",null,null,null,null,null,null,null,null,null,"ZBF Frist",null,"durchgeführte Arbeiten","Arbeiten erledigt",3,null,null,null,null,null,null,null,3]
["Tag",null,null,null,null,null,null,null,null,null,null,null,"durchgeführte Arbeiten","Arbeiten erledigt",2,null,null,null,null,null,null,null,2]
["Tag",null,null,null,null,null,null,null,null,null,null,null,"durchgeführte Arbeiten","Arbeiten erledigt",2,null,null,null,null,null,null,null,2]
["Tag",null,23,null,null,null,null,null,null,null,"I4","Fristarbeiten zur I4",null,"Arbeiten erledigt",9.5,null,null,null,null,null,null,null,9.5]
["Nacht","Nacht",null,"2025-01-19",null,null,null,null,null,null,null,null,null,null,24,null,null,null,null,null,null,null,24]
["Nacht",null,118,null,null,null,null,null,null,null,"außerplan Arbeit/Störung",null,"durchgeführte Arbeiten","Arbeiten erledigt",1,null,null,null,null,null,null,null,1]
["Nacht",null,111,null,null,null,null,null,null,null,"außerplan Arbeit/Störung","WC-Störung","durchgeführte Arbeiten","Arbeiten erledigt",1,null,null,null,null,null,null,null,1]
["Nacht",null,5,null,null,null,null,null,null,null,"I1",null,"durchgeführte Arbeiten","Übergeben",16.5,null,null,null,null,null,null,null,16.5]
["Nacht",null,null,null,null,null,null,null,null,null,"außerplan Arbeit/Störung",null,"durchgeführte Arbeiten","Arbeiten erledigt",0.5,null,null,null,null,null,null,null,0.5]
["Nacht",null,null,null,null,null,null,null,null,null,"außerplan Arbeit/Störung",null,"durchgeführte Arbeiten","Arbeiten erledigt",1,null,null,null,null,null,null,null,1]
["Nacht",null,null,null,null,null,null,null,null,null,null,null,"durchgeführte Arbeiten","Arbeiten erledigt",2,null,null,null,null,null,null,null,2]
["Nacht",null,null,null,null,null,null,null,null,null,null,null,"durchgeführte Arbeiten","Arbeiten erledigt",1,null,null,null,null,null,null,null,1]
["Nacht",null,101,null,null,null,null,null,null,null,"außerplan Arbeit/Störung",null,"durchgeführte Arbeiten",null,0.5,null,null,null,null,null,null,null,0.5]
["Nacht",null,145,null,null,null,null,null,null,null,"außerplan Arbeit/Störung",null,"durchgeführte Arbeiten",null,0.5,null,null,null,null,null,null,null,0.5]
["Tag","Tag",null,"2025-01-20",null,null,null,null,null,null,null,null,null,null,null,null,null,null,null,null,null,null,0]
["Tag",null,129,null,null,null,null,null,null,null,"außerplan Arbeit/Störung",null,"durchgeführte Arbeiten","Arbeiten erledigt",2,null,null,null,null,null,null,null,2]
["Tag",null,104,null,null,null,null,null,null,null,"außerplan Arbeit/Störung",null,"durchgeführte Arbeiten",null,1,null,null,null,null,null,null,null,1]
["Tag",null,131,null,null,null,null,null,null,null,"Revision",null,"durchgeführte Arbeiten","Arbeiten erledigt",12,null,null,null,null,null,null,null,12]
["Tag",null,null,null,null,null,null,null,null,null,null,null,"durchgeführte Arbeiten","Arbeiten erledigt",1,null,null,null,null,null,null,null,1]
["Tag",null,5,null,null,null,null,null,null,null,"I2",null,"durchgeführte Arbeiten","Arbeiten erledigt",10.5,null,null,null,null,null,null,null,10.5]
["Tag",null,108,null,null,null,null,null,null,null,"I1",null,"durchgeführte Arbeiten","Arbeiten erledigt",23,null,null,null,null,null,null,null,23]
["Tag",null,null,null,null,null,null,null,null,null,null,null,"durchgeführte Arbeiten","Arbeiten erledigt",2,null,null,null,null,null,null,null,2]
["Tag",null,null,null,null,null,null,null,null,null,null,null,"durchgeführte Arbeiten","Arbeiten erledigt",1,null,null,null,null,null,null,null,1]
["Tag",null,null,null,null,null,null,null,null,null,null,null,"durchgeführte Arbeiten","Arbeiten erledigt",1.5,null,null,null,null,null,null,null,1.5]
["Tag",null,null,null,null,null,null,null,null,null,null,null,"durchgeführte Arbeiten","Arbeiten erledigt",1,null,null,null,null,null,null,null,1]
["Tag",null,null,null,null,null,null,null,null,null,null,null,"durchgeführte Arbeiten","Arbeiten erledigt",2,null,null,null,null,null,null,null,2]
["Nacht","Nacht",null,"2025-01-20",null,null,null,null,null,null,null,null,null,null,57,null,null,null,null,null,null,null,57]
[{"$f":"IF($A$3=\"x\",IF(AND(B521=\"\",O521=\"\",AND(L521=\"\",M521=\"\",P521=\"\")),\"\",IF(B521=\"\",A520,B521)),IF($A$4=\"x\",IF(AND(D521=\"\",O521=\"\",AND(L521=\"\",M521=\"\",P521=\"\")),\"\",IF(D521=\"\",A520,D521)),\"\"))","v":"Nacht"},null,142,null,null,null,null,null,null,null,"außerplan Arbeit/Störung","WC Entsorgen und Brauchwasser füllen","durchgeführte Arbeiten","Arbeiten erledigt",1,null,null,null,null,null,null,null,{"$f":"IFERROR(VALUE(IF(A521=\"\",\"\",IF(O521=\"\",0,O521))),\"\")","v":1}]
["Nacht",null,19,null,null,null,null,null,null,null,"außerplan Arbeit/Störung",null,"durchgeführte Arbeiten","Arbeiten erledigt",1,null,null,null,null,null,null,null,1]
["Nacht",null,107,null,null,null,null,null,null,null,"außerplan Arbeit/Störung","Signalbeleuchtung ","durchgeführte Arbeiten","Arbeiten erledigt",0.5,null,null,null,null,null,null,null,0.5]
["Nacht",null,null,null,null,null,null,null,null,null,"außerplan Arbeit/Störung","Motoröl füllen WE1","durchgeführte Arbeiten","Arbeiten erledigt",0.5,null,null,null,null,null,null,null,0.5]
["Nacht",null,null,null,null,null,null,null,null,null,"außerplan Arbeit/Störung","Motoröl füllen WE2","durchgeführte Arbeiten","Arbeiten erledigt",3,null,null,null,null,null,null,null,3]
["Nacht",null,113,null,null,null,null,null,null,null,"außerplan Arbeit/Störung","WC-Störung","durchgeführte Arbeiten","Arbeiten erledigt",0.5,null,null,null,null,null,null,null,0.5]
["Nacht",null,132,null,null,null,null,null,null,null,"außerplan Arbeit/Störung","Motoröl füllen WE2","durchgeführte Arbeiten","Arbeiten erledigt",0.5,null,null,null,null,null,null,null,0.5]
["Nacht",null,null,null,null,null,null,null,null,null,"außerplan Arbeit/Störung",null,"durchgeführte Arbeiten","Arbeiten erledigt",0.5,null,null,null,null,null,null,null,0.5]
["Nacht",null,115,null,null,null,null,null,null,null,"außerplan Arbeit/Störung",null,"durchgeführte Arbeiten","Arbeiten erledigt",1,null,null,null,null,null,null,null,1]
["Nacht",null,101,null,null,null,null,null,null,null,"außerplan Arbeit/Störung","Motoröl füllen WE1","durchgeführte Arbeiten","Arbeiten erledigt",0.5,null,null,null,null,null,null,null,0.5]
["Nacht",null,130,null,null,null,null,null,null,null,"außerplan Arbeit/Störung","WC Entsorgen und Brauchwasser füllen","durchgeführte Arbeiten","Arbeiten erledigt",1,null,null,null,null,null,null,null,1]
["Nacht",null,null,null,null,null,null,null,null,null,"außerplan Arbeit/Störung","Flachstellen","durchgeführte Arbeiten","Arbeiten erledigt",0.5,null,null,null,null,null,null,null,0.5]
["Nacht",null,null,null,null,null,null,null,null,null,"außerplan Arbeit/Störung",null,"durchgeführte Arbeiten","Arbeiten erledigt",4.5,null,null,null,null,null,null,null,4.5]
["Nacht",null,101,null,null,null,null,null,null,null,"außerplan Arbeit/Störung",null,"durchgeführte Arbeiten","Arbeiten erledigt",1,null,null,null,null,null,null,null,1]
["Nacht",null,20,null,null,null,null,null,null,null,"außerplan Arbeit/Störung","Diwa Störung WE2","durchgeführte Arbeiten","Arbeiten erledigt",1,null,null,null,null,null,null,null,1]
["Nacht",null,106,null,null,null,null,null,null,null,"I2",null,"durchgeführte Arbeiten","Übergeben",2,null,null,null,null,null,null,null,2]
["Tag","Tag",null,"2025-01-21",null,null,null,null,null,null,null,null,null,null,null,null,null,null,null,null,null,null,0]
["Tag",null,109,null,null,null,null,null,null,null,"außerplan Arbeit/Störung","Anlagen Störung WE2","durchgeführte Arbeiten","Arbeiten erledigt",1,null,null,null,null,null,null,null,1]
["Tag",null,131,null,null,null,null,null,null,null,"außerplan Arbeit/Störung","Störung Heizung WE2","durchgeführte Arbeiten","Arbeiten erledigt",1,null,null,null,null,null,null,null,1]
["Tag",null,106,null,null,null,null,null,null,null,"I2",null,"durchgeführte Arbeiten","Arbeiten erledigt",20,null,null,null,null,null,null,null,20]
["Tag",null,null,null,null,null,null,null,null,null,null,null,"durchgeführte Arbeiten","Arbeiten erledigt",2,null,null,null,null,null,null,null,2]
["Tag",null,null,null,null,null,null,null,null,null,null,null,"durchgeführte Arbeiten","Arbeiten erledigt",1,null,null,null,null,null,null,null,1]
["Tag",null,null,null,null,null,null,null,null,null,null,null,"durchgeführte Arbeiten","Arbeiten erledigt",0.5,null,null,null,null,null,null,null,0.5]
["Tag",null,null,null,null,null,null,null,null,null,null,null,"durchgeführte Arbeiten","Arbeiten erledigt",0.5,null,null,null,null,null,null,null,0.5]
["Tag",null,null,null,null,null,null,null,null,null,null,null,"durchgeführte Arbeiten","Arbeiten erledigt",1,null,null,null,null,null,null,null,1]
["Tag",null,null,null,null,null,null,null,null,null,null,"Klima Störung WE1","durchgeführte Arbeiten","Arbeiten erledigt",27,null,null,null,null,null,null,null,27]
["Tag",null,16,null,null,null,null,null,null,null,"I2",null,"durchgeführte Arbeiten","Arbeiten erledigt",25,null,null,null,null,null,null,null,25]
["Tag",null,null,null,null,null,null,null,null,null,null,null,"durchgeführte Arbeiten","Arbeiten erledigt",0.5,null,null,null,null,null,null,null,0.5]
["Tag",null,null,null,null,null,null,null,null,null,null,null,"durchgeführte Arbeiten","Arbeiten erledigt",0.5,null,null,null,null,null,null,null,0.5]
["Tag",null,null,null,null,null,null,null,null,null,null,null,"durchgeführte Arbeiten","Arbeiten erledigt",0.5,null,null,null,null,null,null,null,0.5]
["Tag",null,null,null,null,null,null,null,null,null,null,null,"durchgeführte Arbeiten","Arbeiten erledigt",0.5,null,null,null,null,null,null,null,0.5]
["Tag",null,null,null,null,null,null,null,null,null,null,null,"durchgeführte Arbeiten","Arbeiten erledigt",1,null,null,null,null,null,null,null,1]
["Nacht","Nacht",null,"2025-01-21",null,null,null,null,null,null,null,null,null,null,28,null,null,null,null,null,null,null,28]
["Nacht",null,125,null,null,null,null,null,null,null,"außerplan Arbeit/Störung","Türe 2Links gestört","durchgeführte Arbeiten","Arbeiten erledigt",0.5,null,null,null,null,null,null,null,0.5]
["Nacht",null,19,null,null,null,null,null,null,null,"außerplan Arbeit/Störung",null,"durchgeführte Arbeiten","Arbeiten erledigt",0.5,null,null,null,null,null,null,null,0.5]
["Nacht",null,7,null,null,null,null,null,null,null,"außerplan Arbeit/Störung","Störung Indusi","durchgeführte Arbeiten","Arbeiten erledigt",0.5,null,null,null,null,null,null,null,0.5]
["Nacht",null,null,null,null,null,null,null,null,null,"außerplan Arbeit/Störung","Störung Heizung WE2","durchgeführte Arbeiten","Arbeiten erledigt",1,null,null,null,null,null,null,null,1]
["Nacht",null,null,null,null,null,null,null,null,null,null,null,"durchgeführte Arbeiten",null,2.5,null,null,null,null,null,null,null,2.5]
["Nacht",null,null,null,null,null,null,null,null,null,null,null,"durchgeführte Arbeiten","Arbeiten erledigt",1,null,null,null,null,null,null,null,1]
["Nacht",null,21,null,null,null,null,null,null,null,"I1",null,"durchgeführte Arbeiten","Übergeben",9,null,null,null,null,null,null,null,9]
["Nacht",null,null,null,null,null,null,null,null,null,null,null,"durchgeführte Arbeiten","Arbeiten erledigt",1,null,null,null,null,null,null,null,1]
["Nacht",null,null,null,null,null,null,null,null,null,"außerplan Arbeit/Störung",null,"durchgeführte Arbeiten","Arbeiten erledigt",1,null,null,null,null,null,null,null,1]
["Nacht",null,116,null,null,null,null,null,null,null,"außerplan Arbeit/Störung",null,"durchgeführte Arbeiten","Arbeiten erledigt",0.5,null,null,null,null,null,null,null,0.5]
["Nacht",null,143,null,null,null,null,null,null,null,"außerplan Arbeit/Störung","WC Entsorgen und Brauchwasser füllen","durchgeführte Arbeiten","Arbeiten erledigt",1,null,null,null,null,null,null,null,1]
["Tag","Tag",null,"2025-01-22",null,null,null,null,null,null,null,null,null,null,null,null,null,null,null,null,null,null,0]
["Tag",null,21,null,null,null,null,null,null,null,"I1",null,"durchgeführte Arbeiten","Arbeiten erledigt",15,null,null,null,null,null,null,null,15]
["Tag",null,null,null,null,null,null,null,null,null,null,null,"durchgeführte Arbeiten","Arbeiten erledigt",1,null,null,null,null,null,null,null,1]
["Tag",null,null,null,null,null,null,null,null,null,null,null,"durchgeführte Arbeiten","Arbeiten erledigt",1,null,null,null,null,null,null,null,1]
["Tag",null,null,null,null,null,null,null,null,null,null,null,"durchgeführte Arbeiten","Arbeiten erledigt",0.5,null,null,null,null,null,null,null,0.5]
["Tag",null,20,null,null,null,null,null,null,null,null,"WE2 Störung AWG","durchgeführte Arbeiten","Arbeiten erledigt",1,null,null,null,null,null,null,null,1]
["Tag",null,145,null,null,null,null,null,null,null,"I1",null,"durchgeführte Arbeiten","Arbeiten erledigt",24,null,null,null,null,null,null,null,24]
["Tag",null,null,null,null,null,null,null,null,null,null,null,"durchgeführte Arbeiten","Arbeiten erledigt",5,null,null,null,null,null,null,null,5]
["Tag",null,null,null,null,null,null,null,null,null,null,null,"durchgeführte Arbeiten","Arbeiten erledigt",1,null,null,null,null,null,null,null,1]
["Tag",null,null,null,null,null,null,null,null,null,null,null,"durchgeführte Arbeiten","Arbeiten erledigt",5,null,null,null,null,null,null,null,5]
["Tag",null,null,null,null,null,null,null,null,null,"außerplan Arbeit/Störung","Klima Störung WE2","durchgeführte Arbeiten","Arbeiten erledigt",2.5,null,null,null,null,null,null,null,2.5]
["Tag",null,null,null,null,null,null,null,null,null,null,"Klima Störung WE2","durchgeführte Arbeiten","Arbeiten erledigt",1,null,null,null,null,null,null,null,1]
["Tag",null,null,null,null,null,null,null,null,null,null,"Klima Störung WE1","durchgeführte Arbeiten","Arbeiten erledigt",1,null,null,null,null,null,null,null,1]
["Tag",null,null,null,null,null,null,null,null,null,null,null,"durchgeführte Arbeiten","Arbeiten erledigt",2,null,null,null,null,null,null,null,2]
["Tag",null,null,null,null,null,null,null,null,null,null,null,"durchgeführte Arbeiten","Arbeiten erledigt",1,null,null,null,null,null,null,null,1]
["Tag",null,129,null,null,null,null,null,null,null,"Unfall","WE 2 Baumschaden","durchgeführte Arbeiten","Übergeben",24.5,null,null,null,null,null,null,null,24.5]
["Tag",null,null,null,null,null,null,null,null,null,null,"Tausch Türsteuerung/Schiebetrittsteuerung",null,"Arbeiten erledigt",4,null,null,null,null,null,null,null,4]
["Nacht","Nacht",null,"2025-01-22",null,null,null,null,null,null,null,null,null,null,89.5,null,null,null,null,null,null,null,89.5]
["Nacht",null,112,null,null,null,null,null,null,null,"außerplan Arbeit/Störung",null,"durchgeführte Arbeiten","Arbeiten erledigt",0.5,null,null,null,null,null,null,null,0.5]
["Nacht",null,143,null,null,null,null,null,null,null,"außerplan Arbeit/Störung","Motoröl füllen WE1","durchgeführte Arbeiten","Arbeiten erledigt",0.5,null,null,null,null,null,null,null,0.5]
[{"$f":"IF($A$3=\"x\",IF(AND(B585=\"\",O585=\"\",AND(L585=\"\",M585=\"\",P585=\"\")),\"\",IF(B585=\"\",A584,B585)),IF($A$4=\"x\",IF(AND(D585=\"\",O585=\"\",AND(L585=\"\",M585=\"\",P585=\"\")),\"\",IF(D585=\"\",A584,D585)),\"\"))","v":"Nacht"},null,"Betreibsstoffe",null,null,null,null,null,null,null,null,null,"durchgeführte Arbeiten","Arbeiten erledigt",0.5,null,null,null,null,null,null,null,{"$f":"IFERROR(VALUE(IF(A585=\"\",\"\",IF(O585=\"\",0,O585))),\"\")","v":0.5}]
["Nacht",null,113,null,null,null,null,null,null,null,"außerplan Arbeit/Störung","WC-Störung","durchgeführte Arbeiten","Arbeiten erledigt",0.5,null,null,null,null,null,null,null,0.5]
["Nacht",null,131,null,null,null,null,null,null,null,"außerplan Arbeit/Störung","WC Entsorgen und Brauchwasser füllen","durchgeführte Arbeiten","Arbeiten erledigt",1,null,null,null,null,null,null,null,1]
["Nacht",null,130,null,null,null,null,null,null,null,"außerplan Arbeit/Störung",null,"durchgeführte Arbeiten","Arbeiten erledigt",0.5,null,null,null,null,null,null,null,0.5]
["Nacht",null,null,null,null,null,null,null,null,null,"außerplan Arbeit/Störung","Störung Heizung WE1","durchgeführte Arbeiten","Arbeiten erledigt",1,null,null,null,null,null,null,null,1]
["Nacht",null,129,null,null,null,null,null,null,null,"Unfall","WE 2 Baumschaden","durchgeführte Arbeiten","Arbeiten erledigt",5,null,null,null,null,null,null,null,5]
["Nacht",null,132,null,null,null,null,null,null,null,"außerplan Arbeit/Störung","Klima Störung WE2","durchgeführte Arbeiten","Arbeiten erledigt",1,null,null,null,null,null,null,null,1]
["Nacht",null,126,null,null,null,null,null,null,null,"Br 1.2",null,"durchgeführte Arbeiten","Übergeben",5.5,null,null,null,null,null,null,null,5.5]
["Nacht",null,103,null,null,null,null,null,null,null,"außerplan Arbeit/Störung","Störung Leittechnik","durchgeführte Arbeiten","Arbeiten erledigt",1.5,null,null,null,null,null,null,null,1.5]
["Nacht",null,null,null,null,null,null,null,null,null,"Unfall",null,"durchgeführte Arbeiten","Arbeiten erledigt",3,null,null,null,null,null,null,null,3]
["Nacht",null,126,null,null,null,null,null,null,null,"I2",null,"durchgeführte Arbeiten",null,26,null,null,null,null,null,null,null,26]
["Nacht",null,null,null,null,null,null,null,null,null,null,null,"durchgeführte Arbeiten","Arbeiten erledigt",2,null,null,null,null,null,null,null,2]
["Nacht",null,null,null,null,null,null,null,null,null,"außerplan Arbeit/Störung",null,"durchgeführte Arbeiten","Arbeiten erledigt",1,null,null,null,null,null,null,null,1]
["Nacht",null,null,null,null,null,null,null,null,null,null,null,"durchgeführte Arbeiten","Arbeiten erledigt",1,null,null,null,null,null,null,null,1]
["Nacht",null,null,null,null,null,null,null,null,null,null,null,"durchgeführte Arbeiten","Arbeiten erledigt",2,null,null,null,null,null,null,null,2]
["Nacht",null,null,null,null,null,null,null,null,null,null,null,"durchgeführte Arbeiten","Arbeiten erledigt",1.5,null,null,null,null,null,null,null,1.5]
["Nacht",null,null,null,null,null,null,null,null,null,"Br 1.2",null,"durchgeführte Arbeiten","Arbeiten erledigt",2.5,null,null,null,null,null,null,null,2.5]
["Nacht",null,null,null,null,null,null,null,null,null,"außerplan Arbeit/Störung","Klima Störung WE1","durchgeführte Arbeiten","Arbeiten erledigt",1,null,null,null,null,null,null,null,1]
["Nacht",null,null,null,null,null,null,null,null,null,"außerplan Arbeit/Störung","Klima Störung WE2","durchgeführte Arbeiten","Arbeiten erledigt",0.5,null,null,null,null,null,null,null,0.5]
["Nacht",null,null,null,null,null,null,null,null,null,null,null,"durchgeführte Arbeiten","Arbeiten erledigt",1,null,null,null,null,null,null,null,1]
["Nacht",null,116,null,null,null,null,null,null,null,"I1",null,"durchgeführte Arbeiten","Arbeiten erledigt",19.5,null,null,null,null,null,null,null,19.5]
["Nacht",null,null,null,null,null,null,null,null,null,null,null,"durchgeführte Arbeiten","Arbeiten erledigt",2,null,null,null,null,null,null,null,2]
["Nacht",null,null,null,null,null,null,null,null,null,null,null,"durchgeführte Arbeiten","Arbeiten erledigt",1,null,null,null,null,null,null,null,1]
["Nacht",null,null,null,null,null,null,null,null,null,"außerplan Arbeit/Störung",null,"durchgeführte Arbeiten","Arbeiten erledigt",1,null,null,null,null,null,null,null,1]
["Nacht",null,null,null,null,null,null,null,null,null,"außerplan Arbeit/Störung",null,"durchgeführte Arbeiten","Arbeiten erledigt",2,null,null,null,null,null,null,null,2]
["Nacht",null,null,null,null,null,null,null,null,null,"außerplan Arbeit/Störung","WC-Störung","durchgeführte Arbeiten","Arbeiten erledigt",1,null,null,null,null,null,null,null,1]
["Nacht",null,null,null,null,null,null,null,null,null,"außerplan Arbeit/Störung","Störung Heizung WE1","durchgeführte Arbeiten","Arbeiten erledigt",2,null,null,null,null,null,null,null,2]
["Nacht","Nacht",null,"2025-01-23",null,null,null,null,null,null,null,null,null,null,null,null,null,null,null,null,null,null,0]
["Nacht",null,null,null,null,null,null,null,null,null,"außerplan Arbeit/Störung","Motoröl füllen WE1","durchgeführte Arbeiten","Arbeiten erledigt",0.5,null,null,null,null,null,null,null,0.5]
["Nacht",null,118,null,null,null,null,null,null,null,"außerplan Arbeit/Störung","Störung Heizung WE2","durchgeführte Arbeiten","Arbeiten erledigt",2,null,null,null,null,null,null,null,2]
["Nacht",null,122,null,null,null,null,null,null,null,"außerplan Arbeit/Störung","Motoröl füllen WE1","durchgeführte Arbeiten","Arbeiten erledigt",0.5,null,null,null,null,null,null,null,0.5]
["Nacht",null,null,null,null,null,null,null,null,null,"außerplan Arbeit/Störung",null,"durchgeführte Arbeiten","Arbeiten erledigt",1,null,null,null,null,null,null,null,1]
["Nacht",null,20,null,null,null,null,null,null,null,"außerplan Arbeit/Störung","Diwa Störung WE2","durchgeführte Arbeiten","Arbeiten erledigt",7.5,null,null,null,null,null,null,null,7.5]
["Nacht",null,144,null,null,null,null,null,null,null,"außerplan Arbeit/Störung",null,"durchgeführte Arbeiten","Arbeiten erledigt",1,null,null,null,null,null,null,null,1]
["Nacht",null,101,null,null,null,null,null,null,null,"I2",null,"durchgeführte Arbeiten","Übergeben",3,null,null,null,null,null,null,null,3]
["Tag","Tag",null,"2025-01-24",null,null,null,null,null,null,null,null,null,null,null,null,null,null,null,null,null,null,0]
["Tag",null,104,null,null,null,null,null,null,null,"außerplan Arbeit/Störung",null,"durchgeführte Arbeiten","Arbeiten erledigt",null,null,null,null,null,null,null,null,0]
["Tag",null,128,null,null,null,null,null,null,null,"außerplan Arbeit/Störung",null,"durchgeführte Arbeiten","Arbeiten erledigt",null,null,null,null,null,null,null,null,0]
["Tag",null,142,null,null,null,null,null,null,null,null,null,"durchgeführte Arbeiten","Arbeiten erledigt",10,null,null,null,null,null,null,null,10]
["Tag",null,101,null,null,null,null,null,null,null,"I2","Fristarbeiten zur I2",null,null,17,null,null,null,null,null,null,null,17]
["Tag",null,null,null,null,null,null,null,null,null,"UT-Prüfung",null,"durchgeführte Arbeiten","Arbeiten erledigt",5.5,null,null,null,null,null,null,null,5.5]
["Tag",null,null,null,null,null,null,null,null,null,null,null,"durchgeführte Arbeiten","Arbeiten erledigt",2,null,null,null,null,null,null,null,2]
["Tag",null,null,null,null,null,null,null,null,null,null,null,"durchgeführte Arbeiten","Arbeiten erledigt",1,null,null,null,null,null,null,null,1]
["Tag",null,null,null,null,null,null,null,null,null,"außerplan Arbeit/Störung",null,"durchgeführte Arbeiten","Arbeiten erledigt",35.5,null,null,null,null,null,null,null,35.5]
["Tag",null,null,null,null,null,null,null,null,null,null,null,"durchgeführte Arbeiten",null,null,null,null,null,null,null,null,null,0]
["Tag",null,null,null,null,null,null,null,null,null,null,null,"durchgeführte Arbeiten",null,2,null,null,null,null,null,null,null,2]
["Tag",null,4,null,null,null,null,null,null,null,"außerplan Arbeit/Störung","WC-Störung","durchgeführte Arbeiten","Arbeiten erledigt",2,null,null,null,null,null,null,null,2]
["Tag",null,null,null,null,null,null,null,null,null,null,null,"durchgeführte Arbeiten","Arbeiten erledigt",null,null,null,null,null,null,null,null,0]
["Tag",null,130,null,null,null,null,null,null,null,"I1","Fristarbeiten zur I1",null,null,null,null,null,null,null,null,null,null,0]
["Tag",null,null,null,null,null,null,null,null,null,null,null,"durchgeführte Arbeiten","Arbeiten erledigt",1,null,null,null,null,null,null,null,1]
["Tag",null,null,null,null,null,null,null,null,null,null,null,"durchgeführte Arbeiten","Arbeiten erledigt",2,null,null,null,null,null,null,null,2]
["Nacht","Nacht",null,"2025-01-24",null,null,null,null,null,null,null,null,null,null,null,null,null,null,null,null,null,null,0]
["Nacht",null,132,null,null,null,null,null,null,null,"außerplan Arbeit/Störung",null,"durchgeführte Arbeiten","Arbeiten erledigt",0.5,null,null,null,null,null,null,null,0.5]
["Nacht",null,123,null,null,null,null,null,null,null,"außerplan Arbeit/Störung",null,"durchgeführte Arbeiten","Arbeiten erledigt",1,null,null,null,null,null,null,null,1]
["Nacht",null,null,null,null,null,null,null,null,null,null,null,"durchgeführte Arbeiten","Arbeiten erledigt",0.5,null,null,null,null,null,null,null,0.5]
["Nacht",null,109,null,null,null,null,null,null,null,"außerplan Arbeit/Störung",null,"durchgeführte Arbeiten","Arbeiten erledigt",1,null,null,null,null,null,null,null,1]
["Nacht",null,124,null,null,null,null,null,null,null,"außerplan Arbeit/Störung","Türe 1Links gestört","durchgeführte Arbeiten","Arbeiten erledigt",1,null,null,null,null,null,null,null,1]
["Nacht",null,19,null,null,null,null,null,null,null,"außerplan Arbeit/Störung",null,"durchgeführte Arbeiten","Arbeiten erledigt",1,null,null,null,null,null,null,null,1]
["Nacht",null,128,null,null,null,null,null,null,null,"außerplan Arbeit/Störung",null,"durchgeführte Arbeiten","Arbeiten erledigt",0.5,null,null,null,null,null,null,null,0.5]
["Nacht",null,117,null,null,null,null,null,null,null,"außerplan Arbeit/Störung","Klima Störung WE1","durchgeführte Arbeiten","Arbeiten erledigt",1,null,null,null,null,null,null,null,1]
["Nacht",null,129,null,null,null,null,null,null,null,"außerplan Arbeit/Störung",null,"durchgeführte Arbeiten","Arbeiten erledigt",0.5,null,null,null,null,null,null,null,0.5]
["Nacht",null,130,null,null,null,null,null,null,null,"I1",null,"durchgeführte Arbeiten","Übergeben",7,null,null,null,null,null,null,null,7]
["Nacht",null,null,null,null,null,null,null,null,null,null,null,"durchgeführte Arbeiten","Arbeiten erledigt",1,null,null,null,null,null,null,null,1]
["Nacht",null,null,null,null,null,null,null,null,null,null,null,"durchgeführte Arbeiten","Arbeiten erledigt",1,null,null,null,null,null,null,null,1]
[{"$f":"IF($A$3=\"x\",IF(AND(B649=\"\",O649=\"\",AND(L649=\"\",M649=\"\",P649=\"\")),\"\",IF(B649=\"\",A648,B649)),IF($A$4=\"x\",IF(AND(D649=\"\",O649=\"\",AND(L649=\"\",M649=\"\",P649=\"\")),\"\",IF(D649=\"\",A648,D649)),\"\"))","v":"Tag"},"Tag",null,"2025-01-25",null,null,null,null,null,null,null,null,null,null,null,null,null,null,null,null,null,null,{"$f":"IFERROR(VALUE(IF(A649=\"\",\"\",IF(O649=\"\",0,O649))),\"\")","v":0}]
["Tag",null,130,null,null,null,null,null,null,null,"I1",null,"durchgeführte Arbeiten","Arbeiten erledigt",14,null,null,null,null,null,null,null,14]
["Tag",null,118,null,null,null,null,null,null,null,"außerplan Arbeit/Störung",null,"durchgeführte Arbeiten","Arbeiten erledigt",1,null,null,null,null,null,null,null,1]
["Tag",null,null,null,null,null,null,null,null,null,"Planarbeit",null,"durchgeführte Arbeiten","Übergeben",6,null,null,null,null,null,null,null,6]
["Tag",null,null,null,null,null,null,null,null,null,null,"Consense","durchgeführte Arbeiten","Arbeiten erledigt",3,null,null,null,null,null,null,null,3]
["Tag",null,114,null,null,null,null,null,null,null,"außerplan Arbeit/Störung","WC Entsorgen und Brauchwasser füllen","durchgeführte Arbeiten","Arbeiten erledigt",1,null,null,null,null,null,null,null,1]
["Tag",null,129,null,null,null,null,null,null,null,"außerplan Arbeit/Störung","WC Entsorgen und Brauchwasser füllen","durchgeführte Arbeiten","Arbeiten erledigt",1,null,null,null,null,null,null,null,1]
["Tag",null,124,null,null,null,null,null,null,null,"außerplan Arbeit/Störung","Türe 1Links gestört","durchgeführte Arbeiten","Arbeiten erledigt",1,null,null,null,null,null,null,null,1]
["Tag",null,null,null,null,null,null,null,null,null,null,"Werkstatt aufgeräumt","durchgeführte Arbeiten","Arbeiten erledigt",2,null,null,null,null,null,null,null,2]
["Tag",null,null,null,null,null,null,null,null,null,null,"Werkstatt aufgeräumt","durchgeführte Arbeiten","Arbeiten erledigt",4,null,null,null,null,null,null,null,4]
["Nacht","Nacht",null,"2025-01-25",null,null,null,null,null,null,null,null,null,null,33,null,null,null,null,null,null,null,33]
["Nacht",null,108,null,null,null,null,null,null,null,"außerplan Arbeit/Störung",null,"durchgeführte Arbeiten","Arbeiten erledigt",1,null,null,null,null,null,null,null,1]
["Nacht",null,105,null,null,null,null,null,null,null,"I1","Fristarbeiten zur I1 ausgeführt",null,"Übergeben",12,null,null,null,null,null,null,null,12]
["Nacht",null,null,null,null,null,null,null,null,null,null,null,"durchgeführte Arbeiten","Arbeiten erledigt",1,null,null,null,null,null,null,null,1]
["Nacht",null,null,null,null,null,null,null,null,null,null,null,"durchgeführte Arbeiten","Arbeiten erledigt",1,null,null,null,null,null,null,null,1]
["Nacht",null,141,null,null,null,null,null,null,null,"außerplan Arbeit/Störung",null,"durchgeführte Arbeiten","Arbeiten erledigt",1,null,null,null,null,null,null,null,1]
["Tag","Tag",null,"2025-01-26",null,null,null,null,null,null,null,null,null,null,null,null,null,null,null,null,null,null,0]
["Tag",null,142,null,null,null,null,null,null,null,null,null,"durchgeführte Arbeiten","Übergeben",14,null,null,null,null,null,null,null,14]
["Tag",null,null,null,null,null,null,null,null,null,"Planarbeit",null,"durchgeführte Arbeiten","Arbeiten erledigt",8,null,null,null,null,null,null,null,8]
["Tag",null,null,null,null,null,null,null,null,null,"außerplan Arbeit/Störung",null,"durchgeführte Arbeiten","Arbeiten erledigt",0.5,null,null,null,null,null,null,null,0.5]
["Tag",null,null,null,null,null,null,null,null,null,"außerplan Arbeit/Störung",null,"durchgeführte Arbeiten","Arbeiten erledigt",1.5,null,null,null,null,null,null,null,1.5]
["Nacht","Nacht",null,"2025-01-26",null,null,null,null,null,null,null,null,null,null,24,null,null,null,null,null,null,null,24]
["Nacht",null,115,null,null,null,null,null,null,null,"außerplan Arbeit/Störung",null,"durchgeführte Arbeiten","Arbeiten erledigt",1,null,null,null,null,null,null,null,1]
["Nacht",null,142,null,null,null,null,null,null,null,"Planarbeit",null,"durchgeführte Arbeiten","Arbeiten erledigt",1,null,null,null,null,null,null,null,1]
["Nacht",null,131,null,null,null,null,null,null,null,"Unfall",null,"durchgeführte Arbeiten","Arbeiten erledigt",1.5,null,null,null,null,null,null,null,1.5]
["Nacht",null,108,null,null,null,null,null,null,null,"außerplan Arbeit/Störung",null,"durchgeführte Arbeiten","Arbeiten erledigt",1,null,null,null,null,null,null,null,1]
["Nacht",null,130,null,null,null,null,null,null,null,"außerplan Arbeit/Störung",null,"durchgeführte Arbeiten","Arbeiten erledigt",0.5,null,null,null,null,null,null,null,0.5]
["Nacht",null,112,null,null,null,null,null,null,null,"außerplan Arbeit/Störung",null,"durchgeführte Arbeiten","Arbeiten erledigt",1.5,null,null,null,null,null,null,null,1.5]
["Nacht",null,116,null,null,null,null,null,null,null,"außerplan Arbeit/Störung",null,"durchgeführte Arbeiten","Arbeiten erledigt",0.5,null,null,null,null,null,null,null,0.5]
["Nacht",null,105,null,null,null,null,null,null,null,"I1",null,"durchgeführte Arbeiten","Arbeiten erledigt",6,null,null,null,null,null,null,null,6]
["Nacht",null,null,null,null,null,null,null,null,null,null,null,"durchgeführte Arbeiten","Arbeiten erledigt",2,null,null,null,null,null,null,null,2]
["Nacht",null,null,null,null,null,null,null,null,null,null,null,"durchgeführte Arbeiten","Arbeiten erledigt",1,null,null,null,null,null,null,null,1]
["Nacht",null,null,null,null,null,null,null,null,null,null,null,"durchgeführte Arbeiten","Arbeiten erledigt",16,null,null,null,null,null,null,null,16]
["Tag","Tag",null,"2025-01-27",null,null,null,null,null,null,null,null,null,null,null,null,null,null,null,null,null,null,0]
["Tag",null,145,null,null,null,null,null,null,null,"außerplan Arbeit/Störung","WC Entsorgen und Brauchwasser füllen","durchgeführte Arbeiten","Arbeiten erledigt",1,null,null,null,null,null,null,null,1]
["Tag",null,19,null,null,null,null,null,null,null,"I2",null,"durchgeführte Arbeiten",null,27,null,null,null,null,null,null,null,27]
["Tag",null,null,null,null,null,null,null,null,null,"außerplan Arbeit/Störung",null,"durchgeführte Arbeiten","Arbeiten erledigt",0.5,null,null,null,null,null,null,null,0.5]
["Tag",null,null,null,null,null,null,null,null,null,null,null,"durchgeführte Arbeiten","Arbeiten erledigt",1,null,null,null,null,null,null,null,1]
["Tag",null,null,null,null,null,null,null,null,null,"außerplan Arbeit/Störung",null,"durchgeführte Arbeiten","Arbeiten erledigt",1,null,null,null,null,null,null,null,1]
["Tag",null,null,null,null,null,null,null,null,null,null,null,"durchgeführte Arbeiten","Arbeiten erledigt",0.5,null,null,null,null,null,null,null,0.5]
["Tag",null,104,null,null,null,null,null,null,null,"außerplan Arbeit/Störung",null,"durchgeführte Arbeiten","Arbeiten erledigt",0.5,null,null,null,null,null,null,null,0.5]
["Tag",null,null,null,null,null,null,null,null,null,"außerplan Arbeit/Störung",null,"durchgeführte Arbeiten","Arbeiten erledigt",4,null,null,null,null,null,null,null,4]
["Tag",null,131,null,null,null,null,null,null,null,"I2",null,"durchgeführte Arbeiten",null,26.5,null,null,null,null,null,null,null,26.5]
["Tag",null,null,null,null,null,null,null,null,null,null,null,"durchgeführte Arbeiten","Arbeiten erledigt",1,null,null,null,null,null,null,null,1]
["Tag",null,null,null,null,null,null,null,null,null,null,null,"durchgeführte Arbeiten","Arbeiten erledigt",2,null,null,null,null,null,null,null,2]
["Tag",null,null,null,null,null,null,null,null,null,null,null,"durchgeführte Arbeiten","Arbeiten erledigt",1,null,null,null,null,null,null,null,1]
["Tag",null,null,null,null,null,null,null,null,null,null,null,"durchgeführte Arbeiten","Arbeiten erledigt",4,null,null,null,null,null,null,null,4]
["Tag",null,null,null,null,null,null,null,null,null,null,null,"durchgeführte Arbeiten","Arbeiten erledigt",3,null,null,null,null,null,null,null,3]
["Tag",null,null,null,null,null,null,null,null,null,"außerplan Arbeit/Störung","Störung Heizung WE2","durchgeführte Arbeiten","Arbeiten erledigt",1,null,null,null,null,null,null,null,1]
["Tag",null,null,null,null,null,null,null,null,null,"außerplan Arbeit/Störung","Störung Heizung WE2","durchgeführte Arbeiten","Arbeiten erledigt",1,null,null,null,null,null,null,null,1]
["Nacht","Nacht",null,"2025-01-27",null,null,null,null,null,null,null,null,null,null,75,null,null,null,null,null,null,null,75]
["Nacht",null,108,null,null,null,null,null,null,null,"außerplan Arbeit/Störung",null,"durchgeführte Arbeiten","Arbeiten erledigt",0.5,null,null,null,null,null,null,null,0.5]
["Nacht",null,21,null,null,null,null,null,null,null,"außerplan Arbeit/Störung",null,"durchgeführte Arbeiten","Arbeiten erledigt",0.5,null,null,null,null,null,null,null,0.5]
["Nacht",null,null,null,null,null,null,null,null,null,null,null,"durchgeführte Arbeiten","Arbeiten erledigt",1,null,null,null,null,null,null,null,1]
["Nacht",null,126,null,null,null,null,null,null,null,null,null,"durchgeführte Arbeiten","Arbeiten erledigt",1.5,null,null,null,null,null,null,null,1.5]
["Nacht",null,102,null,null,null,null,null,null,null,null,null,"durchgeführte Arbeiten","Arbeiten erledigt",1,null,null,null,null,null,null,null,1]
["Nacht",null,null,null,null,null,null,null,null,null,null,null,"durchgeführte Arbeiten","Arbeiten erledigt",0.5,null,null,null,null,null,null,null,0.5]
["Nacht",null,117,null,null,null,null,null,null,null,null,null,"durchgeführte Arbeiten","Arbeiten erledigt",1,null,null,null,null,null,null,null,1]
["Nacht",null,null,null,null,null,null,null,null,null,null,null,"durchgeführte Arbeiten","Arbeiten erledigt",1,null,null,null,null,null,null,null,1]
["Nacht",null,3,null,null,null,null,null,null,null,"außerplan Arbeit/Störung",null,"durchgeführte Arbeiten","Übergeben",1,null,null,null,null,null,null,null,1]
["Nacht",null,119,null,null,null,null,null,null,null,"außerplan Arbeit/Störung","Anlagen Störung WE2","durchgeführte Arbeiten","Arbeiten erledigt",0.5,null,null,null,null,null,null,null,0.5]
["Nacht",null,null,null,null,null,null,null,null,null,"außerplan Arbeit/Störung",null,"durchgeführte Arbeiten","Arbeiten erledigt",0.5,null,null,null,null,null,null,null,0.5]
["Nacht",null,111,null,null,null,null,null,null,null,"I1",null,"durchgeführte Arbeiten","Übergeben",3,null,null,null,null,null,null,null,3]
["Nacht",null,null,null,null,null,null,null,null,null,"außerplan Arbeit/Störung","Klima Störung WE1","durchgeführte Arbeiten","Arbeiten erledigt",1,null,null,null,null,null,null,null,1]
[{"$f":"IF($A$3=\"x\",IF(AND(B713=\"\",O713=\"\",AND(L713=\"\",M713=\"\",P713=\"\")),\"\",IF(B713=\"\",A712,B713)),IF($A$4=\"x\",IF(AND(D713=\"\",O713=\"\",AND(L713=\"\",M713=\"\",P713=\"\")),\"\",IF(D713=\"\",A712,D713)),\"\"))","v":"Nacht"},null,null,null,null,null,null,null,null,null,null,"Klima Störung WE1","durchgeführte Arbeiten","Arbeiten erledigt",1,null,null,null,null,null,null,null,{"$f":"IFERROR(VALUE(IF(A713=\"\",\"\",IF(O713=\"\",0,O713))),\"\")","v":1}]
["Nacht",null,107,null,null,null,null,null,null,null,"außerplan Arbeit/Störung","Anlagen Störung WE1","durchgeführte Arbeiten","Übergeben",2,null,null,null,null,null,null,null,2]
["Nacht",null,null,null,null,null,null,null,null,null,null,null,"durchgeführte Arbeiten",null,16,null,null,null,null,null,null,null,16]
["Nacht",null,null,null,null,null,null,null,null,null,null,null,"durchgeführte Arbeiten",null,null,null,null,null,null,null,null,null,0]
["Tag","Tag",null,"2025-01-28",null,null,null,null,null,null,null,null,null,null,null,null,null,null,null,null,null,null,0]
["Tag",null,101,null,null,null,null,null,null,null,"außerplan Arbeit/Störung",null,"durchgeführte Arbeiten","Arbeiten erledigt",1.5,null,null,null,null,null,null,null,1.5]
["Tag",null,111,null,null,null,null,null,null,null,"I1",null,"durchgeführte Arbeiten","Arbeiten erledigt",20,null,null,null,null,null,null,null,20]
["Tag",null,null,null,null,null,null,null,null,null,null,null,"durchgeführte Arbeiten","Arbeiten erledigt",2,null,null,null,null,null,null,null,2]
["Tag",null,null,null,null,null,null,null,null,null,null,null,"durchgeführte Arbeiten","Arbeiten erledigt",1,null,null,null,null,null,null,null,1]
["Tag",null,null,null,null,null,null,null,null,null,null,null,"durchgeführte Arbeiten","Arbeiten erledigt",2,null,null,null,null,null,null,null,2]
["Tag",null,4,null,null,null,null,null,null,null,"I3",null,"durchgeführte Arbeiten","Übergeben",39,null,null,null,null,null,null,null,39]
["Tag",null,null,null,null,null,null,null,null,null,null,null,"durchgeführte Arbeiten","Arbeiten erledigt",2,null,null,null,null,null,null,null,2]
["Tag",null,null,null,null,null,null,null,null,null,null,null,"durchgeführte Arbeiten","Arbeiten erledigt",1,null,null,null,null,null,null,null,1]
["Tag",null,null,null,null,null,null,null,null,null,null,null,"durchgeführte Arbeiten","Arbeiten erledigt",0.5,null,null,null,null,null,null,null,0.5]
["Tag",null,null,null,null,null,null,null,null,null,"außerplan Arbeit/Störung","Diwa Störung WE2","durchgeführte Arbeiten","Arbeiten erledigt",1,null,null,null,null,null,null,null,1]
["Tag",null,null,null,null,null,null,null,null,null,"außerplan Arbeit/Störung","Diwa Störung WE1","durchgeführte Arbeiten","Arbeiten erledigt",1,null,null,null,null,null,null,null,1]
["Tag",null,null,null,null,null,null,null,null,null,"außerplan Arbeit/Störung","Störung Heizung WE1","durchgeführte Arbeiten","Arbeiten erledigt",4,null,null,null,null,null,null,null,4]
["Tag",null,null,null,null,null,null,null,null,null,"außerplan Arbeit/Störung",null,"durchgeführte Arbeiten","Arbeiten erledigt",2,null,null,null,null,null,null,null,2]
["Tag",null,null,null,null,null,null,null,null,null,"außerplan Arbeit/Störung","Störung Bremse WE1","durchgeführte Arbeiten","Arbeiten erledigt",0.5,null,null,null,null,null,null,null,0.5]
["Tag",null,null,null,null,null,null,null,null,null,"außerplan Arbeit/Störung","Störung Bremse WE2","durchgeführte Arbeiten","Arbeiten erledigt",0.5,null,null,null,null,null,null,null,0.5]
["Tag",null,3,null,null,null,null,null,null,null,"außerplan Arbeit/Störung",null,"durchgeführte Arbeiten","Arbeiten erledigt",0.5,null,null,null,null,null,null,null,0.5]
["Tag",null,null,null,null,null,null,null,null,null,"Unfall",null,"durchgeführte Arbeiten","Arbeiten erledigt",4,null,null,null,null,null,null,null,4]
["Nacht","Nacht",null,"2025-01-28",null,null,null,null,null,null,null,null,null,null,82.5,null,null,null,null,null,null,null,82.5]
["Nacht",null,19,null,null,null,null,null,null,null,"außerplan Arbeit/Störung","Außenspiegel","durchgeführte Arbeiten","Arbeiten erledigt",0.5,null,null,null,null,null,null,null,0.5]
["Nacht",null,null,null,null,null,null,null,null,null,null,null,"durchgeführte Arbeiten","Arbeiten erledigt",1,null,null,null,null,null,null,null,1]
["Nacht",null,124,null,null,null,null,null,null,null,"außerplan Arbeit/Störung",null,"durchgeführte Arbeiten","Arbeiten erledigt",1,null,null,null,null,null,null,null,1]
["Nacht",null,null,null,null,null,null,null,null,null,null,null,"durchgeführte Arbeiten","Arbeiten erledigt",0.5,null,null,null,null,null,null,null,0.5]
["Nacht",null,null,null,null,null,null,null,null,null,null,"Signalbeleuchtung ",null,"Arbeiten erledigt",0.5,null,null,null,null,null,null,null,0.5]
["Nacht",null,123,null,null,null,null,null,null,null,"außerplan Arbeit/Störung",null,"durchgeführte Arbeiten","Arbeiten erledigt",1,null,null,null,null,null,null,null,1]
["Nacht",null,4,null,null,null,null,null,null,null,"I3",null,"durchgeführte Arbeiten","Arbeiten erledigt",1,null,null,null,null,null,null,null,1]
["Nacht",null,22,null,null,null,null,null,null,null,"außerplan Arbeit/Störung","Klima Störung WE1","durchgeführte Arbeiten","Arbeiten erledigt",1,null,null,null,null,null,null,null,1]
["Nacht",null,null,null,null,null,null,null,null,null,null,null,"durchgeführte Arbeiten","Arbeiten erledigt",0.5,null,null,null,null,null,null,null,0.5]
["Nacht",null,null,null,null,null,null,null,null,null,null,"Signalbeleuchtung ","durchgeführte Arbeiten","Arbeiten erledigt",0.5,null,null,null,null,null,null,null,0.5]
["Nacht",null,null,null,null,null,null,null,null,null,null,null,"durchgeführte Arbeiten","Arbeiten erledigt",0.5,null,null,null,null,null,null,null,0.5]
["Nacht",null,113,null,null,null,null,null,null,null,"außerplan Arbeit/Störung","Türe 2Links gestört","durchgeführte Arbeiten","Arbeiten erledigt",1,null,null,null,null,null,null,null,1]
["Nacht",null,104,null,null,null,null,null,null,null,"I1",null,"durchgeführte Arbeiten","Übergeben",3.5,null,null,null,null,null,null,null,3.5]
["Nacht",null,null,null,null,null,null,null,null,null,"außerplan Arbeit/Störung","Klima Störung WE1","durchgeführte Arbeiten","Arbeiten erledigt",2,null,null,null,null,null,null,null,2]
["Nacht",null,142,null,null,null,null,null,null,null,"außerplan Arbeit/Störung","Klima Störung WE1","durchgeführte Arbeiten",null,1,null,null,null,null,null,null,null,1]
["Nacht",null,null,null,null,null,null,null,null,null,null,null,"durchgeführte Arbeiten","Arbeiten erledigt",0.5,null,null,null,null,null,null,null,0.5]
["Tag","Tag",null,"2025-01-29",null,null,null,null,null,null,null,null,null,null,null,null,null,null,null,null,null,null,0]
["Tag",null,123,null,null,null,null,null,null,null,"außerplan Arbeit/Störung","Störung Indusi","durchgeführte Arbeiten","Arbeiten erledigt",1,null,null,null,null,null,null,null,1]
["Tag",null,null,null,null,null,null,null,null,null,"außerplan Arbeit/Störung","WC Entsorgen und Brauchwasser füllen","durchgeführte Arbeiten","Arbeiten erledigt",1,null,null,null,null,null,null,null,1]
["Tag",null,125,null,null,null,null,null,null,null,"außerplan Arbeit/Störung","WC Entsorgen und Brauchwasser füllen","durchgeführte Arbeiten","Arbeiten erledigt",1,null,null,null,null,null,null,null,1]
["Tag",null,104,null,null,null,null,null,null,null,"I1",null,"durchgeführte Arbeiten",null,16.5,null,null,null,null,null,null,null,16.5]
["Tag",null,null,null,null,null,null,null,null,null,null,null,"durchgeführte Arbeiten","Arbeiten erledigt",19.5,null,null,null,null,null,null,null,19.5]
["Tag",null,null,null,null,null,null,null,null,null,null,null,"durchgeführte Arbeiten","Arbeiten erledigt",2,null,null,null,null,null,null,null,2]
["Tag",null,null,null,null,null,null,null,null,null,null,null,"durchgeführte Arbeiten","Arbeiten erledigt",1,null,null,null,null,null,null,null,1]
["Tag",null,null,null,null,null,null,null,null,null,null,null,"durchgeführte Arbeiten","Arbeiten erledigt",1,null,null,null,null,null,null,null,1]
["Tag",null,null,null,null,null,null,null,null,null,null,null,"durchgeführte Arbeiten","Arbeiten erledigt",0.5,null,null,null,null,null,null,null,0.5]
["Tag",null,null,null,null,null,null,null,null,null,null,null,"durchgeführte Arbeiten","Arbeiten erledigt",1,null,null,null,null,null,null,null,1]
["Tag",null,null,null,null,null,null,null,null,null,"ZBF Frist",null,"durchgeführte Arbeiten","Arbeiten erledigt",2.5,null,null,null,null,null,null,null,2.5]
["Tag",null,null,null,null,null,null,null,null,null,"GSMR Frist",null,"durchgeführte Arbeiten","Arbeiten erledigt",1.5,null,null,null,null,null,null,null,1.5]
["Tag",null,null,null,null,null,null,null,null,null,"außerplan Arbeit/Störung",null,"durchgeführte Arbeiten","Arbeiten erledigt",0.5,null,null,null,null,null,null,null,0.5]
["Tag",null,106,null,null,null,null,null,null,null,"außerplan Arbeit/Störung","WC Entsorgen und Brauchwasser füllen","durchgeführte Arbeiten","Arbeiten erledigt",1,null,null,null,null,null,null,null,1]
["Tag",null,122,null,null,null,null,null,null,null,"I2",null,"durchgeführte Arbeiten",null,11,null,null,null,null,null,null,null,11]
["Tag",null,null,null,null,null,null,null,null,null,null,null,"durchgeführte Arbeiten","Arbeiten erledigt",2,null,null,null,null,null,null,null,2]
["Tag",null,null,null,null,null,null,null,null,null,null,null,"durchgeführte Arbeiten","Arbeiten erledigt",1,null,null,null,null,null,null,null,1]
["Tag",null,null,null,null,null,null,null,null,null,null,null,"durchgeführte Arbeiten","Arbeiten erledigt",4.5,null,null,null,null,null,null,null,4.5]
["Tag",null,null,null,null,null,null,null,null,null,null,null,"durchgeführte Arbeiten","Arbeiten erledigt",1,null,null,null,null,null,null,null,1]
["Tag",null,null,null,null,null,null,null,null,null,null,null,"durchgeführte Arbeiten","Arbeiten erledigt",1,null,null,null,null,null,null,null,1]
["Tag",null,null,null,null,null,null,null,null,null,null,null,"durchgeführte Arbeiten","Arbeiten erledigt",3,null,null,null,null,null,null,null,3]
["Tag",null,null,null,null,null,null,null,null,null,null,null,"durchgeführte Arbeiten","Arbeiten erledigt",1,null,null,null,null,null,null,null,1]
["Tag",null,null,null,null,null,null,null,null,null,null,null,"durchgeführte Arbeiten","Arbeiten erledigt",1,null,null,null,null,null,null,null,1]
["Tag",null,null,null,null,null,null,null,null,null,"außerplan Arbeit/Störung",null,"durchgeführte Arbeiten","Arbeiten erledigt",2.5,null,null,null,null,null,null,null,2.5]
[{"$f":"IF($A$3=\"x\",IF(AND(B777=\"\",O777=\"\",AND(L777=\"\",M777=\"\",P777=\"\")),\"\",IF(B777=\"\",A776,B777)),IF($A$4=\"x\",IF(AND(D777=\"\",O777=\"\",AND(L777=\"\",M777=\"\",P777=\"\")),\"\",IF(D777=\"\",A776,D777)),\"\"))","v":"Tag"},null,null,null,null,null,null,null,null,null,null,null,"durchgeführte Arbeiten","Arbeiten erledigt",0.5,null,null,null,null,null,null,null,{"$f":"IFERROR(VALUE(IF(A777=\"\",\"\",IF(O777=\"\",0,O777))),\"\")","v":0.5}]
["Tag",null,"Aufarbeitung",null,null,null,null,null,null,null,"Planarbeit",null,"durchgeführte Arbeiten","Übergeben",17.5,null,null,null,null,null,null,null,17.5]
["Tag",null,142,null,null,null,null,null,null,null,"außerplan Arbeit/Störung","Klima Störung WE1","durchgeführte Arbeiten","Arbeiten erledigt",2,null,null,null,null,null,null,null,2]
["Tag",null,null,null,null,null,null,null,null,null,"außerplan Arbeit/Störung",null,"durchgeführte Arbeiten","Arbeiten erledigt",2,null,null,null,null,null,null,null,2]
["",null,null,null,null,null,null,null,null,null,null,null,null,null,"",null,null,null,null,null,null,null,""]
["",null,null,null,null,null,null,null,null,null,null,null,null,null,"",null,null,null,null,null,null,null,""]
["",null,null,null,null,null,null,null,null,null,null,null,null,null,null,null,null,null,null,null,null,null,""]
["",null,null,null,null,null,null,null,null,null,null,null,null,null,null,null,null,null,null,null,null,null,""]
["",null,null,null,null,null,null,null,null,null,null,null,null,null,null,null,null,null,null,null,null,null,""]
["",null,null,null,null,null,null,null,null,null,null,null,null,null,null,null,null,null,null,null,null,null,""]
["",null,null,null,null,null,null,null,null,null,null,null,null,null,null,null,null,null,null,null,null,null,""]
["",null,null,null,null,null,null,null,null,null,null,null,null,null,null,null,null,null,null,null,null,null,""]
["",null,null,null,null,null,null,null,null,null,null,null,null,null,null,null,null,null,null,null,null,null,""]
["",null,null,null,null,null,null,null,null,null,null,null,null,null,null,null,null,null,null,null,null,null,""]
["",null,null,null,null,null,null,null,null,null,null,null,null,null,null,null,null,null,null,null,null,null,""]
["",null,null,null,null,null,null,null,null,null,null,null,null,null,null,null,null,null,null,null,null,null,""]
["",null,null,null,null,null,null,null,null,null,null,null,null,null,null,null,null,null,null,null,null,null,""]
["",null,null,null,null,null,null,null,null,null,null,null,null,null,null,null,null,null,null,null,null,null,""]
["",null,null,null,null,null,null,null,null,null,null,null,null,null,null,null,null,null,null,null,null,null,""]
["",null,null,null,null,null,null,null,null,null,null,null,null,null,null,null,null,null,null,null,null,null,""]
["",null,null,null,null,null,null,null,null,null,null,null,null,null,null,null,null,null,null,null,null,null,""]
["",null,null,null,null,null,null,null,null,null,null,null,null,null,null,null,null,null,null,null,null,null,""]
["",null,null,null,null,null,null,null,null,null,null,null,null,null,null,null,null,null,null,null,null,null,""]
["",null,null,null,null,null,null,null,null,null,null,null,null,null,null,null,null,null,null,null,null,null,""]
["",null,null,null,null,null,null,null,null,null,null,null,null,null,null,null,null,null,null,null,null,null,""]
["",null,null,null,null,null,null,null,null,null,null,null,null,null,null,null,null,null,null,null,null,null,""]
["",null,null,null,null,null,null,null,null,null,null,null,null,null,"",null,null,null,null,null,null,null,""]
["",null,null,null,null,null,null,null,null,null,null,null,null,null,"",null,null,null,null,null,null,null,""]
["",null,null,null,null,null,null,null,null,null,null,null,null,null,"",null,null,null,null,null,null,null,""]
["",null,null,null,null,null,null,null,null,null,null,null,null,null,"",null,null,null,null,null,null,null,""]
["",null,null,null,null,null,null,null,null,null,null,null,null,null,"",null,null,null,null,null,null,null,""]
["",null,null,null,null,null,null,null,null,null,null,null,null,null,"",null,null,null,null,null,null,null,""]
["",null,null,null,null,null,null,null,null,null,null,null,null,null,"",null,null,null,null,null,null,null,""]
["",null,null,null,null,null,null,null,null,null,null,null,null,null,"",null,null,null,null,null,null,null,""]
["",null,null,null,null,null,null,null,null,null,null,null,null,null,"",null,null,null,null,null,null,null,""]
["",null,null,null,null,null,null,null,null,null,null,null,null,null,"",null,null,null,null,null,null,null,""]
["",null,null,null,null,null,null,null,null,null,null,null,null,null,"",null,null,null,null,null,null,null,""]
["",null,null,null,null,null,null,null,null,null,null,null,null,null,"",null,null,null,null,null,null,null,""]
["",null,null,null,null,null,null,null,null,null,null,null,null,null,"",null,null,null,null,null,null,null,""]
["",null,null,null,null,null,null,null,null,null,null,null,null,null,"",null,null,null,null,null,null,null,""]
["",null,null,null,null,null,null,null,null,null,null,null,null,null,"",null,null,null,null,null,null,null,""]
["",null,null,null,null,null,null,null,null,null,null,null,null,null,"",null,null,null,null,null,null,null,""]
["",null,null,null,null,null,null,null,null,null,null,null,null,null,"",null,null,null,null,null,null,null,""]
["",null,null,null,null,null,null,null,null,null,null,null,null,null,"",null,null,null,null,null,null,null,""]
["",null,null,null,null,null,null,null,null,null,null,null,null,null,"",null,null,null,null,null,null,null,""]
["",null,null,null,null,null,null,null,null,null,null,null,null,null,"",null,null,null,null,null,null,null,""]
["",null,null,null,null,null,null,null,null,null,null,null,null,null,"",null,null,null,null,null,null,null,""]
["",null,null,null,null,null,null,null,null,null,null,null,null,null,"",null,null,null,null,null,null,null,""]
["",null,null,null,null,null,null,null,null,null,null,null,null,null,"",null,null,null,null,null,null,null,""]
["",null,null,null,null,null,null,null,null,null,null,null,null,null,"",null,null,null,null,null,null,null,""]
["",null,null,null,null,null,null,null,null,null,null,null,null,null,"",null,null,null,null,null,null,null,""]
["",null,null,null,null,null,null,null,null,null,null,null,null,null,"",null,null,null,null,null,null,null,""]
["",null,null,null,null,null,null,null,null,null,null,null,null,null,"",null,null,null,null,null,null,null,""]
["",null,null,null,null,null,null,null,null,null,null,null,null,null,"",null,null,null,null,null,null,null,""]
["",null,null,null,null,null,null,null,null,null,null,null,null,null,"",null,null,null,null,null,null,null,""]
["",null,null,null,null,null,null,null,null,null,null,null,null,null,"",null,null,null,null,null,null,null,""]
["",null,null,null,null,null,null,null,null,null,null,null,null,null,"",null,null,null,null,null,null,null,""]
["",null,null,null,null,null,null,null,null,null,null,null,null,null,"",null,null,null,null,null,null,null,""]
["",null,null,null,null,null,null,null,null,null,null,null,null,null,"",null,null,null,null,null,null,null,""]
["",null,null,null,null,null,null,null,null,null,null,null,null,null,"",null,null,null,null,null,null,null,""]
["",null,null,null,null,null,null,null,null,null,null,null,null,null,"",null,null,null,null,null,null,null,""]
["",null,null,null,null,null,null,null,null,null,null,null,null,null,"",null,null,null,null,null,null,null,""]
["",null,null,null,null,null,null,null,null,null,null,null,null,null,"",null,null,null,null,null,null,null,""]
["",null,null,null,null,null,null,null,null,null,null,null,null,null,"",null,null,null,null,null,null,null,""]
[{"$f":"IF($A$3=\"x\",IF(AND(B841=\"\",O841=\"\",AND(L841=\"\",M841=\"\",P841=\"\")),\"\",IF(B841=\"\",A840,B841)),IF($A$4=\"x\",IF(AND(D841=\"\",O841=\"\",AND(L841=\"\",M841=\"\",P841=\"\")),\"\",IF(D841=\"\",A840,D841)),\"\"))","v":""},null,null,null,null,null,null,null,null,null,null,null,null,null,"",null,null,null,null,null,null,null,{"$f":"IFERROR(VALUE(IF(A841=\"\",\"\",IF(O841=\"\",0,O841))),\"\")","v":""}]
["",null,null,null,null,null,null,null,null,null,null,null,null,null,"",null,null,null,null,null,null,null,""]
["",null,null,null,null,null,null,null,null,null,null,null,null,null,"",null,null,null,null,null,null,null,""]
["",null,null,null,null,null,null,null,null,null,null,null,null,null,"",null,null,null,null,null,null,null,""]
["",null,null,null,null,null,null,null,null,null,null,null,null,null,"",null,null,null,null,null,null,null,""]
["",null,null,null,null,null,null,null,null,null,null,null,null,null,"",null,null,null,null,null,null,null,""]
["",null,null,null,null,null,null,null,null,null,null,null,null,null,"",null,null,null,null,null,null,null,""]
["",null,null,null,null,null,null,null,null,null,null,null,null,null,"",null,null,null,null,null,null,null,""]
["",null,null,null,null,null,null,null,null,null,null,null,null,null,"",null,null,null,null,null,null,null,""]
["",null,null,null,null,null,null,null,null,null,null,null,null,null,"",null,null,null,null,null,null,null,""]
["",null,null,null,null,null,null,null,null,null,null,null,null,null,"",null,null,null,null,null,null,null,""]
["",null,null,null,null,null,null,null,null,null,null,null,null,null,"",null,null,null,null,null,null,null,""]
["",null,null,null,null,null,null,null,null,null,null,null,null,null,"",null,null,null,null,null,null,null,""]
["",null,null,null,null,null,null,null,null,null,null,null,null,null,"",null,null,null,null,null,null,null,""]
["",null,null,null,null,null,null,null,null,null,null,null,null,null,"",null,null,null,null,null,null,null,""]
["",null,null,null,null,null,null,null,null,null,null,null,null,null,"",null,null,null,null,null,null,null,""]
["",null,null,null,null,null,null,null,null,null,null,null,null,null,"",null,null,null,null,null,null,null,""]
["",null,null,null,null,null,null,null,null,null,null,null,null,null,"",null,null,null,null,null,null,null,""]
["",null,null,null,null,null,null,null,null,null,null,null,null,null,"",null,null,null,null,null,null,null,""]
["",null,null,null,null,null,null,null,null,null,null,null,null,null,"",null,null,null,null,null,null,null,""]
["",null,null,null,null,null,null,null,null,null,null,null,null,null,"",null,null,null,null,null,null,null,""]
["",null,null,null,null,null,null,null,null,null,null,null,null,null,"",null,null,null,null,null,null,null,""]
["",null,null,null,null,null,null,null,null,null,null,null,null,null,"",null,null,null,null,null,null,null,""]
["",null,null,null,null,null,null,null,null,null,null,null,null,null,"",null,null,null,null,null,null,null,""]
["",null,null,null,null,null,null,null,null,null,null,null,null,null,"",null,null,null,null,null,null,null,""]
["",null,null,null,null,null,null,null,null,null,null,null,null,null,"",null,null,null,null,null,null,null,""]
["",null,null,null,null,null,null,null,null,null,null,null,null,null,"",null,null,null,null,null,null,null,""]
["",null,null,null,null,null,null,null,null,null,null,null,null,null,"",null,null,null,null,null,null,null,""]
["",null,null,null,null,null,null,null,null,null,null,null,null,null,"",null,null,null,null,null,null,null,""]
["",null,null,null,null,null,null,null,null,null,null,null,null,null,"",null,null,null,null,null,null,null,""]
["",null,null,null,null,null,null,null,null,null,null,null,null,null,"",null,null,null,null,null,null,null,""]
["",null,null,null,null,null,null,null,null,null,null,null,null,null,"",null,null,null,null,null,null,null,""]
["",null,null,null,null,null,null,null,null,null,null,null,null,null,"",null,null,null,null,null,null,null,""]
["",null,null,null,null,null,null,null,null,null,null,null,null,null,"",null,null,null,null,null,null,null,""]
["",null,null,null,null,null,null,null,null,null,null,null,null,null,"",null,null,null,null,null,null,null,""]
["",null,null,null,null,null,null,null,null,null,null,null,null,null,"",null,null,null,null,null,null,null,""]
["",null,null,null,null,null,null,null,null,null,null,null,null,null,"",null,null,null,null,null,null,null,""]
["",null,null,null,null,null,null,null,null,null,null,null,null,null,"",null,null,null,null,null,null,null,""]
["",null,null,null,null,null,null,null,null,null,null,null,null,null,"",null,null,null,null,null,null,null,""]
["",null,null,null,null,null,null,null,null,null,null,null,null,null,"",null,null,null,null,null,null,null,""]
["",null,null,null,null,null,null,null,null,null,null,null,null,null,"",null,null,null,null,null,null,null,""]
["",null,null,null,null,null,null,null,null,null,null,null,null,null,"",null,null,null,null,null,null,null,""]
["",null,null,null,null,null,null,null,null,null,null,null,null,null,"",null,null,null,null,null,null,null,""]
["",null,null,null,null,null,null,null,null,null,null,null,null,null,"",null,null,null,null,null,null,null,""]
["",null,null,null,null,null,null,null,null,null,null,null,null,null,"",null,null,null,null,null,null,null,""]
["",null,null,null,null,null,null,null,null,null,null,null,null,null,"",null,null,null,null,null,null,null,""]
["",null,null,null,null,null,null,null,null,null,null,null,null,null,"",null,null,null,null,null,null,null,""]
["",null,null,null,null,null,null,null,null,null,null,null,null,null,"",null,null,null,null,null,null,null,""]
["",null,null,null,null,null,null,null,null,null,null,null,null,null,"",null,null,null,null,null,null,null,""]
["",null,null,null,null,null,null,null,null,null,null,null,null,null,"",null,null,null,null,null,null,null,""]
["",null,null,null,null,null,null,null,null,null,null,null,null,null,"",null,null,null,null,null,null,null,""]
["",null,null,null,null,null,null,null,null,null,null,null,null,null,"",null,null,null,null,null,null,null,""]
["",null,null,null,null,null,null,null,null,null,null,null,null,null,"",null,null,null,null,null,null,null,""]
["",null,null,null,null,null,null,null,null,null,null,null,null,null,"",null,null,null,null,null,null,null,""]
["",null,null,null,null,null,null,null,null,null,null,null,null,null,"",null,null,null,null,null,null,null,""]
["",null,null,null,null,null,null,null,null,null,null,null,null,null,"",null,null,null,null,null,null,null,""]
["",null,null,null,null,null,null,null,null,null,null,null,null,null,"",null,null,null,null,null,null,null,""]
["",null,null,null,null,null,null,null,null,null,null,null,null,null,"",null,null,null,null,null,null,null,""]
["",null,null,null,null,null,null,null,null,null,null,null,null,null,"",null,null,null,null,null,null,null,""]
["",null,null,null,null,null,null,null,null,null,null,null,null,null,"",null,null,null,null,null,null,null,""]
["",null,null,null,null,null,null,null,null,null,null,null,null,null,"",null,null,null,null,null,null,null,""]
["",null,null,null,null,null,null,null,null,null,null,null,null,null,"",null,null,null,null,null,null,null,""]
["",null,null,null,null,null,null,null,null,null,null,null,null,null,"",null,null,null,null,null,null,null,""]
["",null,null,null,null,null,null,null,null,null,null,null,null,null,"",null,null,null,null,null,null,null,""]
[{"$f":"IF($A$3=\"x\",IF(AND(B905=\"\",O905=\"\",AND(L905=\"\",M905=\"\",P905=\"\")),\"\",IF(B905=\"\",A904,B905)),IF($A$4=\"x\",IF(AND(D905=\"\",O905=\"\",AND(L905=\"\",M905=\"\",P905=\"\")),\"\",IF(D905=\"\",A904,D905)),\"\"))","v":""},null,null,null,null,null,null,null,null,null,null,null,null,null,"",null,null,null,null,null,null,null,{"$f":"IFERROR(VALUE(IF(A905=\"\",\"\",IF(O905=\"\",0,O905))),\"\")","v":""}]
["",null,null,null,null,null,null,null,null,null,null,null,null,null,"",null,null,null,null,null,null,null,""]
["",null,null,null,null,null,null,null,null,null,null,null,null,null,"",null,null,null,null,null,null,null,""]
["",null,null,null,null,null,null,null,null,null,null,null,null,null,"",null,null,null,null,null,null,null,""]
["",null,null,null,null,null,null,null,null,null,null,null,null,null,"",null,null,null,null,null,null,null,""]
["",null,null,null,null,null,null,null,null,null,null,null,null,null,"",null,null,null,null,null,null,null,""]
["",null,null,null,null,null,null,null,null,null,null,null,null,null,"",null,null,null,null,null,null,null,""]
["",null,null,null,null,null,null,null,null,null,null,null,null,null,"",null,null,null,null,null,null,null,""]
["",null,null,null,null,null,null,null,null,null,null,null,null,null,"",null,null,null,null,null,null,null,""]
["",null,null,null,null,null,null,null,null,null,null,null,null,null,"",null,null,null,null,null,null,null,""]
["",null,null,null,null,null,null,null,null,null,null,null,null,null,"",null,null,null,null,null,null,null,""]
["",null,null,null,null,null,null,null,null,null,null,null,null,null,"",null,null,null,null,null,null,null,""]
["",null,null,null,null,null,null,null,null,null,null,null,null,null,"",null,null,null,null,null,null,null,""]
["",null,null,null,null,null,null,null,null,null,null,null,null,null,"",null,null,null,null,null,null,null,""]
["",null,null,null,null,null,null,null,null,null,null,null,null,null,"",null,null,null,null,null,null,null,""]
["",null,null,null,null,null,null,null,null,null,null,null,null,null,"",null,null,null,null,null,null,null,""]
["",null,null,null,null,null,null,null,null,null,null,null,null,null,"",null,null,null,null,null,null,null,""]
["",null,null,null,null,null,null,null,null,null,null,null,null,null,"",null,null,null,null,null,null,null,""]
["",null,null,null,null,null,null,null,null,null,null,null,null,null,"",null,null,null,null,null,null,null,""]
["",null,null,null,null,null,null,null,null,null,null,null,null,null,"",null,null,null,null,null,null,null,""]
["",null,null,null,null,null,null,null,null,null,null,null,null,null,"",null,null,null,null,null,null,null,""]
["",null,null,null,null,null,null,null,null,null,null,null,null,null,"",null,null,null,null,null,null,null,""]
["",null,null,null,null,null,null,null,null,null,null,null,null,null,"",null,null,null,null,null,null,null,""]
["",null,null,null,null,null,null,null,null,null,null,null,null,null,"",null,null,null,null,null,null,null,""]
["",null,null,null,null,null,null,null,null,null,null,null,null,null,"",null,null,null,null,null,null,null,""]
["",null,null,null,null,null,null,null,null,null,null,null,null,null,"",null,null,null,null,null,null,null,""]
["",null,null,null,null,null,null,null,null,null,null,null,null,null,"",null,null,null,null,null,null,null,""]
["",null,null,null,null,null,null,null,null,null,null,null,null,null,"",null,null,null,null,null,null,null,""]
["",null,null,null,null,null,null,null,null,null,null,null,null,null,"",null,null,null,null,null,null,null,""]
["",null,null,null,null,null,null,null,null,null,null,null,null,null,"",null,null,null,null,null,null,null,""]
["",null,null,null,null,null,null,null,null,null,null,null,null,null,"",null,null,null,null,null,null,null,""]
["",null,null,null,null,null,null,null,null,null,null,null,null,null,"",null,null,null,null,null,null,null,""]
["",null,null,null,null,null,null,null,null,null,null,null,null,null,"",null,null,null,null,null,null,null,""]
["",null,null,null,null,null,null,null,null,null,null,null,null,null,"",null,null,null,null,null,null,null,""]
["",null,null,null,null,null,null,null,null,null,null,null,null,null,"",null,null,null,null,null,null,null,""]
["",null,null,null,null,null,null,null,null,null,null,null,null,null,"",null,null,null,null,null,null,null,""]
["",null,null,null,null,null,null,null,null,null,null,null,null,null,"",null,null,null,null,null,null,null,""]
["",null,null,null,null,null,null,null,null,null,null,null,null,null,"",null,null,null,null,null,null,null,""]
["",null,null,null,null,null,null,null,null,null,null,null,null,null,"",null,null,null,null,null,null,null,""]
["",null,null,null,null,null,null,null,null,null,null,null,null,null,"",null,null,null,null,null,null,null,""]
["",null,null,null,null,null,null,null,null,null,null,null,null,null,"",null,null,null,null,null,null,null,""]
["",null,null,null,null,null,null,null,null,null,null,null,null,null,"",null,null,null,null,null,null,null,""]
["",null,null,null,null,null,null,null,null,null,null,null,null,null,"",null,null,null,null,null,null,null,""]
["",null,null,null,null,null,null,null,null,null,null,null,null,null,"",null,null,null,null,null,null,null,""]
["",null,null,null,null,null,null,null,null,null,null,null,null,null,"",null,null,null,null,null,null,null,""]
["",null,null,null,null,null,null,null,null,null,null,null,null,null,"",null,null,null,null,null,null,null,""]
["",null,null,null,null,null,null,null,null,null,null,null,null,null,"",null,null,null,null,null,null,null,""]
["",null,null,null,null,null,null,null,null,null,null,null,null,null,"",null,null,null,null,null,null,null,""]
["",null,null,null,null,null,null,null,null,null,null,null,null,null,"",null,null,null,null,null,null,null,""]
["",null,null,null,null,null,null,null,null,null,null,null,null,null,"",null,null,null,null,null,null,null,""]
["",null,null,null,null,null,null,null,null,null,null,null,null,null,"",null,null,null,null,null,null,null,""]
["",null,null,null,null,null,null,null,null,null,null,null,null,null,"",null,null,null,null,null,null,null,""]
["",null,null,null,null,null,null,null,null,null,null,null,null,null,"",null,null,null,null,null,null,null,""]
["",null,null,null,null,null,null,null,null,null,null,null,null,null,"",null,null,null,null,null,null,null,""]
["",null,null,null,null,null,null,null,null,null,null,null,null,null,"",null,null,null,null,null,null,null,""]
["",null,null,null,null,null,null,null,null,null,null,null,null,null,"",null,null,null,null,null,null,null,""]
["",null,null,null,null,null,null,null,null,null,null,null,null,null,"",null,null,null,null,null,null,null,""]
["",null,null,null,null,null,null,null,null,null,null,null,null,null,"",null,null,null,null,null,null,null,""]
["",null,null,null,null,null,null,null,null,null,null,null,null,null,"",null,null,null,null,null,null,null,""]
["",null,null,null,null,null,null,null,null,null,null,null,null,null,"",null,null,null,null,null,null,null,""]
["",null,null,null,null,null,null,null,null,null,null,null,null,null,"",null,null,null,null,null,null,null,""]
["",null,null,null,null,null,null,null,null,null,null,null,null,null,"",null,null,null,null,null,null,null,""]
["",null,null,null,null,null,null,null,null,null,null,null,null,null,"",null,null,null,null,null,null,null,""]
["",null,null,null,null,null,null,null,null,null,null,null,null,null,"",null,null,null,null,null,null,null,""]
[{"$f":"IF($A$3=\"x\",IF(AND(B969=\"\",O969=\"\",AND(L969=\"\",M969=\"\",P969=\"\")),\"\",IF(B969=\"\",A968,B969)),IF($A$4=\"x\",IF(AND(D969=\"\",O969=\"\",AND(L969=\"\",M969=\"\",P969=\"\")),\"\",IF(D969=\"\",A968,D969)),\"\"))","v":""},null,null,null,null,null,null,null,null,null,null,null,null,null,"",null,null,null,null,null,null,null,{"$f":"IFERROR(VALUE(IF(A969=\"\",\"\",IF(O969=\"\",0,O969))),\"\")","v":""}]
["",null,null,null,null,null,null,null,null,null,null,null,null,null,"",null,null,null,null,null,null,null,""]
["",null,null,null,null,null,null,null,null,null,null,null,null,null,"",null,null,null,null,null,null,null,""]
["",null,null,null,null,null,null,null,null,null,null,null,null,null,"",null,null,null,null,null,null,null,""]
["",null,null,null,null,null,null,null,null,null,null,null,null,null,"",null,null,null,null,null,null,null,""]
["",null,null,null,null,null,null,null,null,null,null,null,null,null,"",null,null,null,null,null,null,null,""]
["",null,null,null,null,null,null,null,null,null,null,null,null,null,"",null,null,null,null,null,null,null,""]
["",null,null,null,null,null,null,null,null,null,null,null,null,null,"",null,null,null,null,null,null,null,""]
["",null,null,null,null,null,null,null,null,null,null,null,null,null,"",null,null,null,null,null,null,null,""]
["",null,null,null,null,null,null,null,null,null,null,null,null,null,"",null,null,null,null,null,null,null,""]
["",null,null,null,null,null,null,null,null,null,null,null,null,null,"",null,null,null,null,null,null,null,""]
["",null,null,null,null,null,null,null,null,null,null,null,null,null,"",null,null,null,null,null,null,null,""]
["",null,null,null,null,null,null,null,null,null,null,null,null,null,"",null,null,null,null,null,null,null,""]
["",null,null,null,null,null,null,null,null,null,null,null,null,null,"",null,null,null,null,null,null,null,""]
["",null,null,null,null,null,null,null,null,null,null,null,null,null,"",null,null,null,null,null,null,null,""]
["",null,null,null,null,null,null,null,null,null,null,null,null,null,"",null,null,null,null,null,null,null,""]
["",null,null,null,null,null,null,null,null,null,null,null,null,null,"",null,null,null,null,null,null,null,""]
["",null,null,null,null,null,null,null,null,null,null,null,null,null,"",null,null,null,null,null,null,null,""]
["",null,null,null,null,null,null,null,null,null,null,null,null,null,"",null,null,null,null,null,null,null,""]
["",null,null,null,null,null,null,null,null,null,null,null,null,null,"",null,null,null,null,null,null,null,""]
["",null,null,null,null,null,null,null,null,null,null,null,null,null,"",null,null,null,null,null,null,null,""]
["",null,null,null,null,null,null,null,null,null,null,null,null,null,"",null,null,null,null,null,null,null,""]
["",null,null,null,null,null,null,null,null,null,null,null,null,null,"",null,null,null,null,null,null,null,""]
["",null,null,null,null,null,null,null,null,null,null,null,null,null,"",null,null,null,null,null,null,null,""]
["",null,null,null,null,null,null,null,null,null,null,null,null,null,"",null,null,null,null,null,null,null,""]
["",null,null,null,null,null,null,null,null,null,null,null,null,null,"",null,null,null,null,null,null,null,""]
["",null,null,null,null,null,null,null,null,null,null,null,null,null,"",null,null,null,null,null,null,null,""]
["",null,null,null,null,null,null,null,null,null,null,null,null,null,"",null,null,null,null,null,null,null,""]
["",null,null,null,null,null,null,null,null,null,null,null,null,null,"",null,null,null,null,null,null,null,""]
["",null,null,null,null,null,null,null,null,null,null,null,null,null,"",null,null,null,null,null,null,null,""]
["",null,null,null,null,null,null,null,null,null,null,null,null,null,"",null,null,null,null,null,null,null,""]
["",null,null,null,null,null,null,null,null,null,null,null,null,null,"",null,null,null,null,null,null,null,""]
["",null,null,null,null,null,null,null,null,null,null,null,null,null,"",null,null,null,null,null,null,null,""]
["",null,null,null,null,null,null,null,null,null,null,null,null,null,"",null,null,null,null,null,null,null,""]
["",null,null,null,null,null,null,null,null,null,null,null,null,null,"",null,null,null,null,null,null,null,""]
["",null,null,null,null,null,null,null,null,null,null,null,null,null,"",null,null,null,null,null,null,null,""]
["",null,null,null,null,null,null,null,null,null,null,null,null,null,"",null,null,null,null,null,null,null,""]
["",null,null,null,null,null,null,null,null,null,null,null,null,null,"",null,null,null,null,null,null,null,""]
["",null,null,null,null,null,null,null,null,null,null,null,null,null,"",null,null,null,null,null,null,null,""]
["",null,null,null,null,null,null,null,null,null,null,null,null,null,"",null,null,null,null,null,null,null,""]
["",null,null,null,null,null,null,null,null,null,null,null,null,null,"",null,null,null,null,null,null,null,""]
["",null,null,null,null,null,null,null,null,null,null,null,null,null,"",null,null,null,null,null,null,null,""]
["",null,null,null,null,null,null,null,null,null,null,null,null,null,"",null,null,null,null,null,null,null,""]
["",null,null,null,null,null,null,null,null,null,null,null,null,null,"",null,null,null,null,null,null,null,""]
["",null,null,null,null,null,null,null,null,null,null,null,null,null,"",null,null,null,null,null,null,null,""]
["",null,null,null,null,null,null,null,null,null,null,null,null,null,"",null,null,null,null,null,null,null,""]
["",null,null,null,null,null,null,null,null,null,null,null,null,null,"",null,null,null,null,null,null,null,""]
["",null,null,null,null,null,null,null,null,null,null,null,null,null,"",null,null,null,null,null,null,null,""]
["",null,null,null,null,null,null,null,null,null,null,null,null,null,"",null,null,null,null,null,null,null,""]
["",null,null,null,null,null,null,null,null,null,null,null,null,null,"",null,null,null,null,null,null,null,""]
["",null,null,null,null,null,null,null,null,null,null,null,null,null,"",null,null,null,null,null,null,null,""]
["",null,null,null,null,null,null,null,null,null,null,null,null,null,"",null,null,null,null,null,null,null,""]
["",null,null,null,null,null,null,null,null,null,null,null,null,null,"",null,null,null,null,null,null,null,""]
["",null,null,null,null,null,null,null,null,null,null,null,null,null,"",null,null,null,null,null,null,null,""]
["",null,null,null,null,null,null,null,null,null,null,null,null,null,"",null,null,null,null,null,null,null,""]
["",null,null,null,null,null,null,null,null,null,null,null,null,null,"",null,null,null,null,null,null,null,""]
["",null,null,null,null,null,null,null,null,null,null,null,null,null,"",null,null,null,null,null,null,null,""]
["",null,null,null,null,null,null,null,null,null,null,null,null,null,"",null,null,null,null,null,null,null,""]
["",null,null,null,null,null,null,null,null,null,null,null,null,null,"",null,null,null,null,null,null,null,""]
["",null,null,null,null,null,null,null,null,null,null,null,null,null,"",null,null,null,null,null,null,null,""]
["",null,null,null,null,null,null,null,null,null,null,null,null,null,"",null,null,null,null,null,null,null,""]
["",null,null,null,null,null,null,null,null,null,null,null,null,null,"",null,null,null,null,null,null,null,""]
["",null,null,null,null,null,null,null,null,null,null,null,null,null,"",null,null,null,null,null,null,null,""]
["",null,null,null,null,null,null,null,null,null,null,null,null,null,"",null,null,null,null,null,null,null,""]
[{"$f":"IF($A$3=\"x\",IF(AND(B1033=\"\",O1033=\"\",AND(L1033=\"\",M1033=\"\",P1033=\"\")),\"\",IF(B1033=\"\",A1032,B1033)),IF($A$4=\"x\",IF(AND(D1033=\"\",O1033=\"\",AND(L1033=\"\",M1033=\"\",P1033=\"\")),\"\",IF(D1033=\"\",A1032,D1033)),\"\"))","v":""},null,null,null,null,null,null,null,null,null,null,null,null,null,"",null,null,null,null,null,null,null,{"$f":"IFERROR(VALUE(IF(A1033=\"\",\"\",IF(O1033=\"\",0,O1033))),\"\")","v":""}]
["",null,null,null,null,null,null,null,null,null,null,null,null,null,"",null,null,null,null,null,null,null,""]
["",null,null,null,null,null,null,null,null,null,null,null,null,null,"",null,null,null,null,null,null,null,""]
["",null,null,null,null,null,null,null,null,null,null,null,null,null,"",null,null,null,null,null,null,null,""]
["",null,null,null,null,null,null,null,null,null,null,null,null,null,"",null,null,null,null,null,null,null,""]
["",null,null,null,null,null,null,null,null,null,null,null,null,null,"",null,null,null,null,null,null,null,""]
["",null,null,null,null,null,null,null,null,null,null,null,null,null,"",null,null,null,null,null,null,null,""]
["",null,null,null,null,null,null,null,null,null,null,null,null,null,"",null,null,null,null,null,null,null,""]
["",null,null,null,null,null,null,null,null,null,null,null,null,null,"",null,null,null,null,null,null,null,""]
["",null,null,null,null,null,null,null,null,null,null,null,null,null,"",null,null,null,null,null,null,null,""]
["",null,null,null,null,null,null,null,null,null,null,null,null,null,"",null,null,null,null,null,null,null,""]
["",null,null,null,null,null,null,null,null,null,null,null,null,null,"",null,null,null,null,null,null,null,""]
["",null,null,null,null,null,null,null,null,null,null,null,null,null,"",null,null,null,null,null,null,null,""]
["",null,null,null,null,null,null,null,null,null,null,null,null,null,"",null,null,null,null,null,null,null,""]
["",null,null,null,null,null,null,null,null,null,null,null,null,null,"",null,null,null,null,null,null,null,""]
["",null,null,null,null,null,null,null,null,null,null,null,null,null,"",null,null,null,null,null,null,null,""]
["",null,null,null,null,null,null,null,null,null,null,null,null,null,"",null,null,null,null,null,null,null,""]
["",null,null,null,null,null,null,null,null,null,null,null,null,null,"",null,null,null,null,null,null,null,""]
["",null,null,null,null,null,null,null,null,null,null,null,null,null,"",null,null,null,null,null,null,null,""]
["",null,null,null,null,null,null,null,null,null,null,null,null,null,"",null,null,null,null,null,null,null,""]
["",null,null,null,null,null,null,null,null,null,null,null,null,null,"",null,null,null,null,null,null,null,""]
["",null,null,null,null,null,null,null,null,null,null,null,null,null,"",null,null,null,null,null,null,null,""]
["",null,null,null,null,null,null,null,null,null,null,null,null,null,"",null,null,null,null,null,null,null,""]
["",null,null,null,null,null,null,null,null,null,null,null,null,null,"",null,null,null,null,null,null,null,""]
["",null,null,null,null,null,null,null,null,null,null,null,null,null,"",null,null,null,null,null,null,null,""]
["",null,null,null,null,null,null,null,null,null,null,null,null,null,"",null,null,null,null,null,null,null,""]
["",null,null,null,null,null,null,null,null,null,null,null,null,null,"",null,null,null,null,null,null,null,""]
["",null,null,null,null,null,null,null,null,null,null,null,null,null,"",null,null,null,null,null,null,null,""]
["",null,null,null,null,null,null,null,null,null,null,null,null,null,"",null,null,null,null,null,null,null,""]
["",null,null,null,null,null,null,null,null,null,null,null,null,null,"",null,null,null,null,null,null,null,""]
["",null,null,null,null,null,null,null,null,null,null,null,null,null,"",null,null,null,null,null,null,null,""]
["",null,null,null,null,null,null,null,null,null,null,null,null,null,"",null,null,null,null,null,null,null,""]
["",null,null,null,null,null,null,null,null,null,null,null,null,null,"",null,null,null,null,null,null,null,""]
["",null,null,null,null,null,null,null,null,null,null,null,null,null,"",null,null,null,null,null,null,null,""]
["",null,null,null,null,null,null,null,null,null,null,null,null,null,"",null,null,null,null,null,null,null,""]
["",null,null,null,null,null,null,null,null,null,null,null,null,null,"",null,null,null,null,null,null,null,""]
["",null,null,null,null,null,null,null,null,null,null,null,null,null,"",null,null,null,null,null,null,null,""]
["",null,null,null,null,null,null,null,null,null,null,null,null,null,"",null,null,null,null,null,null,null,""]
["",null,null,null,null,null,null,null,null,null,null,null,null,null,"",null,null,null,null,null,null,null,""]
["",null,null,null,null,null,null,null,null,null,null,null,null,null,"",null,null,null,null,null,null,null,""]
["",null,null,null,null,null,null,null,null,null,null,null,null,null,"",null,null,null,null,null,null,null,""]
["",null,null,null,null,null,null,null,null,null,null,null,null,null,"",null,null,null,null,null,null,null,""]
["",null,null,null,null,null,null,null,null,null,null,null,null,null,"",null,null,null,null,null,null,null,""]
["",null,null,null,null,null,null,null,null,null,null,null,null,null,"",null,null,null,null,null,null,null,""]
["",null,null,null,null,null,null,null,null,null,null,null,null,null,"",null,null,null,null,null,null,null,""]
["",null,null,null,null,null,null,null,null,null,null,null,null,null,"",null,null,null,null,null,null,null,""]
["",null,null,null,null,null,null,null,null,null,null,null,null,null,"",null,null,null,null,null,null,null,""]
["",null,null,null,null,null,null,null,null,null,null,null,null,null,"",null,null,null,null,null,null,null,""]
["",null,null,null,null,null,null,null,null,null,null,null,null,null,"",null,null,null,null,null,null,null,""]
["",null,null,null,null,null,null,null,null,null,null,null,null,null,"",null,null,null,null,null,null,null,""]
["",null,null,null,null,null,null,null,null,null,null,null,null,null,"",null,null,null,null,null,null,null,""]
["",null,null,null,null,null,null,null,null,null,null,null,null,null,"",null,null,null,null,null,null,null,""]
["",null,null,null,null,null,null,null,null,null,null,null,null,null,"",null,null,null,null,null,null,null,""]
["",null,null,null,null,null,null,null,null,null,null,null,null,null,"",null,null,null,null,null,null,null,""]
["",null,null,null,null,null,null,null,null,null,null,null,null,null,"",null,null,null,null,null,null,null,""]
["",null,null,null,null,null,null,null,null,null,null,null,null,null,"",null,null,null,null,null,null,null,""]
["",null,null,null,null,null,null,null,null,null,null,null,null,null,"",null,null,null,null,null,null,null,""]
["",null,null,null,null,null,null,null,null,null,null,null,null,null,"",null,null,null,null,null,null,null,""]
["",null,null,null,null,null,null,null,null,null,null,null,null,null,"",null,null,null,null,null,null,null,""]
["",null,null,null,null,null,null,null,null,null,null,null,null,null,"",null,null,null,null,null,null,null,""]
["",null,null,null,null,null,null,null,null,null,null,null,null,null,"",null,null,null,null,null,null,null,""]
["",null,null,null,null,null,null,null,null,null,null,null,null,null,"",null,null,null,null,null,null,null,""]
["",null,null,null,null,null,null,null,null,null,null,null,null,null,"",null,null,null,null,null,null,null,""]
["",null,null,null,null,null,null,null,null,null,null,null,null,null,"",null,null,null,null,null,null,null,""]
[{"$f":"IF($A$3=\"x\",IF(AND(B1097=\"\",O1097=\"\",AND(L1097=\"\",M1097=\"\",P1097=\"\")),\"\",IF(B1097=\"\",A1096,B1097)),IF($A$4=\"x\",IF(AND(D1097=\"\",O1097=\"\",AND(L1097=\"\",M1097=\"\",P1097=\"\")),\"\",IF(D1097=\"\",A1096,D1097)),\"\"))","v":""},null,null,null,null,null,null,null,null,null,null,null,null,null,"",null,null,null,null,null,null,null,{"$f":"IFERROR(VALUE(IF(A1097=\"\",\"\",IF(O1097=\"\",0,O1097))),\"\")","v":""}]
["",null,null,null,null,null,null,null,null,null,null,null,null,null,"",null,null,null,null,null,null,null,""]
["",null,null,null,null,null,null,null,null,null,null,null,null,null,"",null,null,null,null,null,null,null,""]
["",null,null,null,null,null,null,null,null,null,null,null,null,null,"",null,null,null,null,null,null,null,""]
["",null,null,null,null,null,null,null,null,null,null,null,null,null,"",null,null,null,null,null,null,null,""]
["",null,null,null,null,null,null,null,null,null,null,null,null,null,"",null,null,null,null,null,null,null,""]
["",null,null,null,null,null,null,null,null,null,null,null,null,null,"",null,null,null,null,null,null,null,""]
["",null,null,null,null,null,null,null,null,null,null,null,null,null,"",null,null,null,null,null,null,null,""]
["",null,null,null,null,null,null,null,null,null,null,null,null,null,"",null,null,null,null,null,null,null,""]
["",null,null,null,null,null,null,null,null,null,null,null,null,null,"",null,null,null,null,null,null,null,""]
["",null,null,null,null,null,null,null,null,null,null,null,null,null,"",null,null,null,null,null,null,null,""]
["",null,null,null,null,null,null,null,null,null,null,null,null,null,"",null,null,null,null,null,null,null,""]
["",null,null,null,null,null,null,null,null,null,null,null,null,null,"",null,null,null,null,null,null,null,""]
["",null,null,null,null,null,null,null,null,null,null,null,null,null,"",null,null,null,null,null,null,null,""]
["",null,null,null,null,null,null,null,null,null,null,null,null,null,"",null,null,null,null,null,null,null,""]
["",null,null,null,null,null,null,null,null,null,null,null,null,null,"",null,null,null,null,null,null,null,""]
["",null,null,null,null,null,null,null,null,null,null,null,null,null,"",null,null,null,null,null,null,null,""]
["",null,null,null,null,null,null,null,null,null,null,null,null,null,"",null,null,null,null,null,null,null,""]
["",null,null,null,null,null,null,null,null,null,null,null,null,null,"",null,null,null,null,null,null,null,""]
["",null,null,null,null,null,null,null,null,null,null,null,null,null,"",null,null,null,null,null,null,null,""]
["",null,null,null,null,null,null,null,null,null,null,null,null,null,"",null,null,null,null,null,null,null,""]
["",null,null,null,null,null,null,null,null,null,null,null,null,null,"",null,null,null,null,null,null,null,""]
["",null,null,null,null,null,null,null,null,null,null,null,null,null,"",null,null,null,null,null,null,null,""]
["",null,null,null,null,null,null,null,null,null,null,null,null,null,"",null,null,null,null,null,null,null,""]
["",null,null,null,null,null,null,null,null,null,null,null,null,null,"",null,null,null,null,null,null,null,""]
["",null,null,null,null,null,null,null,null,null,null,null,null,null,"",null,null,null,null,null,null,null,""]
["",null,null,null,null,null,null,null,null,null,null,null,null,null,"",null,null,null,null,null,null,null,""]
["",null,null,null,null,null,null,null,null,null,null,null,null,null,"",null,null,null,null,null,null,null,""]
["",null,null,null,null,null,null,null,null,null,null,null,null,null,"",null,null,null,null,null,null,null,""]
["",null,null,null,null,null,null,null,null,null,null,null,null,null,"",null,null,null,null,null,null,null,""]
["",null,null,null,null,null,null,null,null,null,null,null,null,null,"",null,null,null,null,null,null,null,""]
["",null,null,null,null,null,null,null,null,null,null,null,null,null,"",null,null,null,null,null,null,null,""]
["",null,null,null,null,null,null,null,null,null,null,null,null,null,"",null,null,null,null,null,null,null,""]
["",null,null,null,null,null,null,null,null,null,null,null,null,null,"",null,null,null,null,null,null,null,""]
["",null,null,null,null,null,null,null,null,null,null,null,null,null,"",null,null,null,null,null,null,null,""]
["",null,null,null,null,null,null,null,null,null,null,null,null,null,"",null,null,null,null,null,null,null,""]
["",null,null,null,null,null,null,null,null,null,null,null,null,null,"",null,null,null,null,null,null,null,""]
["",null,null,null,null,null,null,null,null,null,null,null,null,null,"",null,null,null,null,null,null,null,""]
["",null,null,null,null,null,null,null,null,null,null,null,null,null,"",null,null,null,null,null,null,null,""]
["",null,null,null,null,null,null,null,null,null,null,null,null,null,"",null,null,null,null,null,null,null,""]
["",null,null,null,null,null,null,null,null,null,null,null,null,null,"",null,null,null,null,null,null,null,""]
["",null,null,null,null,null,null,null,null,null,null,null,null,null,"",null,null,null,null,null,null,null,""]
["",null,null,null,null,null,null,null,null,null,null,null,null,null,"",null,null,null,null,null,null,null,""]
["",null,null,null,null,null,null,null,null,null,null,null,null,null,"",null,null,null,null,null,null,null,""]
["",null,null,null,null,null,null,null,null,null,null,null,null,null,"",null,null,null,null,null,null,null,""]
["",null,null,null,null,null,null,null,null,null,null,null,null,null,"",null,null,null,null,null,null,null,""]
["",null,null,null,null,null,null,null,null,null,null,null,null,null,"",null,null,null,null,null,null,null,""]
["",null,null,null,null,null,null,null,null,null,null,null,null,null,"",null,null,null,null,null,null,null,""]
["",null,null,null,null,null,null,null,null,null,null,null,null,null,"",null,null,null,null,null,null,null,""]
["",null,null,null,null,null,null,null,null,null,null,null,null,null,"",null,null,null,null,null,null,null,""]
["",null,null,null,null,null,null,null,null,null,null,null,null,null,"",null,null,null,null,null,null,null,""]
["",null,null,null,null,null,null,null,null,null,null,null,null,null,"",null,null,null,null,null,null,null,""]
["",null,null,null,null,null,null,null,null,null,null,null,null,null,"",null,null,null,null,null,null,null,""]
["",null,null,null,null,null,null,null,null,null,null,null,null,null,"",null,null,null,null,null,null,null,""]
["",null,null,null,null,null,null,null,null,null,null,null,null,null,"",null,null,null,null,null,null,null,""]
["",null,null,null,null,null,null,null,null,null,null,null,null,null,"",null,null,null,null,null,null,null,""]
["",null,null,null,null,null,null,null,null,null,null,null,null,null,"",null,null,null,null,null,null,null,""]
["",null,null,null,null,null,null,null,null,null,null,null,null,null,"",null,null,null,null,null,null,null,""]
["",null,null,null,null,null,null,null,null,null,null,null,null,null,"",null,null,null,null,null,null,null,""]
["",null,null,null,null,null,null,null,null,null,null,null,null,null,"",null,null,null,null,null,null,null,""]
["",null,null,null,null,null,null,null,null,null,null,null,null,null,"",null,null,null,null,null,null,null,""]
["",null,null,null,null,null,null,null,null,null,null,null,null,null,"",null,null,null,null,null,null,null,""]
["",null,null,null,null,null,null,null,null,null,null,null,null,null,"",null,null,null,null,null,null,null,""]
["",null,null,null,null,null,null,null,null,null,null,null,null,null,"",null,null,null,null,null,null,null,""]
[{"$f":"IF($A$3=\"x\",IF(AND(B1161=\"\",O1161=\"\",AND(L1161=\"\",M1161=\"\",P1161=\"\")),\"\",IF(B1161=\"\",A1160,B1161)),IF($A$4=\"x\",IF(AND(D1161=\"\",O1161=\"\",AND(L1161=\"\",M1161=\"\",P1161=\"\")),\"\",IF(D1161=\"\",A1160,D1161)),\"\"))","v":""},null,null,null,null,null,null,null,null,null,null,null,null,null,"",null,null,null,null,null,null,null,{"$f":"IFERROR(VALUE(IF(A1161=\"\",\"\",IF(O1161=\"\",0,O1161))),\"\")","v":""}]
["",null,null,null,null,null,null,null,null,null,null,null,null,null,"",null,null,null,null,null,null,null,""]
["",null,null,null,null,null,null,null,null,null,null,null,null,null,"",null,null,null,null,null,null,null,""]
["",null,null,null,null,null,null,null,null,null,null,null,null,null,"",null,null,null,null,null,null,null,""]
["",null,null,null,null,null,null,null,null,null,null,null,null,null,"",null,null,null,null,null,null,null,""]
["",null,null,null,null,null,null,null,null,null,null,null,null,null,"",null,null,null,null,null,null,null,""]
["",null,null,null,null,null,null,null,null,null,null,null,null,null,"",null,null,null,null,null,null,null,""]
["",null,null,null,null,null,null,null,null,null,null,null,null,null,"",null,null,null,null,null,null,null,""]
["",null,null,null,null,null,null,null,null,null,null,null,null,null,"",null,null,null,null,null,null,null,""]
["",null,null,null,null,null,null,null,null,null,null,null,null,null,"",null,null,null,null,null,null,null,""]
["",null,null,null,null,null,null,null,null,null,null,null,null,null,"",null,null,null,null,null,null,null,""]
["",null,null,null,null,null,null,null,null,null,null,null,null,null,"",null,null,null,null,null,null,null,""]
["",null,null,null,null,null,null,null,null,null,null,null,null,null,"",null,null,null,null,null,null,null,""]
["",null,null,null,null,null,null,null,null,null,null,null,null,null,"",null,null,null,null,null,null,null,""]
["",null,null,null,null,null,null,null,null,null,null,null,null,null,"",null,null,null,null,null,null,null,""]
["",null,null,null,null,null,null,null,null,null,null,null,null,null,"",null,null,null,null,null,null,null,""]
["",null,null,null,null,null,null,null,null,null,null,null,null,null,"",null,null,null,null,null,null,null,""]
["",null,null,null,null,null,null,null,null,null,null,null,null,null,"",null,null,null,null,null,null,null,""]
["",null,null,null,null,null,null,null,null,null,null,null,null,null,"",null,null,null,null,null,null,null,""]
["",null,null,null,null,null,null,null,null,null,null,null,null,null,"",null,null,null,null,null,null,null,""]
["",null,null,null,null,null,null,null,null,null,null,null,null,null,"",null,null,null,null,null,null,null,""]
["",null,null,null,null,null,null,null,null,null,null,null,null,null,"",null,null,null,null,null,null,null,""]
["",null,null,null,null,null,null,null,null,null,null,null,null,null,"",null,null,null,null,null,null,null,""]
["",null,null,null,null,null,null,null,null,null,null,null,null,null,"",null,null,null,null,null,null,null,""]
["",null,null,null,null,null,null,null,null,null,null,null,null,null,"",null,null,null,null,null,null,null,""]
["",null,null,null,null,null,null,null,null,null,null,null,null,null,"",null,null,null,null,null,null,null,""]
["",null,null,null,null,null,null,null,null,null,null,null,null,null,"",null,null,null,null,null,null,null,""]
["",null,null,null,null,null,null,null,null,null,null,null,null,null,"",null,null,null,null,null,null,null,""]
["",null,null,null,null,null,null,null,null,null,null,null,null,null,"",null,null,null,null,null,null,null,""]
["",null,null,null,null,null,null,null,null,null,null,null,null,null,"",null,null,null,null,null,null,null,""]
["",null,null,null,null,null,null,null,null,null,null,null,null,null,"",null,null,null,null,null,null,null,""]
["",null,null,null,null,null,null,null,null,null,null,null,null,null,"",null,null,null,null,null,null,null,""]
["",null,null,null,null,null,null,null,null,null,null,null,null,null,"",null,null,null,null,null,null,null,""]
["",null,null,null,null,null,null,null,null,null,null,null,null,null,"",null,null,null,null,null,null,null,""]
["",null,null,null,null,null,null,null,null,null,null,null,null,null,"",null,null,null,null,null,null,null,""]
["",null,null,null,null,null,null,null,null,null,null,null,null,null,"",null,null,null,null,null,null,null,""]
["",null,null,null,null,null,null,null,null,null,null,null,null,null,"",null,null,null,null,null,null,null,""]
["",null,null,null,null,null,null,null,null,null,null,null,null,null,"",null,null,null,null,null,null,null,""]
["",null,null,null,null,null,null,null,null,null,null,null,null,null,"",null,null,null,null,null,null,null,""]
["",null,null,null,null,null,null,null,null,null,null,null,null,null,"",null,null,null,null,null,null,null,""]
["",null,null,null,null,null,null,null,null,null,null,null,null,null,"",null,null,null,null,null,null,null,""]
["",null,null,null,null,null,null,null,null,null,null,null,null,null,"",null,null,null,null,null,null,null,""]
["",null,null,null,null,null,null,null,null,null,null,null,null,null,"",null,null,null,null,null,null,null,""]
["",null,null,null,null,null,null,null,null,null,null,null,null,null,"",null,null,null,null,null,null,null,""]
["",null,null,null,null,null,null,null,null,null,null,null,null,null,"",null,null,null,null,null,null,null,""]
["",null,null,null,null,null,null,null,null,null,null,null,null,null,"",null,null,null,null,null,null,null,""]
["",null,null,null,null,null,null,null,null,null,null,null,null,null,"",null,null,null,null,null,null,null,""]
["",null,null,null,null,null,null,null,null,null,null,null,null,null,"",null,null,null,null,null,null,null,""]
["",null,null,null,null,null,null,null,null,null,null,null,null,null,"",null,null,null,null,null,null,null,""]
["",null,null,null,null,null,null,null,null,null,null,null,null,null,"",null,null,null,null,null,null,null,""]
["",null,null,null,null,null,null,null,null,null,null,null,null,null,"",null,null,null,null,null,null,null,""]
["",null,null,null,null,null,null,null,null,null,null,null,null,null,"",null,null,null,null,null,null,null,""]
["",null,null,null,null,null,null,null,null,null,null,null,null,null,"",null,null,null,null,null,null,null,""]
["",null,null,null,null,null,null,null,null,null,null,null,null,null,"",null,null,null,null,null,null,null,""]
["",null,null,null,null,null,null,null,null,null,null,null,null,null,"",null,null,null,null,null,null,null,""]
["",null,null,null,null,null,null,null,null,null,null,null,null,null,"",null,null,null,null,null,null,null,""]
["",null,null,null,null,null,null,null,null,null,null,null,null,null,"",null,null,null,null,null,null,null,""]
["",null,null,null,null,null,null,null,null,null,null,null,null,null,"",null,null,null,null,null,null,null,""]
["",null,null,null,null,null,null,null,null,null,null,null,null,null,"",null,null,null,null,null,null,null,""]
["",null,null,null,null,null,null,null,null,null,null,null,null,null,"",null,null,null,null,null,null,null,""]
["",null,null,null,null,null,null,null,null,null,null,null,null,null,"",null,null,null,null,null,null,null,""]
["",null,null,null,null,null,null,null,null,null,null,null,null,null,"",null,null,null,null,null,null,null,""]
["",null,null,null,null,null,null,null,null,null,null,null,null,null,"",null,null,null,null,null,null,null,""]
["",null,null,null,null,null,null,null,null,null,null,null,null,null,"",null,null,null,null,null,null,null,""]
[{"$f":"IF($A$3=\"x\",IF(AND(B1225=\"\",O1225=\"\",AND(L1225=\"\",M1225=\"\",P1225=\"\")),\"\",IF(B1225=\"\",A1224,B1225)),IF($A$4=\"x\",IF(AND(D1225=\"\",O1225=\"\",AND(L1225=\"\",M1225=\"\",P1225=\"\")),\"\",IF(D1225=\"\",A1224,D1225)),\"\"))","v":""},null,null,null,null,null,null,null,null,null,null,null,null,null,"",null,null,null,null,null,null,null,{"$f":"IFERROR(VALUE(IF(A1225=\"\",\"\",IF(O1225=\"\",0,O1225))),\"\")","v":""}]
["",null,null,null,null,null,null,null,null,null,null,null,null,null,"",null,null,null,null,null,null,null,""]
["",null,null,null,null,null,null,null,null,null,null,null,null,null,"",null,null,null,null,null,null,null,""]
["",null,null,null,null,null,null,null,null,null,null,null,null,null,"",null,null,null,null,null,null,null,""]
["",null,null,null,null,null,null,null,null,null,null,null,null,null,"",null,null,null,null,null,null,null,""]
["",null,null,null,null,null,null,null,null,null,null,null,null,null,"",null,null,null,null,null,null,null,""]
["",null,null,null,null,null,null,null,null,null,null,null,null,null,"",null,null,null,null,null,null,null,""]
["",null,null,null,null,null,null,null,null,null,null,null,null,null,"",null,null,null,null,null,null,null,""]
["",null,null,null,null,null,null,null,null,null,null,null,null,null,"",null,null,null,null,null,null,null,""]
["",null,null,null,null,null,null,null,null,null,null,null,null,null,"",null,null,null,null,null,null,null,""]
["",null,null,null,null,null,null,null,null,null,null,null,null,null,"",null,null,null,null,null,null,null,""]
["",null,null,null,null,null,null,null,null,null,null,null,null,null,"",null,null,null,null,null,null,null,""]
["",null,null,null,null,null,null,null,null,null,null,null,null,null,"",null,null,null,null,null,null,null,""]
["",null,null,null,null,null,null,null,null,null,null,null,null,null,"",null,null,null,null,null,null,null,""]
["",null,null,null,null,null,null,null,null,null,null,null,null,null,"",null,null,null,null,null,null,null,""]
["",null,null,null,null,null,null,null,null,null,null,null,null,null,"",null,null,null,null,null,null,null,""]
["",null,null,null,null,null,null,null,null,null,null,null,null,null,"",null,null,null,null,null,null,null,""]
["",null,null,null,null,null,null,null,null,null,null,null,null,null,"",null,null,null,null,null,null,null,""]
["",null,null,null,null,null,null,null,null,null,null,null,null,null,"",null,null,null,null,null,null,null,""]
["",null,null,null,null,null,null,null,null,null,null,null,null,null,"",null,null,null,null,null,null,null,""]
["",null,null,null,null,null,null,null,null,null,null,null,null,null,"",null,null,null,null,null,null,null,""]
["",null,null,null,null,null,null,null,null,null,null,null,null,null,"",null,null,null,null,null,null,null,""]
["",null,null,null,null,null,null,null,null,null,null,null,null,null,"",null,null,null,null,null,null,null,""]
["",null,null,null,null,null,null,null,null,null,null,null,null,null,"",null,null,null,null,null,null,null,""]
["",null,null,null,null,null,null,null,null,null,null,null,null,null,"",null,null,null,null,null,null,null,""]
["",null,null,null,null,null,null,null,null,null,null,null,null,null,"",null,null,null,null,null,null,null,""]
["",null,null,null,null,null,null,null,null,null,null,null,null,null,"",null,null,null,null,null,null,null,""]
["",null,null,null,null,null,null,null,null,null,null,null,null,null,"",null,null,null,null,null,null,null,""]
["",null,null,null,null,null,null,null,null,null,null,null,null,null,"",null,null,null,null,null,null,null,""]
["",null,null,null,null,null,null,null,null,null,null,null,null,null,"",null,null,null,null,null,null,null,""]
["",null,null,null,null,null,null,null,null,null,null,null,null,null,"",null,null,null,null,null,null,null,""]
["",null,null,null,null,null,null,null,null,null,null,null,null,null,"",null,null,null,null,null,null,null,""]
["",null,null,null,null,null,null,null,null,null,null,null,null,null,"",null,null,null,null,null,null,null,""]
["",null,null,null,null,null,null,null,null,null,null,null,null,null,"",null,null,null,null,null,null,null,""]
["",null,null,null,null,null,null,null,null,null,null,null,null,null,"",null,null,null,null,null,null,null,""]
["",null,null,null,null,null,null,null,null,null,null,null,null,null,"",null,null,null,null,null,null,null,""]
["",null,null,null,null,null,null,null,null,null,null,null,null,null,"",null,null,null,null,null,null,null,""]
["",null,null,null,null,null,null,null,null,null,null,null,null,null,"",null,null,null,null,null,null,null,""]
["",null,null,null,null,null,null,null,null,null,null,null,null,null,"",null,null,null,null,null,null,null,""]
["",null,null,null,null,null,null,null,null,null,null,null,null,null,"",null,null,null,null,null,null,null,""]
["",null,null,null,null,null,null,null,null,null,null,null,null,null,"",null,null,null,null,null,null,null,""]
["",null,null,null,null,null,null,null,null,null,null,null,null,null,"",null,null,null,null,null,null,null,""]
["",null,null,null,null,null,null,null,null,null,null,null,null,null,"",null,null,null,null,null,null,null,""]
["",null,null,null,null,null,null,null,null,null,null,null,null,null,"",null,null,null,null,null,null,null,""]
["",null,null,null,null,null,null,null,null,null,null,null,null,null,"",null,null,null,null,null,null,null,""]
["",null,null,null,null,null,null,null,null,null,null,null,null,null,"",null,null,null,null,null,null,null,""]
["",null,null,null,null,null,null,null,null,null,null,null,null,null,"",null,null,null,null,null,null,null,""]
["",null,null,null,null,null,null,null,null,null,null,null,null,null,"",null,null,null,null,null,null,null,""]
["",null,null,null,null,null,null,null,null,null,null,null,null,null,"",null,null,null,null,null,null,null,""]
["",null,null,null,null,null,null,null,null,null,null,null,null,null,"",null,null,null,null,null,null,null,""]
["",null,null,null,null,null,null,null,null,null,null,null,null,null,"",null,null,null,null,null,null,null,""]
["",null,null,null,null,null,null,null,null,null,null,null,null,null,"",null,null,null,null,null,null,null,""]
["",null,null,null,null,null,null,null,null,null,null,null,null,null,"",null,null,null,null,null,null,null,""]
["",null,null,null,null,null,null,null,null,null,null,null,null,null,"",null,null,null,null,null,null,null,""]
["",null,null,null,null,null,null,null,null,null,null,null,null,null,"",null,null,null,null,null,null,null,""]
["",null,null,null,null,null,null,null,null,null,null,null,null,null,"",null,null,null,null,null,null,null,""]
["",null,null,null,null,null,null,null,null,null,null,null,null,null,"",null,null,null,null,null,null,null,""]
["",null,null,null,null,null,null,null,null,null,null,null,null,null,"",null,null,null,null,null,null,null,""]
["",null,null,null,null,null,null,null,null,null,null,null,null,null,"",null,null,null,null,null,null,null,""]
["",null,null,null,null,null,null,null,null,null,null,null,null,null,"",null,null,null,null,null,null,null,""]
["",null,null,null,null,null,null,null,null,null,null,null,null,null,"",null,null,null,null,null,null,null,""]
["",null,null,null,null,null,null,null,null,null,null,null,null,null,"",null,null,null,null,null,null,null,""]
["",null,null,null,null,null,null,null,null,null,null,null,null,null,"",null,null,null,null,null,null,null,""]
["",null,null,null,null,null,null,null,null,null,null,null,null,null,"",null,null,null,null,null,null,null,""]
[{"$f":"IF($A$3=\"x\",IF(AND(B1289=\"\",O1289=\"\",AND(L1289=\"\",M1289=\"\",P1289=\"\")),\"\",IF(B1289=\"\",A1288,B1289)),IF($A$4=\"x\",IF(AND(D1289=\"\",O1289=\"\",AND(L1289=\"\",M1289=\"\",P1289=\"\")),\"\",IF(D1289=\"\",A1288,D1289)),\"\"))","v":""},null,null,null,null,null,null,null,null,null,null,null,null,null,"",null,null,null,null,null,null,null,{"$f":"IFERROR(VALUE(IF(A1289=\"\",\"\",IF(O1289=\"\",0,O1289))),\"\")","v":""}]
["",null,null,null,null,null,null,null,null,null,null,null,null,null,"",null,null,null,null,null,null,null,""]
["",null,null,null,null,null,null,null,null,null,null,null,null,null,"",null,null,null,null,null,null,null,""]
["",null,null,null,null,null,null,null,null,null,null,null,null,null,"",null,null,null,null,null,null,null,""]
["",null,null,null,null,null,null,null,null,null,null,null,null,null,"",null,null,null,null,null,null,null,""]
["",null,null,null,null,null,null,null,null,null,null,null,null,null,"",null,null,null,null,null,null,null,""]
["",null,null,null,null,null,null,null,null,null,null,null,null,null,"",null,null,null,null,null,null,null,""]
["",null,null,null,null,null,null,null,null,null,null,null,null,null,"",null,null,null,null,null,null,null,""]
["",null,null,null,null,null,null,null,null,null,null,null,null,null,"",null,null,null,null,null,null,null,""]
["",null,null,null,null,null,null,null,null,null,null,null,null,null,"",null,null,null,null,null,null,null,""]
["",null,null,null,null,null,null,null,null,null,null,null,null,null,"",null,null,null,null,null,null,null,""]
["",null,null,null,null,null,null,null,null,null,null,null,null,null,"",null,null,null,null,null,null,null,""]
["",null,null,null,null,null,null,null,null,null,null,null,null,null,"",null,null,null,null,null,null,null,""]
["",null,null,null,null,null,null,null,null,null,null,null,null,null,"",null,null,null,null,null,null,null,""]
["",null,null,null,null,null,null,null,null,null,null,null,null,null,"",null,null,null,null,null,null,null,""]
["",null,null,null,null,null,null,null,null,null,null,null,null,null,"",null,null,null,null,null,null,null,""]
["",null,null,null,null,null,null,null,null,null,null,null,null,null,"",null,null,null,null,null,null,null,""]
["",null,null,null,null,null,null,null,null,null,null,null,null,null,"",null,null,null,null,null,null,null,""]
["",null,null,null,null,null,null,null,null,null,null,null,null,null,"",null,null,null,null,null,null,null,""]
["",null,null,null,null,null,null,null,null,null,null,null,null,null,"",null,null,null,null,null,null,null,""]
["",null,null,null,null,null,null,null,null,null,null,null,null,null,"",null,null,null,null,null,null,null,""]
["",null,null,null,null,null,null,null,null,null,null,null,null,null,"",null,null,null,null,null,null,null,""]
["",null,null,null,null,null,null,null,null,null,null,null,null,null,"",null,null,null,null,null,null,null,""]
["",null,null,null,null,null,null,null,null,null,null,null,null,null,"",null,null,null,null,null,null,null,""]
["",null,null,null,null,null,null,null,null,null,null,null,null,null,"",null,null,null,null,null,null,null,""]
["",null,null,null,null,null,null,null,null,null,null,null,null,null,"",null,null,null,null,null,null,null,""]
["",null,null,null,null,null,null,null,null,null,null,null,null,null,"",null,null,null,null,null,null,null,""]
["",null,null,null,null,null,null,null,null,null,null,null,null,null,"",null,null,null,null,null,null,null,""]
["",null,null,null,null,null,null,null,null,null,null,null,null,null,"",null,null,null,null,null,null,null,""]
["",null,null,null,null,null,null,null,null,null,null,null,null,null,"",null,null,null,null,null,null,null,""]
["",null,null,null,null,null,null,null,null,null,null,null,null,null,"",null,null,null,null,null,null,null,""]
["",null,null,null,null,null,null,null,null,null,null,null,null,null,"",null,null,null,null,null,null,null,""]
["",null,null,null,null,null,null,null,null,null,null,null,null,null,"",null,null,null,null,null,null,null,""]
["",null,null,null,null,null,null,null,null,null,null,null,null,null,"",null,null,null,null,null,null,null,""]
["",null,null,null,null,null,null,null,null,null,null,null,null,null,"",null,null,null,null,null,null,null,""]
["",null,null,null,null,null,null,null,null,null,null,null,null,null,"",null,null,null,null,null,null,null,""]
["",null,null,null,null,null,null,null,null,null,null,null,null,null,"",null,null,null,null,null,null,null,""]
["",null,null,null,null,null,null,null,null,null,null,null,null,null,"",null,null,null,null,null,null,null,""]
["",null,null,null,null,null,null,null,null,null,null,null,null,null,"",null,null,null,null,null,null,null,""]
["",null,null,null,null,null,null,null,null,null,null,null,null,null,"",null,null,null,null,null,null,null,""]
["",null,null,null,null,null,null,null,null,null,null,null,null,null,"",null,null,null,null,null,null,null,""]
["",null,null,null,null,null,null,null,null,null,null,null,null,null,"",null,null,null,null,null,null,null,""]
["",null,null,null,null,null,null,null,null,null,null,null,null,null,"",null,null,null,null,null,null,null,""]
["",null,null,null,null,null,null,null,null,null,null,null,null,null,"",null,null,null,null,null,null,null,""]
["",null,null,null,null,null,null,null,null,null,null,null,null,null,"",null,null,null,null,null,null,null,""]
["",null,null,null,null,null,null,null,null,null,null,null,null,null,"",null,null,null,null,null,null,null,""]
["",null,null,null,null,null,null,null,null,null,null,null,null,null,"",null,null,null,null,null,null,null,""]
["",null,null,null,null,null,null,null,null,null,null,null,null,null,"",null,null,null,null,null,null,null,""]
["",null,null,null,null,null,null,null,null,null,null,null,null,null,"",null,null,null,null,null,null,null,""]
["",null,null,null,null,null,null,null,null,null,null,null,null,null,"",null,null,null,null,null,null,null,""]
["",null,null,null,null,null,null,null,null,null,null,null,null,null,"",null,null,null,null,null,null,null,""]
["",null,null,null,null,null,null,null,null,null,null,null,null,null,"",null,null,null,null,null,null,null,""]
["",null,null,null,null,null,null,null,null,null,null,null,null,null,"",null,null,null,null,null,null,null,""]
["",null,null,null,null,null,null,null,null,null,null,null,null,null,"",null,null,null,null,null,null,null,""]
["",null,null,null,null,null,null,null,null,null,null,null,null,null,"",null,null,null,null,null,null,null,""]
["",null,null,null,null,null,null,null,null,null,null,null,null,null,"",null,null,null,null,null,null,null,""]
["",null,null,null,null,null,null,null,null,null,null,null,null,null,"",null,null,null,null,null,null,null,""]
["",null,null,null,null,null,null,null,null,null,null,null,null,null,"",null,null,null,null,null,null,null,""]
["",null,null,null,null,null,null,null,null,null,null,null,null,null,"",null,null,null,null,null,null,null,""]
["",null,null,null,null,null,null,null,null,null,null,null,null,null,"",null,null,null,null,null,null,null,""]
["",null,null,null,null,null,null,null,null,null,null,null,null,null,"",null,null,null,null,null,null,null,""]
["",null,null,null,null,null,null,null,null,null,null,null,null,null,"",null,null,null,null,null,null,null,""]
["",null,null,null,null,null,null,null,null,null,null,null,null,null,"",null,null,null,null,null,null,null,""]
["",null,null,null,null,null,null,null,null,null,null,null,null,null,"",null,null,null,null,null,null,null,""]
[{"$f":"IF($A$3=\"x\",IF(AND(B1353=\"\",O1353=\"\",AND(L1353=\"\",M1353=\"\",P1353=\"\")),\"\",IF(B1353=\"\",A1352,B1353)),IF($A$4=\"x\",IF(AND(D1353=\"\",O1353=\"\",AND(L1353=\"\",M1353=\"\",P1353=\"\")),\"\",IF(D1353=\"\",A1352,D1353)),\"\"))","v":""},null,null,null,null,null,null,null,null,null,null,null,null,null,"",null,null,null,null,null,null,null,{"$f":"IFERROR(VALUE(IF(A1353=\"\",\"\",IF(O1353=\"\",0,O1353))),\"\")","v":""}]
["",null,null,null,null,null,null,null,null,null,null,null,null,null,"",null,null,null,null,null,null,null,""]
["",null,null,null,null,null,null,null,null,null,null,null,null,null,"",null,null,null,null,null,null,null,""]
["",null,null,null,null,null,null,null,null,null,null,null,null,null,"",null,null,null,null,null,null,null,""]
["",null,null,null,null,null,null,null,null,null,null,null,null,null,"",null,null,null,null,null,null,null,""]
["",null,null,null,null,null,null,null,null,null,null,null,null,null,"",null,null,null,null,null,null,null,""]
["",null,null,null,null,null,null,null,null,null,null,null,null,null,"",null,null,null,null,null,null,null,""]
["",null,null,null,null,null,null,null,null,null,null,null,null,null,"",null,null,null,null,null,null,null,""]
["",null,null,null,null,null,null,null,null,null,null,null,null,null,"",null,null,null,null,null,null,null,""]
["",null,null,null,null,null,null,null,null,null,null,null,null,null,"",null,null,null,null,null,null,null,""]
["",null,null,null,null,null,null,null,null,null,null,null,null,null,"",null,null,null,null,null,null,null,""]
["",null,null,null,null,null,null,null,null,null,null,null,null,null,"",null,null,null,null,null,null,null,""]
["",null,null,null,null,null,null,null,null,null,null,null,null,null,"",null,null,null,null,null,null,null,""]
["",null,null,null,null,null,null,null,null,null,null,null,null,null,"",null,null,null,null,null,null,null,""]
["",null,null,null,null,null,null,null,null,null,null,null,null,null,"",null,null,null,null,null,null,null,""]
["",null,null,null,null,null,null,null,null,null,null,null,null,null,"",null,null,null,null,null,null,null,""]
["",null,null,null,null,null,null,null,null,null,null,null,null,null,"",null,null,null,null,null,null,null,""]
["",null,null,null,null,null,null,null,null,null,null,null,null,null,"",null,null,null,null,null,null,null,""]
["",null,null,null,null,null,null,null,null,null,null,null,null,null,"",null,null,null,null,null,null,null,""]
["",null,null,null,null,null,null,null,null,null,null,null,null,null,"",null,null,null,null,null,null,null,""]
["",null,null,null,null,null,null,null,null,null,null,null,null,null,"",null,null,null,null,null,null,null,""]
["",null,null,null,null,null,null,null,null,null,null,null,null,null,"",null,null,null,null,null,null,null,""]
["",null,null,null,null,null,null,null,null,null,null,null,null,null,"",null,null,null,null,null,null,null,""]
["",null,null,null,null,null,null,null,null,null,null,null,null,null,"",null,null,null,null,null,null,null,""]
["",null,null,null,null,null,null,null,null,null,null,null,null,null,"",null,null,null,null,null,null,null,""]
["",null,null,null,null,null,null,null,null,null,null,null,null,null,"",null,null,null,null,null,null,null,""]
["",null,null,null,null,null,null,null,null,null,null,null,null,null,"",null,null,null,null,null,null,null,""]
["",null,null,null,null,null,null,null,null,null,null,null,null,null,"",null,null,null,null,null,null,null,""]
["",null,null,null,null,null,null,null,null,null,null,null,null,null,"",null,null,null,null,null,null,null,""]
["",null,null,null,null,null,null,null,null,null,null,null,null,null,"",null,null,null,null,null,null,null,""]
["",null,null,null,null,null,null,null,null,null,null,null,null,null,"",null,null,null,null,null,null,null,""]
["",null,null,null,null,null,null,null,null,null,null,null,null,null,"",null,null,null,null,null,null,null,""]
["",null,null,null,null,null,null,null,null,null,null,null,null,null,"",null,null,null,null,null,null,null,""]
["",null,null,null,null,null,null,null,null,null,null,null,null,null,"",null,null,null,null,null,null,null,""]
["",null,null,null,null,null,null,null,null,null,null,null,null,null,"",null,null,null,null,null,null,null,""]
["",null,null,null,null,null,null,null,null,null,null,null,null,null,"",null,null,null,null,null,null,null,""]
["",null,null,null,null,null,null,null,null,null,null,null,null,null,"",null,null,null,null,null,null,null,""]
["",null,null,null,null,null,null,null,null,null,null,null,null,null,"",null,null,null,null,null,null,null,""]
["",null,null,null,null,null,null,null,null,null,null,null,null,null,"",null,null,null,null,null,null,null,""]
["",null,null,null,null,null,null,null,null,null,null,null,null,null,"",null,null,null,null,null,null,null,""]
["",null,null,null,null,null,null,null,null,null,null,null,null,null,"",null,null,null,null,null,null,null,""]
["",null,null,null,null,null,null,null,null,null,null,null,null,null,"",null,null,null,null,null,null,null,""]
["",null,null,null,null,null,null,null,null,null,null,null,null,null,"",null,null,null,null,null,null,null,""]
["",null,null,null,null,null,null,null,null,null,null,null,null,null,"",null,null,null,null,null,null,null,""]
["",null,null,null,null,null,null,null,null,null,null,null,null,null,"",null,null,null,null,null,null,null,""]
["",null,null,null,null,null,null,null,null,null,null,null,null,null,"",null,null,null,null,null,null,null,""]
["",null,null,null,null,null,null,null,null,null,null,null,null,null,"",null,null,null,null,null,null,null,""]
["",null,null,null,null,null,null,null,null,null,null,null,null,null,"",null,null,null,null,null,null,null,""]
["",null,null,null,null,null,null,null,null,null,null,null,null,null,"",null,null,null,null,null,null,null,""]
["",null,null,null,null,null,null,null,null,null,null,null,null,null,"",null,null,null,null,null,null,null,""]
["",null,null,null,null,null,null,null,null,null,null,null,null,null,"",null,null,null,null,null,null,null,""]
["",null,null,null,null,null,null,null,null,null,null,null,null,null,"",null,null,null,null,null,null,null,""]
["",null,null,null,null,null,null,null,null,null,null,null,null,null,"",null,null,null,null,null,null,null,""]
["",null,null,null,null,null,null,null,null,null,null,null,null,null,"",null,null,null,null,null,null,null,""]
["",null,null,null,null,null,null,null,null,null,null,null,null,null,"",null,null,null,null,null,null,null,""]
["",null,null,null,null,null,null,null,null,null,null,null,null,null,"",null,null,null,null,null,null,null,""]
["",null,null,null,null,null,null,null,null,null,null,null,null,null,"",null,null,null,null,null,null,null,""]
["",null,null,null,null,null,null,null,null,null,null,null,null,null,"",null,null,null,null,null,null,null,""]
["",null,null,null,null,null,null,null,null,null,null,null,null,null,"",null,null,null,null,null,null,null,""]
["",null,null,null,null,null,null,null,null,null,null,null,null,null,"",null,null,null,null,null,null,null,""]
["",null,null,null,null,null,null,null,null,null,null,null,null,null,"",null,null,null,null,null,null,null,""]
["",null,null,null,null,null,null,null,null,null,null,null,null,null,"",null,null,null,null,null,null,null,""]
["",null,null,null,null,null,null,null,null,null,null,null,null,null,"",null,null,null,null,null,null,null,""]
["",null,null,null,null,null,null,null,null,null,null,null,null,null,"",null,null,null,null,null,null,null,""]
[{"$f":"IF($A$3=\"x\",IF(AND(B1417=\"\",O1417=\"\",AND(L1417=\"\",M1417=\"\",P1417=\"\")),\"\",IF(B1417=\"\",A1416,B1417)),IF($A$4=\"x\",IF(AND(D1417=\"\",O1417=\"\",AND(L1417=\"\",M1417=\"\",P1417=\"\")),\"\",IF(D1417=\"\",A1416,D1417)),\"\"))","v":""},null,null,null,null,null,null,null,null,null,null,null,null,null,"",null,null,null,null,null,null,null,{"$f":"IFERROR(VALUE(IF(A1417=\"\",\"\",IF(O1417=\"\",0,O1417))),\"\")","v":""}]
["",null,null,null,null,null,null,null,null,null,null,null,null,null,"",null,null,null,null,null,null,null,""]
["",null,null,null,null,null,null,null,null,null,null,null,null,null,"",null,null,null,null,null,null,null,""]
["",null,null,null,null,null,null,null,null,null,null,null,null,null,"",null,null,null,null,null,null,null,""]
["",null,null,null,null,null,null,null,null,null,null,null,null,null,"",null,null,null,null,null,null,null,""]
["",null,null,null,null,null,null,null,null,null,null,null,null,null,"",null,null,null,null,null,null,null,""]
["",null,null,null,null,null,null,null,null,null,null,null,null,null,"",null,null,null,null,null,null,null,""]
["",null,null,null,null,null,null,null,null,null,null,null,null,null,"",null,null,null,null,null,null,null,""]
["",null,null,null,null,null,null,null,null,null,null,null,null,null,"",null,null,null,null,null,null,null,""]
["",null,null,null,null,null,null,null,null,null,null,null,null,null,"",null,null,null,null,null,null,null,""]
["",null,null,null,null,null,null,null,null,null,null,null,null,null,"",null,null,null,null,null,null,null,""]
["",null,null,null,null,null,null,null,null,null,null,null,null,null,"",null,null,null,null,null,null,null,""]
["",null,null,null,null,null,null,null,null,null,null,null,null,null,"",null,null,null,null,null,null,null,""]
["",null,null,null,null,null,null,null,null,null,null,null,null,null,"",null,null,null,null,null,null,null,""]
["",null,null,null,null,null,null,null,null,null,null,null,null,null,"",null,null,null,null,null,null,null,""]
["",null,null,null,null,null,null,null,null,null,null,null,null,null,"",null,null,null,null,null,null,null,""]
["",null,null,null,null,null,null,null,null,null,null,null,null,null,"",null,null,null,null,null,null,null,""]
["",null,null,null,null,null,null,null,null,null,null,null,null,null,"",null,null,null,null,null,null,null,""]
["",null,null,null,null,null,null,null,null,null,null,null,null,null,"",null,null,null,null,null,null,null,""]
["",null,null,null,null,null,null,null,null,null,null,null,null,null,"",null,null,null,null,null,null,null,""]
["",null,null,null,null,null,null,null,null,null,null,null,null,null,"",null,null,null,null,null,null,null,""]
["",null,null,null,null,null,null,null,null,null,null,null,null,null,"",null,null,null,null,null,null,null,""]
["",null,null,null,null,null,null,null,null,null,null,null,null,null,"",null,null,null,null,null,null,null,""]
["",null,null,null,null,null,null,null,null,null,null,null,null,null,"",null,null,null,null,null,null,null,""]
["",null,null,null,null,null,null,null,null,null,null,null,null,null,"",null,null,null,null,null,null,null,""]
["",null,null,null,null,null,null,null,null,null,null,null,null,null,"",null,null,null,null,null,null,null,""]
["",null,null,null,null,null,null,null,null,null,null,null,null,null,"",null,null,null,null,null,null,null,""]
["",null,null,null,null,null,null,null,null,null,null,null,null,null,"",null,null,null,null,null,null,null,""]
["",null,null,null,null,null,null,null,null,null,null,null,null,null,"",null,null,null,null,null,null,null,""]
["",null,null,null,null,null,null,null,null,null,null,null,null,null,"",null,null,null,null,null,null,null,""]
["",null,null,null,null,null,null,null,null,null,null,null,null,null,"",null,null,null,null,null,null,null,""]
["",null,null,null,null,null,null,null,null,null,null,null,null,null,"",null,null,null,null,null,null,null,""]
["",null,null,null,null,null,null,null,null,null,null,null,null,null,"",null,null,null,null,null,null,null,""]
["",null,null,null,null,null,null,null,null,null,null,null,null,null,"",null,null,null,null,null,null,null,""]
["",null,null,null,null,null,null,null,null,null,null,null,null,null,"",null,null,null,null,null,null,null,""]
["",null,null,null,null,null,null,null,null,null,null,null,null,null,"",null,null,null,null,null,null,null,""]
["",null,null,null,null,null,null,null,null,null,null,null,null,null,"",null,null,null,null,null,null,null,""]
["",null,null,null,null,null,null,null,null,null,null,null,null,null,"",null,null,null,null,null,null,null,""]
["",null,null,null,null,null,null,null,null,null,null,null,null,null,"",null,null,null,null,null,null,null,""]
["",null,null,null,null,null,null,null,null,null,null,null,null,null,"",null,null,null,null,null,null,null,""]
["",null,null,null,null,null,null,null,null,null,null,null,null,null,"",null,null,null,null,null,null,null,""]
["",null,null,null,null,null,null,null,null,null,null,null,null,null,"",null,null,null,null,null,null,null,""]
["",null,null,null,null,null,null,null,null,null,null,null,null,null,"",null,null,null,null,null,null,null,""]
["",null,null,null,null,null,null,null,null,null,null,null,null,null,"",null,null,null,null,null,null,null,""]
["",null,null,null,null,null,null,null,null,null,null,null,null,null,"",null,null,null,null,null,null,null,""]
["",null,null,null,null,null,null,null,null,null,null,null,null,null,"",null,null,null,null,null,null,null,""]
["",null,null,null,null,null,null,null,null,null,null,null,null,null,"",null,null,null,null,null,null,null,""]
["",null,null,null,null,null,null,null,null,null,null,null,null,null,"",null,null,null,null,null,null,null,""]
["",null,null,null,null,null,null,null,null,null,null,null,null,null,"",null,null,null,null,null,null,null,""]
["",null,null,null,null,null,null,null,null,null,null,null,null,null,"",null,null,null,null,null,null,null,""]
["",null,null,null,null,null,null,null,null,null,null,null,null,null,"",null,null,null,null,null,null,null,""]
["",null,null,null,null,null,null,null,null,null,null,null,null,null,"",null,null,null,null,null,null,null,""]
["",null,null,null,null,null,null,null,null,null,null,null,null,null,"",null,null,null,null,null,null,null,""]
["",null,null,null,null,null,null,null,null,null,null,null,null,null,"",null,null,null,null,null,null,null,""]
["",null,null,null,null,null,null,null,null,null,null,null,null,null,"",null,null,null,null,null,null,null,""]
["",null,null,null,null,null,null,null,null,null,null,null,null,null,"",null,null,null,null,null,null,null,""]
["",null,null,null,null,null,null,null,null,null,null,null,null,null,"",null,null,null,null,null,null,null,""]
["",null,null,null,null,null,null,null,null,null,null,null,null,null,"",null,null,null,null,null,null,null,""]
["",null,null,null,null,null,null,null,null,null,null,null,null,null,"",null,null,null,null,null,null,null,""]
["",null,null,null,null,null,null,null,null,null,null,null,null,null,"",null,null,null,null,null,null,null,""]
["",null,null,null,null,null,null,null,null,null,null,null,null,null,"",null,null,null,null,null,null,null,""]
["",null,null,null,null,null,null,null,null,null,null,null,null,null,"",null,null,null,null,null,null,null,""]
["",null,null,null,null,null,null,null,null,null,null,null,null,null,"",null,null,null,null,null,null,null,""]
["",null,null,null,null,null,null,null,null,null,null,null,null,null,"",null,null,null,null,null,null,null,""]
[{"$f":"IF($A$3=\"x\",IF(AND(B1481=\"\",O1481=\"\",AND(L1481=\"\",M1481=\"\",P1481=\"\")),\"\",IF(B1481=\"\",A1480,B1481)),IF($A$4=\"x\",IF(AND(D1481=\"\",O1481=\"\",AND(L1481=\"\",M1481=\"\",P1481=\"\")),\"\",IF(D1481=\"\",A1480,D1481)),\"\"))","v":""},null,null,null,null,null,null,null,null,null,null,null,null,null,"",null,null,null,null,null,null,null,{"$f":"IFERROR(VALUE(IF(A1481=\"\",\"\",IF(O1481=\"\",0,O1481))),\"\")","v":""}]
["",null,null,null,null,null,null,null,null,null,null,null,null,null,"",null,null,null,null,null,null,null,""]
["",null,null,null,null,null,null,null,null,null,null,null,null,null,"",null,null,null,null,null,null,null,""]
["",null,null,null,null,null,null,null,null,null,null,null,null,null,"",null,null,null,null,null,null,null,""]
["",null,null,null,null,null,null,null,null,null,null,null,null,null,"",null,null,null,null,null,null,null,""]
["",null,null,null,null,null,null,null,null,null,null,null,null,null,"",null,null,null,null,null,null,null,""]
["",null,null,null,null,null,null,null,null,null,null,null,null,null,"",null,null,null,null,null,null,null,""]
["",null,null,null,null,null,null,null,null,null,null,null,null,null,"",null,null,null,null,null,null,null,""]
["",null,null,null,null,null,null,null,null,null,null,null,null,null,"",null,null,null,null,null,null,null,""]
["",null,null,null,null,null,null,null,null,null,null,null,null,null,"",null,null,null,null,null,null,null,""]
["",null,null,null,null,null,null,null,null,null,null,null,null,null,"",null,null,null,null,null,null,null,""]
["",null,null,null,null,null,null,null,null,null,null,null,null,null,"",null,null,null,null,null,null,null,""]
["",null,null,null,null,null,null,null,null,null,null,null,null,null,"",null,null,null,null,null,null,null,""]
["",null,null,null,null,null,null,null,null,null,null,null,null,null,"",null,null,null,null,null,null,null,""]
["",null,null,null,null,null,null,null,null,null,null,null,null,null,"",null,null,null,null,null,null,null,""]
["",null,null,null,null,null,null,null,null,null,null,null,null,null,"",null,null,null,null,null,null,null,""]
["",null,null,null,null,null,null,null,null,null,null,null,null,null,"",null,null,null,null,null,null,null,""]
["",null,null,null,null,null,null,null,null,null,null,null,null,null,"",null,null,null,null,null,null,null,""]
["",null,null,null,null,null,null,null,null,null,null,null,null,null,"",null,null,null,null,null,null,null,""]
["",null,null,null,null,null,null,null,null,null,null,null,null,null,"",null,null,null,null,null,null,null,""]
["",null,null,null,null,null,null,null,null,null,null,null,null,null,"",null,null,null,null,null,null,null,""]
["",null,null,null,null,null,null,null,null,null,null,null,null,null,"",null,null,null,null,null,null,null,""]
["",null,null,null,null,null,null,null,null,null,null,null,null,null,"",null,null,null,null,null,null,null,""]
["",null,null,null,null,null,null,null,null,null,null,null,null,null,"",null,null,null,null,null,null,null,""]
["",null,null,null,null,null,null,null,null,null,null,null,null,null,"",null,null,null,null,null,null,null,""]
["",null,null,null,null,null,null,null,null,null,null,null,null,null,"",null,null,null,null,null,null,null,""]
["",null,null,null,null,null,null,null,null,null,null,null,null,null,"",null,null,null,null,null,null,null,""]
["",null,null,null,null,null,null,null,null,null,null,null,null,null,"",null,null,null,null,null,null,null,""]
["",null,null,null,null,null,null,null,null,null,null,null,null,null,"",null,null,null,null,null,null,null,""]
["",null,null,null,null,null,null,null,null,null,null,null,null,null,"",null,null,null,null,null,null,null,""]
["",null,null,null,null,null,null,null,null,null,null,null,null,null,"",null,null,null,null,null,null,null,""]
["",null,null,null,null,null,null,null,null,null,null,null,null,null,"",null,null,null,null,null,null,null,""]
["",null,null,null,null,null,null,null,null,null,null,null,null,null,"",null,null,null,null,null,null,null,""]
["",null,null,null,null,null,null,null,null,null,null,null,null,null,"",null,null,null,null,null,null,null,""]
["",null,null,null,null,null,null,null,null,null,null,null,null,null,"",null,null,null,null,null,null,null,""]
["",null,null,null,null,null,null,null,null,null,null,null,null,null,"",null,null,null,null,null,null,null,""]
["",null,null,null,null,null,null,null,null,null,null,null,null,null,"",null,null,null,null,null,null,null,""]
["",null,null,null,null,null,null,null,null,null,null,null,null,null,"",null,null,null,null,null,null,null,""]
["",null,null,null,null,null,null,null,null,null,null,null,null,null,"",null,null,null,null,null,null,null,""]
["",null,null,null,null,null,null,null,null,null,null,null,null,null,"",null,null,null,null,null,null,null,""]
["",null,null,null,null,null,null,null,null,null,null,null,null,null,"",null,null,null,null,null,null,null,""]
["",null,null,null,null,null,null,null,null,null,null,null,null,null,"",null,null,null,null,null,null,null,""]
["",null,null,null,null,null,null,null,null,null,null,null,null,null,"",null,null,null,null,null,null,null,""]
["",null,null,null,null,null,null,null,null,null,null,null,null,null,"",null,null,null,null,null,null,null,""]
["",null,null,null,null,null,null,null,null,null,null,null,null,null,"",null,null,null,null,null,null,null,""]
["",null,null,null,null,null,null,null,null,null,null,null,null,null,"",null,null,null,null,null,null,null,""]
["",null,null,null,null,null,null,null,null,null,null,null,null,null,"",null,null,null,null,null,null,null,""]
["",null,null,null,null,null,null,null,null,null,null,null,null,null,"",null,null,null,null,null,null,null,""]
["",null,null,null,null,null,null,null,null,null,null,null,null,null,"",null,null,null,null,null,null,null,""]
["",null,null,null,null,null,null,null,null,null,null,null,null,null,"",null,null,null,null,null,null,null,""]
["",null,null,null,null,null,null,null,null,null,null,null,null,null,"",null,null,null,null,null,null,null,""]
["",null,null,null,null,null,null,null,null,null,null,null,null,null,"",null,null,null,null,null,null,null,""]
["",null,null,null,null,null,null,null,null,null,null,null,null,null,"",null,null,null,null,null,null,null,""]
["",null,null,null,null,null,null,null,null,null,null,null,null,null,"",null,null,null,null,null,null,null,""]
["",null,null,null,null,null,null,null,null,null,null,null,null,null,"",null,null,null,null,null,null,null,""]
["",null,null,null,null,null,null,null,null,null,null,null,null,null,"",null,null,null,null,null,null,null,""]
["",null,null,null,null,null,null,null,null,null,null,null,null,null,"",null,null,null,null,null,null,null,""]
["",null,null,null,null,null,null,null,null,null,null,null,null,null,"",null,null,null,null,null,null,null,""]
["",null,null,null,null,null,null,null,null,null,null,null,null,null,"",null,null,null,null,null,null,null,""]
["",null,null,null,null,null,null,null,null,null,null,null,null,null,"",null,null,null,null,null,null,null,""]
["",null,null,null,null,null,null,null,null,null,null,null,null,null,"",null,null,null,null,null,null,null,""]
["",null,null,null,null,null,null,null,null,null,null,null,null,null,"",null,null,null,null,null,null,null,""]
["",null,null,null,null,null,null,null,null,null,null,null,null,null,"",null,null,null,null,null,null,null,""]
["",null,null,null,null,null,null,null,null,null,null,null,null,null,"",null,null,null,null,null,null,null,""]
[{"$f":"IF($A$3=\"x\",IF(AND(B1545=\"\",O1545=\"\",AND(L1545=\"\",M1545=\"\",P1545=\"\")),\"\",IF(B1545=\"\",A1544,B1545)),IF($A$4=\"x\",IF(AND(D1545=\"\",O1545=\"\",AND(L1545=\"\",M1545=\"\",P1545=\"\")),\"\",IF(D1545=\"\",A1544,D1545)),\"\"))","v":""},null,null,null,null,null,null,null,null,null,null,null,null,null,"",null,null,null,null,null,null,null,{"$f":"IFERROR(VALUE(IF(A1545=\"\",\"\",IF(O1545=\"\",0,O1545))),\"\")","v":""}]
["",null,null,null,null,null,null,null,null,null,null,null,null,null,"",null,null,null,null,null,null,null,""]
["",null,null,null,null,null,null,null,null,null,null,null,null,null,"",null,null,null,null,null,null,null,""]
["",null,null,null,null,null,null,null,null,null,null,null,null,null,"",null,null,null,null,null,null,null,""]
["",null,null,null,null,null,null,null,null,null,null,null,null,null,"",null,null,null,null,null,null,null,""]
["",null,null,null,null,null,null,null,null,null,null,null,null,null,"",null,null,null,null,null,null,null,""]
["",null,null,null,null,null,null,null,null,null,null,null,null,null,"",null,null,null,null,null,null,null,""]
["",null,null,null,null,null,null,null,null,null,null,null,null,null,"",null,null,null,null,null,null,null,""]
["",null,null,null,null,null,null,null,null,null,null,null,null,null,"",null,null,null,null,null,null,null,""]
["",null,null,null,null,null,null,null,null,null,null,null,null,null,"",null,null,null,null,null,null,null,""]
["",null,null,null,null,null,null,null,null,null,null,null,null,null,"",null,null,null,null,null,null,null,""]
["",null,null,null,null,null,null,null,null,null,null,null,null,null,"",null,null,null,null,null,null,null,""]
["",null,null,null,null,null,null,null,null,null,null,null,null,null,"",null,null,null,null,null,null,null,""]
["",null,null,null,null,null,null,null,null,null,null,null,null,null,"",null,null,null,null,null,null,null,""]
["",null,null,null,null,null,null,null,null,null,null,null,null,null,"",null,null,null,null,null,null,null,""]
["",null,null,null,null,null,null,null,null,null,null,null,null,null,"",null,null,null,null,null,null,null,""]
["",null,null,null,null,null,null,null,null,null,null,null,null,null,"",null,null,null,null,null,null,null,""]
["",null,null,null,null,null,null,null,null,null,null,null,null,null,"",null,null,null,null,null,null,null,""]
["",null,null,null,null,null,null,null,null,null,null,null,null,null,"",null,null,null,null,null,null,null,""]
["",null,null,null,null,null,null,null,null,null,null,null,null,null,"",null,null,null,null,null,null,null,""]
["",null,null,null,null,null,null,null,null,null,null,null,null,null,"",null,null,null,null,null,null,null,""]
["",null,null,null,null,null,null,null,null,null,null,null,null,null,"",null,null,null,null,null,null,null,""]
["",null,null,null,null,null,null,null,null,null,null,null,null,null,"",null,null,null,null,null,null,null,""]
["",null,null,null,null,null,null,null,null,null,null,null,null,null,"",null,null,null,null,null,null,null,""]
["",null,null,null,null,null,null,null,null,null,null,null,null,null,"",null,null,null,null,null,null,null,""]
["",null,null,null,null,null,null,null,null,null,null,null,null,null,"",null,null,null,null,null,null,null,""]
["",null,null,null,null,null,null,null,null,null,null,null,null,null,"",null,null,null,null,null,null,null,""]
["",null,null,null,null,null,null,null,null,null,null,null,null,null,"",null,null,null,null,null,null,null,""]
["",null,null,null,null,null,null,null,null,null,null,null,null,null,"",null,null,null,null,null,null,null,""]
["",null,null,null,null,null,null,null,null,null,null,null,null,null,"",null,null,null,null,null,null,null,""]
["",null,null,null,null,null,null,null,null,null,null,null,null,null,"",null,null,null,null,null,null,null,""]
["",null,null,null,null,null,null,null,null,null,null,null,null,null,"",null,null,null,null,null,null,null,""]
["",null,null,null,null,null,null,null,null,null,null,null,null,null,"",null,null,null,null,null,null,null,""]
["",null,null,null,null,null,null,null,null,null,null,null,null,null,"",null,null,null,null,null,null,null,""]
["",null,null,null,null,null,null,null,null,null,null,null,null,null,"",null,null,null,null,null,null,null,""]
["",null,null,null,null,null,null,null,null,null,null,null,null,null,"",null,null,null,null,null,null,null,""]
["",null,null,null,null,null,null,null,null,null,null,null,null,null,"",null,null,null,null,null,null,null,""]
["",null,null,null,null,null,null,null,null,null,null,null,null,null,"",null,null,null,null,null,null,null,""]
["",null,null,null,null,null,null,null,null,null,null,null,null,null,"",null,null,null,null,null,null,null,""]
["",null,null,null,null,null,null,null,null,null,null,null,null,null,"",null,null,null,null,null,null,null,""]
["",null,null,null,null,null,null,null,null,null,null,null,null,null,"",null,null,null,null,null,null,null,""]
["",null,null,null,null,null,null,null,null,null,null,null,null,null,"",null,null,null,null,null,null,null,""]
["",null,null,null,null,null,null,null,null,null,null,null,null,null,"",null,null,null,null,null,null,null,""]
["",null,null,null,null,null,null,null,null,null,null,null,null,null,"",null,null,null,null,null,null,null,""]
["",null,null,null,null,null,null,null,null,null,null,null,null,null,"",null,null,null,null,null,null,null,""]
["",null,null,null,null,null,null,null,null,null,null,null,null,null,"",null,null,null,null,null,null,null,""]
["",null,null,null,null,null,null,null,null,null,null,null,null,null,"",null,null,null,null,null,null,null,""]
["",null,null,null,null,null,null,null,null,null,null,null,null,null,"",null,null,null,null,null,null,null,""]
["",null,null,null,null,null,null,null,null,null,null,null,null,null,"",null,null,null,null,null,null,null,""]
["",null,null,null,null,null,null,null,null,null,null,null,null,null,"",null,null,null,null,null,null,null,""]
["",null,null,null,null,null,null,null,null,null,null,null,null,null,"",null,null,null,null,null,null,null,""]
["",null,null,null,null,null,null,null,null,null,null,null,null,null,"",null,null,null,null,null,null,null,""]
["",null,null,null,null,null,null,null,null,null,null,null,null,null,"",null,null,null,null,null,null,null,""]
["",null,null,null,null,null,null,null,null,null,null,null,null,null,"",null,null,null,null,null,null,null,""]
["",null,null,null,null,null,null,null,null,null,null,null,null,null,"",null,null,null,null,null,null,null,""]
["",null,null,null,null,null,null,null,null,null,null,null,null,null,"",null,null,null,null,null,null,null,""]
["",null,null,null,null,null,null,null,null,null,null,null,null,null,"",null,null,null,null,null,null,null,""]
["",null,null,null,null,null,null,null,null,null,null,null,null,null,"",null,null,null,null,null,null,null,""]
["",null,null,null,null,null,null,null,null,null,null,null,null,null,"",null,null,null,null,null,null,null,""]
["",null,null,null,null,null,null,null,null,null,null,null,null,null,"",null,null,null,null,null,null,null,""]
["",null,null,null,null,null,null,null,null,null,null,null,null,null,"",null,null,null,null,null,null,null,""]
["",null,null,null,null,null,null,null,null,null,null,null,null,null,"",null,null,null,null,null,null,null,""]
["",null,null,null,null,null,null,null,null,null,null,null,null,null,"",null,null,null,null,null,null,null,""]
["",null,null,null,null,null,null,null,null,null,null,null,null,null,"",null,null,null,null,null,null,null,""]
[{"$f":"IF($A$3=\"x\",IF(AND(B1609=\"\",O1609=\"\",AND(L1609=\"\",M1609=\"\",P1609=\"\")),\"\",IF(B1609=\"\",A1608,B1609)),IF($A$4=\"x\",IF(AND(D1609=\"\",O1609=\"\",AND(L1609=\"\",M1609=\"\",P1609=\"\")),\"\",IF(D1609=\"\",A1608,D1609)),\"\"))","v":""},null,null,null,null,null,null,null,null,null,null,null,null,null,"",null,null,null,null,null,null,null,{"$f":"IFERROR(VALUE(IF(A1609=\"\",\"\",IF(O1609=\"\",0,O1609))),\"\")","v":""}]
["",null,null,null,null,null,null,null,null,null,null,null,null,null,"",null,null,null,null,null,null,null,""]
["",null,null,null,null,null,null,null,null,null,null,null,null,null,"",null,null,null,null,null,null,null,""]
["",null,null,null,null,null,null,null,null,null,null,null,null,null,"",null,null,null,null,null,null,null,""]
["",null,null,null,null,null,null,null,null,null,null,null,null,null,"",null,null,null,null,null,null,null,""]
["",null,null,null,null,null,null,null,null,null,null,null,null,null,"",null,null,null,null,null,null,null,""]
["",null,null,null,null,null,null,null,null,null,null,null,null,null,"",null,null,null,null,null,null,null,""]
["",null,null,null,null,null,null,null,null,null,null,null,null,null,"",null,null,null,null,null,null,null,""]
["",null,null,null,null,null,null,null,null,null,null,null,null,null,"",null,null,null,null,null,null,null,""]
["",null,null,null,null,null,null,null,null,null,null,null,null,null,"",null,null,null,null,null,null,null,""]
["",null,null,null,null,null,null,null,null,null,null,null,null,null,"",null,null,null,null,null,null,null,""]
["",null,null,null,null,null,null,null,null,null,null,null,null,null,"",null,null,null,null,null,null,null,""]
["",null,null,null,null,null,null,null,null,null,null,null,null,null,"",null,null,null,null,null,null,null,""]
["",null,null,null,null,null,null,null,null,null,null,null,null,null,"",null,null,null,null,null,null,null,""]
["",null,null,null,null,null,null,null,null,null,null,null,null,null,"",null,null,null,null,null,null,null,""]
["",null,null,null,null,null,null,null,null,null,null,null,null,null,"",null,null,null,null,null,null,null,""]
["",null,null,null,null,null,null,null,null,null,null,null,null,null,"",null,null,null,null,null,null,null,""]
["",null,null,null,null,null,null,null,null,null,null,null,null,null,"",null,null,null,null,null,null,null,""]
["",null,null,null,null,null,null,null,null,null,null,null,null,null,"",null,null,null,null,null,null,null,""]
["",null,null,null,null,null,null,null,null,null,null,null,null,null,"",null,null,null,null,null,null,null,""]
["",null,null,null,null,null,null,null,null,null,null,null,null,null,"",null,null,null,null,null,null,null,""]
["",null,null,null,null,null,null,null,null,null,null,null,null,null,"",null,null,null,null,null,null,null,""]
["",null,null,null,null,null,null,null,null,null,null,null,null,null,"",null,null,null,null,null,null,null,""]
["",null,null,null,null,null,null,null,null,null,null,null,null,null,"",null,null,null,null,null,null,null,""]
["",null,null,null,null,null,null,null,null,null,null,null,null,null,"",null,null,null,null,null,null,null,""]
["",null,null,null,null,null,null,null,null,null,null,null,null,null,"",null,null,null,null,null,null,null,""]
["",null,null,null,null,null,null,null,null,null,null,null,null,null,"",null,null,null,null,null,null,null,""]
["",null,null,null,null,null,null,null,null,null,null,null,null,null,"",null,null,null,null,null,null,null,""]
["",null,null,null,null,null,null,null,null,null,null,null,null,null,"",null,null,null,null,null,null,null,""]
["",null,null,null,null,null,null,null,null,null,null,null,null,null,"",null,null,null,null,null,null,null,""]
["",null,null,null,null,null,null,null,null,null,null,null,null,null,"",null,null,null,null,null,null,null,""]
["",null,null,null,null,null,null,null,null,null,null,null,null,null,"",null,null,null,null,null,null,null,""]
["",null,null,null,null,null,null,null,null,null,null,null,null,null,"",null,null,null,null,null,null,null,""]
["",null,null,null,null,null,null,null,null,null,null,null,null,null,"",null,null,null,null,null,null,null,""]
["",null,null,null,null,null,null,null,null,null,null,null,null,null,"",null,null,null,null,null,null,null,""]
["",null,null,null,null,null,null,null,null,null,null,null,null,null,"",null,null,null,null,null,null,null,""]
["",null,null,null,null,null,null,null,null,null,null,null,null,null,"",null,null,null,null,null,null,null,""]
["",null,null,null,null,null,null,null,null,null,null,null,null,null,"",null,null,null,null,null,null,null,""]
["",null,null,null,null,null,null,null,null,null,null,null,null,null,"",null,null,null,null,null,null,null,""]
["",null,null,null,null,null,null,null,null,null,null,null,null,null,"",null,null,null,null,null,null,null,""]
["",null,null,null,null,null,null,null,null,null,null,null,null,null,"",null,null,null,null,null,null,null,""]
["",null,null,null,null,null,null,null,null,null,null,null,null,null,"",null,null,null,null,null,null,null,""]
["",null,null,null,null,null,null,null,null,null,null,null,null,null,"",null,null,null,null,null,null,null,""]
["",null,null,null,null,null,null,null,null,null,null,null,null,null,"",null,null,null,null,null,null,null,""]
["",null,null,null,null,null,null,null,null,null,null,null,null,null,"",null,null,null,null,null,null,null,""]
["",null,null,null,null,null,null,null,null,null,null,null,null,null,"",null,null,null,null,null,null,null,""]
["",null,null,null,null,null,null,null,null,null,null,null,null,null,"",null,null,null,null,null,null,null,""]
["",null,null,null,null,null,null,null,null,null,null,null,null,null,"",null,null,null,null,null,null,null,""]
["",null,null,null,null,null,null,null,null,null,null,null,null,null,"",null,null,null,null,null,null,null,""]
["",null,null,null,null,null,null,null,null,null,null,null,null,null,"",null,null,null,null,null,null,null,""]
["",null,null,null,null,null,null,null,null,null,null,null,null,null,"",null,null,null,null,null,null,null,""]
["",null,null,null,null,null,null,null,null,null,null,null,null,null,"",null,null,null,null,null,null,null,""]
["",null,null,null,null,null,null,null,null,null,null,null,null,null,"",null,null,null,null,null,null,null,""]
["",null,null,null,null,null,null,null,null,null,null,null,null,null,"",null,null,null,null,null,null,null,""]
["",null,null,null,null,null,null,null,null,null,null,null,null,null,"",null,null,null,null,null,null,null,""]
["",null,null,null,null,null,null,null,null,null,null,null,null,null,"",null,null,null,null,null,null,null,""]
["",null,null,null,null,null,null,null,null,null,null,null,null,null,"",null,null,null,null,null,null,null,""]
["",null,null,null,null,null,null,null,null,null,null,null,null,null,"",null,null,null,null,null,null,null,""]
["",null,null,null,null,null,null,null,null,null,null,null,null,null,"",null,null,null,null,null,null,null,""]
["",null,null,null,null,null,null,null,null,null,null,null,null,null,"",null,null,null,null,null,null,null,""]
["",null,null,null,null,null,null,null,null,null,null,null,null,null,"",null,null,null,null,null,null,null,""]
["",null,null,null,null,null,null,null,null,null,null,null,null,null,"",null,null,null,null,null,null,null,""]
["",null,null,null,null,null,null,null,null,null,null,null,null,null,"",null,null,null,null,null,null,null,""]
["",null,null,null,null,null,null,null,null,null,null,null,null,null,"",null,null,null,null,null,null,null,""]
[{"$f":"IF($A$3=\"x\",IF(AND(B1673=\"\",O1673=\"\",AND(L1673=\"\",M1673=\"\",P1673=\"\")),\"\",IF(B1673=\"\",A1672,B1673)),IF($A$4=\"x\",IF(AND(D1673=\"\",O1673=\"\",AND(L1673=\"\",M1673=\"\",P1673=\"\")),\"\",IF(D1673=\"\",A1672,D1673)),\"\"))","v":""},null,null,null,null,null,null,null,null,null,null,null,null,null,"",null,null,null,null,null,null,null,{"$f":"IFERROR(VALUE(IF(A1673=\"\",\"\",IF(O1673=\"\",0,O1673))),\"\")","v":""}]
["",null,null,null,null,null,null,null,null,null,null,null,null,null,"",null,null,null,null,null,null,null,""]
["",null,null,null,null,null,null,null,null,null,null,null,null,null,"",null,null,null,null,null,null,null,""]
["",null,null,null,null,null,null,null,null,null,null,null,null,null,"",null,null,null,null,null,null,null,""]
["",null,null,null,null,null,null,null,null,null,null,null,null,null,"",null,null,null,null,null,null,null,""]
["",null,null,null,null,null,null,null,null,null,null,null,null,null,"",null,null,null,null,null,null,null,""]
["",null,null,null,null,null,null,null,null,null,null,null,null,null,"",null,null,null,null,null,null,null,""]
["",null,null,null,null,null,null,null,null,null,null,null,null,null,"",null,null,null,null,null,null,null,""]
["",null,null,null,null,null,null,null,null,null,null,null,null,null,"",null,null,null,null,null,null,null,""]
["",null,null,null,null,null,null,null,null,null,null,null,null,null,"",null,null,null,null,null,null,null,""]
["",null,null,null,null,null,null,null,null,null,null,null,null,null,"",null,null,null,null,null,null,null,""]
["",null,null,null,null,null,null,null,null,null,null,null,null,null,"",null,null,null,null,null,null,null,""]
["",null,null,null,null,null,null,null,null,null,null,null,null,null,"",null,null,null,null,null,null,null,""]
["",null,null,null,null,null,null,null,null,null,null,null,null,null,"",null,null,null,null,null,null,null,""]
["",null,null,null,null,null,null,null,null,null,null,null,null,null,"",null,null,null,null,null,null,null,""]
["",null,null,null,null,null,null,null,null,null,null,null,null,null,"",null,null,null,null,null,null,null,""]
["",null,null,null,null,null,null,null,null,null,null,null,null,null,"",null,null,null,null,null,null,null,""]
["",null,null,null,null,null,null,null,null,null,null,null,null,null,"",null,null,null,null,null,null,null,""]
["",null,null,null,null,null,null,null,null,null,null,null,null,null,"",null,null,null,null,null,null,null,""]
["",null,null,null,null,null,null,null,null,null,null,null,null,null,"",null,null,null,null,null,null,null,""]
["",null,null,null,null,null,null,null,null,null,null,null,null,null,"",null,null,null,null,null,null,null,""]
["",null,null,null,null,null,null,null,null,null,null,null,null,null,"",null,null,null,null,null,null,null,""]
["",null,null,null,null,null,null,null,null,null,null,null,null,null,"",null,null,null,null,null,null,null,""]
["",null,null,null,null,null,null,null,null,null,null,null,null,null,"",null,null,null,null,null,null,null,""]
["",null,null,null,null,null,null,null,null,null,null,null,null,null,"",null,null,null,null,null,null,null,""]
["",null,null,null,null,null,null,null,null,null,null,null,null,null,"",null,null,null,null,null,null,null,""]
["",null,null,null,null,null,null,null,null,null,null,null,null,null,"",null,null,null,null,null,null,null,""]
["",null,null,null,null,null,null,null,null,null,null,null,null,null,"",null,null,null,null,null,null,null,""]
["",null,null,null,null,null,null,null,null,null,null,null,null,null,"",null,null,null,null,null,null,null,""]
["",null,null,null,null,null,null,null,null,null,null,null,null,null,"",null,null,null,null,null,null,null,""]
["",null,null,null,null,null,null,null,null,null,null,null,null,null,"",null,null,null,null,null,null,null,""]
["",null,null,null,null,null,null,null,null,null,null,null,null,null,"",null,null,null,null,null,null,null,""]
["",null,null,null,null,null,null,null,null,null,null,null,null,null,"",null,null,null,null,null,null,null,""]
["",null,null,null,null,null,null,null,null,null,null,null,null,null,"",null,null,null,null,null,null,null,""]
["",null,null,null,null,null,null,null,null,null,null,null,null,null,"",null,null,null,null,null,null,null,""]
["",null,null,null,null,null,null,null,null,null,null,null,null,null,"",null,null,null,null,null,null,null,""]
["",null,null,null,null,null,null,null,null,null,null,null,null,null,"",null,null,null,null,null,null,null,""]
["",null,null,null,null,null,null,null,null,null,null,null,null,null,"",null,null,null,null,null,null,null,""]
["",null,null,null,null,null,null,null,null,null,null,null,null,null,"",null,null,null,null,null,null,null,""]
["",null,null,null,null,null,null,null,null,null,null,null,null,null,"",null,null,null,null,null,null,null,""]
["",null,null,null,null,null,null,null,null,null,null,null,null,null,"",null,null,null,null,null,null,null,""]
["",null,null,null,null,null,null,null,null,null,null,null,null,null,"",null,null,null,null,null,null,null,""]
["",null,null,null,null,null,null,null,null,null,null,null,null,null,"",null,null,null,null,null,null,null,""]
["",null,null,null,null,null,null,null,null,null,null,null,null,null,"",null,null,null,null,null,null,null,""]
["",null,null,null,null,null,null,null,null,null,null,null,null,null,"",null,null,null,null,null,null,null,""]
["",null,null,null,null,null,null,null,null,null,null,null,null,null,"",null,null,null,null,null,null,null,""]
["",null,null,null,null,null,null,null,null,null,null,null,null,null,"",null,null,null,null,null,null,null,""]
["",null,null,null,null,null,null,null,null,null,null,null,null,null,"",null,null,null,null,null,null,null,""]
["",null,null,null,null,null,null,null,null,null,null,null,null,null,"",null,null,null,null,null,null,null,""]
["",null,null,null,null,null,null,null,null,null,null,null,null,null,"",null,null,null,null,null,null,null,""]
["",null,null,null,null,null,null,null,null,null,null,null,null,null,"",null,null,null,null,null,null,null,""]
["",null,null,null,null,null,null,null,null,null,null,null,null,null,"",null,null,null,null,null,null,null,""]
["",null,null,null,null,null,null,null,null,null,null,null,null,null,"",null,null,null,null,null,null,null,""]
["",null,null,null,null,null,null,null,null,null,null,null,null,null,"",null,null,null,null,null,null,null,""]
["",null,null,null,null,null,null,null,null,null,null,null,null,null,"",null,null,null,null,null,null,null,""]
["",null,null,null,null,null,null,null,null,null,null,null,null,null,"",null,null,null,null,null,null,null,""]
["",null,null,null,null,null,null,null,null,null,null,null,null,null,"",null,null,null,null,null,null,null,""]
["",null,null,null,null,null,null,null,null,null,null,null,null,null,"",null,null,null,null,null,null,null,""]
["",null,null,null,null,null,null,null,null,null,null,null,null,null,"",null,null,null,null,null,null,null,""]
["",null,null,null,null,null,null,null,null,null,null,null,null,null,"",null,null,null,null,null,null,null,""]
["",null,null,null,null,null,null,null,null,null,null,null,null,null,"",null,null,null,null,null,null,null,""]
["",null,null,null,null,null,null,null,null,null,null,null,null,null,"",null,null,null,null,null,null,null,""]
["",null,null,null,null,null,null,null,null,null,null,null,null,null,"",null,null,null,null,null,null,null,""]
["",null,null,null,null,null,null,null,null,null,null,null,null,null,"",null,null,null,null,null,null,null,""]
[{"$f":"IF($A$3=\"x\",IF(AND(B1737=\"\",O1737=\"\",AND(L1737=\"\",M1737=\"\",P1737=\"\")),\"\",IF(B1737=\"\",A1736,B1737)),IF($A$4=\"x\",IF(AND(D1737=\"\",O1737=\"\",AND(L1737=\"\",M1737=\"\",P1737=\"\")),\"\",IF(D1737=\"\",A1736,D1737)),\"\"))","v":""},null,null,null,null,null,null,null,null,null,null,null,null,null,"",null,null,null,null,null,null,null,{"$f":"IFERROR(VALUE(IF(A1737=\"\",\"\",IF(O1737=\"\",0,O1737))),\"\")","v":""}]
["",null,null,null,null,null,null,null,null,null,null,null,null,null,"",null,null,null,null,null,null,null,""]
["",null,null,null,null,null,null,null,null,null,null,null,null,null,"",null,null,null,null,null,null,null,""]
["",null,null,null,null,null,null,null,null,null,null,null,null,null,"",null,null,null,null,null,null,null,""]
["",null,null,null,null,null,null,null,null,null,null,null,null,null,"",null,null,null,null,null,null,null,""]
["",null,null,null,null,null,null,null,null,null,null,null,null,null,"",null,null,null,null,null,null,null,""]
["",null,null,null,null,null,null,null,null,null,null,null,null,null,"",null,null,null,null,null,null,null,""]
["",null,null,null,null,null,null,null,null,null,null,null,null,null,"",null,null,null,null,null,null,null,""]
["",null,null,null,null,null,null,null,null,null,null,null,null,null,"",null,null,null,null,null,null,null,""]
["",null,null,null,null,null,null,null,null,null,null,null,null,null,"",null,null,null,null,null,null,null,""]
["",null,null,null,null,null,null,null,null,null,null,null,null,null,"",null,null,null,null,null,null,null,""]
["",null,null,null,null,null,null,null,null,null,null,null,null,null,"",null,null,null,null,null,null,null,""]
["",null,null,null,null,null,null,null,null,null,null,null,null,null,"",null,null,null,null,null,null,null,""]
["",null,null,null,null,null,null,null,null,null,null,null,null,null,"",null,null,null,null,null,null,null,""]
["",null,null,null,null,null,null,null,null,null,null,null,null,null,"",null,null,null,null,null,null,null,""]
["",null,null,null,null,null,null,null,null,null,null,null,null,null,"",null,null,null,null,null,null,null,""]
["",null,null,null,null,null,null,null,null,null,null,null,null,null,"",null,null,null,null,null,null,null,""]
["",null,null,null,null,null,null,null,null,null,null,null,null,null,"",null,null,null,null,null,null,null,""]
["",null,null,null,null,null,null,null,null,null,null,null,null,null,"",null,null,null,null,null,null,null,""]
["",null,null,null,null,null,null,null,null,null,null,null,null,null,"",null,null,null,null,null,null,null,""]
["",null,null,null,null,null,null,null,null,null,null,null,null,null,"",null,null,null,null,null,null,null,""]
["",null,null,null,null,null,null,null,null,null,null,null,null,null,"",null,null,null,null,null,null,null,""]
["",null,null,null,null,null,null,null,null,null,null,null,null,null,"",null,null,null,null,null,null,null,""]
["",null,null,null,null,null,null,null,null,null,null,null,null,null,"",null,null,null,null,null,null,null,""]
["",null,null,null,null,null,null,null,null,null,null,null,null,null,"",null,null,null,null,null,null,null,""]
["",null,null,null,null,null,null,null,null,null,null,null,null,null,"",null,null,null,null,null,null,null,""]
["",null,null,null,null,null,null,null,null,null,null,null,null,null,"",null,null,null,null,null,null,null,""]
["",null,null,null,null,null,null,null,null,null,null,null,null,null,"",null,null,null,null,null,null,null,""]
["",null,null,null,null,null,null,null,null,null,null,null,null,null,"",null,null,null,null,null,null,null,""]
["",null,null,null,null,null,null,null,null,null,null,null,null,null,"",null,null,null,null,null,null,null,""]
["",null,null,null,null,null,null,null,null,null,null,null,null,null,"",null,null,null,null,null,null,null,""]
["",null,null,null,null,null,null,null,null,null,null,null,null,null,"",null,null,null,null,null,null,null,""]
["",null,null,null,null,null,null,null,null,null,null,null,null,null,"",null,null,null,null,null,null,null,""]
["",null,null,null,null,null,null,null,null,null,null,null,null,null,"",null,null,null,null,null,null,null,""]
["",null,null,null,null,null,null,null,null,null,null,null,null,null,"",null,null,null,null,null,null,null,""]
["",null,null,null,null,null,null,null,null,null,null,null,null,null,"",null,null,null,null,null,null,null,""]
["",null,null,null,null,null,null,null,null,null,null,null,null,null,"",null,null,null,null,null,null,null,""]
["",null,null,null,null,null,null,null,null,null,null,null,null,null,"",null,null,null,null,null,null,null,""]
["",null,null,null,null,null,null,null,null,null,null,null,null,null,"",null,null,null,null,null,null,null,""]
["",null,null,null,null,null,null,null,null,null,null,null,null,null,"",null,null,null,null,null,null,null,""]
["",null,null,null,null,null,null,null,null,null,null,null,null,null,"",null,null,null,null,null,null,null,""]
["",null,null,null,null,null,null,null,null,null,null,null,null,null,"",null,null,null,null,null,null,null,""]
["",null,null,null,null,null,null,null,null,null,null,null,null,null,"",null,null,null,null,null,null,null,""]
["",null,null,null,null,null,null,null,null,null,null,null,null,null,"",null,null,null,null,null,null,null,""]
["",null,null,null,null,null,null,null,null,null,null,null,null,null,"",null,null,null,null,null,null,null,""]
["",null,null,null,null,null,null,null,null,null,null,null,null,null,"",null,null,null,null,null,null,null,""]
["",null,null,null,null,null,null,null,null,null,null,null,null,null,"",null,null,null,null,null,null,null,""]
["",null,null,null,null,null,null,null,null,null,null,null,null,null,"",null,null,null,null,null,null,null,""]
["",null,null,null,null,null,null,null,null,null,null,null,null,null,"",null,null,null,null,null,null,null,""]
["",null,null,null,null,null,null,null,null,null,null,null,null,null,"",null,null,null,null,null,null,null,""]
["",null,null,null,null,null,null,null,null,null,null,null,null,null,"",null,null,null,null,null,null,null,""]
["",null,null,null,null,null,null,null,null,null,null,null,null,null,"",null,null,null,null,null,null,null,""]
["",null,null,null,null,null,null,null,null,null,null,null,null,null,"",null,null,null,null,null,null,null,""]
["",null,null,null,null,null,null,null,null,null,null,null,null,null,"",null,null,null,null,null,null,null,""]
["",null,null,null,null,null,null,null,null,null,null,null,null,null,"",null,null,null,null,null,null,null,""]
["",null,null,null,null,null,null,null,null,null,null,null,null,null,"",null,null,null,null,null,null,null,""]
["",null,null,null,null,null,null,null,null,null,null,null,null,null,"",null,null,null,null,null,null,null,""]
["",null,null,null,null,null,null,null,null,null,null,null,null,null,"",null,null,null,null,null,null,null,""]
["",null,null,null,null,null,null,null,null,null,null,null,null,null,"",null,null,null,null,null,null,null,""]
["",null,null,null,null,null,null,null,null,null,null,null,null,null,"",null,null,null,null,null,null,null,""]
["",null,null,null,null,null,null,null,null,null,null,null,null,null,"",null,null,null,null,null,null,null,""]
["",null,null,null,null,null,null,null,null,null,null,null,null,null,"",null,null,null,null,null,null,null,""]
["",null,null,null,null,null,null,null,null,null,null,null,null,null,"",null,null,null,null,null,null,null,""]
["",null,null,null,null,null,null,null,null,null,null,null,null,null,"",null,null,null,null,null,null,null,""]
[{"$f":"IF($A$3=\"x\",IF(AND(B1801=\"\",O1801=\"\",AND(L1801=\"\",M1801=\"\",P1801=\"\")),\"\",IF(B1801=\"\",A1800,B1801)),IF($A$4=\"x\",IF(AND(D1801=\"\",O1801=\"\",AND(L1801=\"\",M1801=\"\",P1801=\"\")),\"\",IF(D1801=\"\",A1800,D1801)),\"\"))","v":""},null,null,null,null,null,null,null,null,null,null,null,null,null,"",null,null,null,null,null,null,null,{"$f":"IFERROR(VALUE(IF(A1801=\"\",\"\",IF(O1801=\"\",0,O1801))),\"\")","v":""}]
["",null,null,null,null,null,null,null,null,null,null,null,null,null,"",null,null,null,null,null,null,null,""]
["",null,null,null,null,null,null,null,null,null,null,null,null,null,"",null,null,null,null,null,null,null,""]
["",null,null,null,null,null,null,null,null,null,null,null,null,null,"",null,null,null,null,null,null,null,""]
["",null,null,null,null,null,null,null,null,null,null,null,null,null,"",null,null,null,null,null,null,null,""]
["",null,null,null,null,null,null,null,null,null,null,null,null,null,"",null,null,null,null,null,null,null,""]
["",null,null,null,null,null,null,null,null,null,null,null,null,null,"",null,null,null,null,null,null,null,""]
["",null,null,null,null,null,null,null,null,null,null,null,null,null,"",null,null,null,null,null,null,null,""]
["",null,null,null,null,null,null,null,null,null,null,null,null,null,"",null,null,null,null,null,null,null,""]
["",null,null,null,null,null,null,null,null,null,null,null,null,null,"",null,null,null,null,null,null,null,""]
["",null,null,null,null,null,null,null,null,null,null,null,null,null,"",null,null,null,null,null,null,null,""]
["",null,null,null,null,null,null,null,null,null,null,null,null,null,"",null,null,null,null,null,null,null,""]
["",null,null,null,null,null,null,null,null,null,null,null,null,null,"",null,null,null,null,null,null,null,""]
["",null,null,null,null,null,null,null,null,null,null,null,null,null,"",null,null,null,null,null,null,null,""]
["",null,null,null,null,null,null,null,null,null,null,null,null,null,"",null,null,null,null,null,null,null,""]
["",null,null,null,null,null,null,null,null,null,null,null,null,null,"",null,null,null,null,null,null,null,""]
["",null,null,null,null,null,null,null,null,null,null,null,null,null,"",null,null,null,null,null,null,null,""]
["",null,null,null,null,null,null,null,null,null,null,null,null,null,"",null,null,null,null,null,null,null,""]
["",null,null,null,null,null,null,null,null,null,null,null,null,null,"",null,null,null,null,null,null,null,""]
["",null,null,null,null,null,null,null,null,null,null,null,null,null,"",null,null,null,null,null,null,null,""]
["",null,null,null,null,null,null,null,null,null,null,null,null,null,"",null,null,null,null,null,null,null,""]
["",null,null,null,null,null,null,null,null,null,null,null,null,null,"",null,null,null,null,null,null,null,""]
["",null,null,null,null,null,null,null,null,null,null,null,null,null,"",null,null,null,null,null,null,null,""]
["",null,null,null,null,null,null,null,null,null,null,null,null,null,"",null,null,null,null,null,null,null,""]
["",null,null,null,null,null,null,null,null,null,null,null,null,null,"",null,null,null,null,null,null,null,""]
["",null,null,null,null,null,null,null,null,null,null,null,null,null,"",null,null,null,null,null,null,null,""]
["",null,null,null,null,null,null,null,null,null,null,null,null,null,"",null,null,null,null,null,null,null,""]
["",null,null,null,null,null,null,null,null,null,null,null,null,null,"",null,null,null,null,null,null,null,""]
["",null,null,null,null,null,null,null,null,null,null,null,null,null,"",null,null,null,null,null,null,null,""]
["",null,null,null,null,null,null,null,null,null,null,null,null,null,"",null,null,null,null,null,null,null,""]
["",null,null,null,null,null,null,null,null,null,null,null,null,null,"",null,null,null,null,null,null,null,""]
["",null,null,null,null,null,null,null,null,null,null,null,null,null,"",null,null,null,null,null,null,null,""]
["",null,null,null,null,null,null,null,null,null,null,null,null,null,"",null,null,null,null,null,null,null,""]
["",null,null,null,null,null,null,null,null,null,null,null,null,null,"",null,null,null,null,null,null,null,""]
["",null,null,null,null,null,null,null,null,null,null,null,null,null,"",null,null,null,null,null,null,null,""]
["",null,null,null,null,null,null,null,null,null,null,null,null,null,"",null,null,null,null,null,null,null,""]
["",null,null,null,null,null,null,null,null,null,null,null,null,null,"",null,null,null,null,null,null,null,""]
["",null,null,null,null,null,null,null,null,null,null,null,null,null,"",null,null,null,null,null,null,null,""]
["",null,null,null,null,null,null,null,null,null,null,null,null,null,"",null,null,null,null,null,null,null,""]
["",null,null,null,null,null,null,null,null,null,null,null,null,null,"",null,null,null,null,null,null,null,""]
["",null,null,null,null,null,null,null,null,null,null,null,null,null,"",null,null,null,null,null,null,null,""]
["",null,null,null,null,null,null,null,null,null,null,null,null,null,"",null,null,null,null,null,null,null,""]
["",null,null,null,null,null,null,null,null,null,null,null,null,null,"",null,null,null,null,null,null,null,""]
["",null,null,null,null,null,null,null,null,null,null,null,null,null,"",null,null,null,null,null,null,null,""]
["",null,null,null,null,null,null,null,null,null,null,null,null,null,"",null,null,null,null,null,null,null,""]
["",null,null,null,null,null,null,null,null,null,null,null,null,null,"",null,null,null,null,null,null,null,""]
["",null,null,null,null,null,null,null,null,null,null,null,null,null,"",null,null,null,null,null,null,null,""]
["",null,null,null,null,null,null,null,null,null,null,null,null,null,"",null,null,null,null,null,null,null,""]
["",null,null,null,null,null,null,null,null,null,null,null,null,null,"",null,null,null,null,null,null,null,""]
["",null,null,null,null,null,null,null,null,null,null,null,null,null,"",null,null,null,null,null,null,null,""]
["",null,null,null,null,null,null,null,null,null,null,null,null,null,"",null,null,null,null,null,null,null,""]
["",null,null,null,null,null,null,null,null,null,null,null,null,null,"",null,null,null,null,null,null,null,""]
["",null,null,null,null,null,null,null,null,null,null,null,null,null,"",null,null,null,null,null,null,null,""]
["",null,null,null,null,null,null,null,null,null,null,null,null,null,"",null,null,null,null,null,null,null,""]
["",null,null,null,null,null,null,null,null,null,null,null,null,null,"",null,null,null,null,null,null,null,""]
["",null,null,null,null,null,null,null,null,null,null,null,null,null,"",null,null,null,null,null,null,null,""]
["",null,null,null,null,null,null,null,null,null,null,null,null,null,"",null,null,null,null,null,null,null,""]
["",null,null,null,null,null,null,null,null,null,null,null,null,null,"",null,null,null,null,null,null,null,""]
["",null,null,null,null,null,null,null,null,null,null,null,null,null,"",null,null,null,null,null,null,null,""]
["",null,null,null,null,null,null,null,null,null,null,null,null,null,"",null,null,null,null,null,null,null,""]
["",null,null,null,null,null,null,null,null,null,null,null,null,null,"",null,null,null,null,null,null,null,""]
["",null,null,null,null,null,null,null,null,null,null,null,null,null,"",null,null,null,null,null,null,null,""]
["",null,null,null,null,null,null,null,null,null,null,null,null,null,"",null,null,null,null,null,null,null,""]
["",null,null,null,null,null,null,null,null,null,null,null,null,null,"",null,null,null,null,null,null,null,""]
[{"$f":"IF($A$3=\"x\",IF(AND(B1865=\"\",O1865=\"\",AND(L1865=\"\",M1865=\"\",P1865=\"\")),\"\",IF(B1865=\"\",A1864,B1865)),IF($A$4=\"x\",IF(AND(D1865=\"\",O1865=\"\",AND(L1865=\"\",M1865=\"\",P1865=\"\")),\"\",IF(D1865=\"\",A1864,D1865)),\"\"))","v":""},null,null,null,null,null,null,null,null,null,null,null,null,null,"",null,null,null,null,null,null,null,{"$f":"IFERROR(VALUE(IF(A1865=\"\",\"\",IF(O1865=\"\",0,O1865))),\"\")","v":""}]
["",null,null,null,null,null,null,null,null,null,null,null,null,null,"",null,null,null,null,null,null,null,""]
["",null,null,null,null,null,null,null,null,null,null,null,null,null,"",null,null,null,null,null,null,null,""]
["",null,null,null,null,null,null,null,null,null,null,null,null,null,"",null,null,null,null,null,null,null,""]
["",null,null,null,null,null,null,null,null,null,null,null,null,null,"",null,null,null,null,null,null,null,""]
["",null,null,null,null,null,null,null,null,null,null,null,null,null,"",null,null,null,null,null,null,null,""]
["",null,null,null,null,null,null,null,null,null,null,null,null,null,"",null,null,null,null,null,null,null,""]
["",null,null,null,null,null,null,null,null,null,null,null,null,null,"",null,null,null,null,null,null,null,""]
["",null,null,null,null,null,null,null,null,null,null,null,null,null,"",null,null,null,null,null,null,null,""]
["",null,null,null,null,null,null,null,null,null,null,null,null,null,"",null,null,null,null,null,null,null,""]
["",null,null,null,null,null,null,null,null,null,null,null,null,null,"",null,null,null,null,null,null,null,""]
["",null,null,null,null,null,null,null,null,null,null,null,null,null,"",null,null,null,null,null,null,null,""]
["",null,null,null,null,null,null,null,null,null,null,null,null,null,"",null,null,null,null,null,null,null,""]
["",null,null,null,null,null,null,null,null,null,null,null,null,null,"",null,null,null,null,null,null,null,""]
["",null,null,null,null,null,null,null,null,null,null,null,null,null,"",null,null,null,null,null,null,null,""]
["",null,null,null,null,null,null,null,null,null,null,null,null,null,"",null,null,null,null,null,null,null,""]
["",null,null,null,null,null,null,null,null,null,null,null,null,null,"",null,null,null,null,null,null,null,""]
["",null,null,null,null,null,null,null,null,null,null,null,null,null,"",null,null,null,null,null,null,null,""]
["",null,null,null,null,null,null,null,null,null,null,null,null,null,"",null,null,null,null,null,null,null,""]
["",null,null,null,null,null,null,null,null,null,null,null,null,null,"",null,null,null,null,null,null,null,""]
["",null,null,null,null,null,null,null,null,null,null,null,null,null,"",null,null,null,null,null,null,null,""]
["",null,null,null,null,null,null,null,null,null,null,null,null,null,"",null,null,null,null,null,null,null,""]
["",null,null,null,null,null,null,null,null,null,null,null,null,null,"",null,null,null,null,null,null,null,""]
["",null,null,null,null,null,null,null,null,null,null,null,null,null,"",null,null,null,null,null,null,null,""]
["",null,null,null,null,null,null,null,null,null,null,null,null,null,"",null,null,null,null,null,null,null,""]
["",null,null,null,null,null,null,null,null,null,null,null,null,null,"",null,null,null,null,null,null,null,""]
["",null,null,null,null,null,null,null,null,null,null,null,null,null,"",null,null,null,null,null,null,null,""]
["",null,null,null,null,null,null,null,null,null,null,null,null,null,"",null,null,null,null,null,null,null,""]
["",null,null,null,null,null,null,null,null,null,null,null,null,null,"",null,null,null,null,null,null,null,""]
["",null,null,null,null,null,null,null,null,null,null,null,null,null,"",null,null,null,null,null,null,null,""]
["",null,null,null,null,null,null,null,null,null,null,null,null,null,"",null,null,null,null,null,null,null,""]
["",null,null,null,null,null,null,null,null,null,null,null,null,null,"",null,null,null,null,null,null,null,""]
["",null,null,null,null,null,null,null,null,null,null,null,null,null,"",null,null,null,null,null,null,null,""]
["",null,null,null,null,null,null,null,null,null,null,null,null,null,"",null,null,null,null,null,null,null,""]
["",null,null,null,null,null,null,null,null,null,null,null,null,null,"",null,null,null,null,null,null,null,""]
["",null,null,null,null,null,null,null,null,null,null,null,null,null,"",null,null,null,null,null,null,null,""]
["",null,null,null,null,null,null,null,null,null,null,null,null,null,"",null,null,null,null,null,null,null,""]
["",null,null,null,null,null,null,null,null,null,null,null,null,null,"",null,null,null,null,null,null,null,""]
["",null,null,null,null,null,null,null,null,null,null,null,null,null,"",null,null,null,null,null,null,null,""]
["",null,null,null,null,null,null,null,null,null,null,null,null,null,"",null,null,null,null,null,null,null,""]
["",null,null,null,null,null,null,null,null,null,null,null,null,null,"",null,null,null,null,null,null,null,""]
["",null,null,null,null,null,null,null,null,null,null,null,null,null,"",null,null,null,null,null,null,null,""]
["",null,null,null,null,null,null,null,null,null,null,null,null,null,"",null,null,null,null,null,null,null,""]
["",null,null,null,null,null,null,null,null,null,null,null,null,null,"",null,null,null,null,null,null,null,""]
["",null,null,null,null,null,null,null,null,null,null,null,null,null,"",null,null,null,null,null,null,null,""]
["",null,null,null,null,null,null,null,null,null,null,null,null,null,"",null,null,null,null,null,null,null,""]
["",null,null,null,null,null,null,null,null,null,null,null,null,null,"",null,null,null,null,null,null,null,""]
["",null,null,null,null,null,null,null,null,null,null,null,null,null,"",null,null,null,null,null,null,null,""]
["",null,null,null,null,null,null,null,null,null,null,null,null,null,"",null,null,null,null,null,null,null,""]
["",null,null,null,null,null,null,null,null,null,null,null,null,null,"",null,null,null,null,null,null,null,""]
["",null,null,null,null,null,null,null,null,null,null,null,null,null,"",null,null,null,null,null,null,null,""]
["",null,null,null,null,null,null,null,null,null,null,null,null,null,"",null,null,null,null,null,null,null,""]
["",null,null,null,null,null,null,null,null,null,null,null,null,null,"",null,null,null,null,null,null,null,""]
["",null,null,null,null,null,null,null,null,null,null,null,null,null,"",null,null,null,null,null,null,null,""]
["",null,null,null,null,null,null,null,null,null,null,null,null,null,"",null,null,null,null,null,null,null,""]
["",null,null,null,null,null,null,null,null,null,null,null,null,null,"",null,null,null,null,null,null,null,""]
["",null,null,null,null,null,null,null,null,null,null,null,null,null,"",null,null,null,null,null,null,null,""]
["",null,null,null,null,null,null,null,null,null,null,null,null,null,"",null,null,null,null,null,null,null,""]
["",null,null,null,null,null,null,null,null,null,null,null,null,null,"",null,null,null,null,null,null,null,""]
["",null,null,null,null,null,null,null,null,null,null,null,null,null,"",null,null,null,null,null,null,null,""]
["",null,null,null,null,null,null,null,null,null,null,null,null,null,"",null,null,null,null,null,null,null,""]
["",null,null,null,null,null,null,null,null,null,null,null,null,null,"",null,null,null,null,null,null,null,""]
["",null,null,null,null,null,null,null,null,null,null,null,null,null,"",null,null,null,null,null,null,null,""]
["",null,null,null,null,null,null,null,null,null,null,null,null,null,"",null,null,null,null,null,null,null,""]
[{"$f":"IF($A$3=\"x\",IF(AND(B1929=\"\",O1929=\"\",AND(L1929=\"\",M1929=\"\",P1929=\"\")),\"\",IF(B1929=\"\",A1928,B1929)),IF($A$4=\"x\",IF(AND(D1929=\"\",O1929=\"\",AND(L1929=\"\",M1929=\"\",P1929=\"\")),\"\",IF(D1929=\"\",A1928,D1929)),\"\"))","v":""},null,null,null,null,null,null,null,null,null,null,null,null,null,"",null,null,null,null,null,null,null,{"$f":"IFERROR(VALUE(IF(A1929=\"\",\"\",IF(O1929=\"\",0,O1929))),\"\")","v":""}]
["",null,null,null,null,null,null,null,null,null,null,null,null,null,"",null,null,null,null,null,null,null,""]
["",null,null,null,null,null,null,null,null,null,null,null,null,null,"",null,null,null,null,null,null,null,""]
["",null,null,null,null,null,null,null,null,null,null,null,null,null,"",null,null,null,null,null,null,null,""]
["",null,null,null,null,null,null,null,null,null,null,null,null,null,"",null,null,null,null,null,null,null,""]
["",null,null,null,null,null,null,null,null,null,null,null,null,null,"",null,null,null,null,null,null,null,""]
["",null,null,null,null,null,null,null,null,null,null,null,null,null,"",null,null,null,null,null,null,null,""]
["",null,null,null,null,null,null,null,null,null,null,null,null,null,"",null,null,null,null,null,null,null,""]
["",null,null,null,null,null,null,null,null,null,null,null,null,null,"",null,null,null,null,null,null,null,""]
["",null,null,null,null,null,null,null,null,null,null,null,null,null,"",null,null,null,null,null,null,null,""]
["",null,null,null,null,null,null,null,null,null,null,null,null,null,"",null,null,null,null,null,null,null,""]
["",null,null,null,null,null,null,null,null,null,null,null,null,null,"",null,null,null,null,null,null,null,""]
["",null,null,null,null,null,null,null,null,null,null,null,null,null,"",null,null,null,null,null,null,null,""]
["",null,null,null,null,null,null,null,null,null,null,null,null,null,"",null,null,null,null,null,null,null,""]
["",null,null,null,null,null,null,null,null,null,null,null,null,null,"",null,null,null,null,null,null,null,""]
["",null,null,null,null,null,null,null,null,null,null,null,null,null,"",null,null,null,null,null,null,null,""]
["",null,null,null,null,null,null,null,null,null,null,null,null,null,"",null,null,null,null,null,null,null,""]
["",null,null,null,null,null,null,null,null,null,null,null,null,null,"",null,null,null,null,null,null,null,""]
["",null,null,null,null,null,null,null,null,null,null,null,null,null,"",null,null,null,null,null,null,null,""]